Workbook

Sheet erweitertes vdp-Template
A1: Hypothekenpfandbriefe | B1: Q 2 2019
A2: Deckungsmasse (nom.) | B2: (Mio. €) | C2: 13673.1 | D2: Umlaufende Pfandbriefe (nom). | G2: (Mio. €) | H2: 13244.8
A3: WAL der Deckungsmasse (Total) | B3: Jahre | C3: 5.1 | D3: WAL der ausstehenden Pfandbriefe (Total) | G3: Jahre | H3: 4.8
A4: Anteil von "insured mortgages" | B4: % | C4: 100 | D4: Sind Soft Bullet Strukturen enthalten? | G4: Ja/Nein | H4: Nein
A5: Sind Versicherungen Bestandteil der Deckungsmasse? | C5: Ja | D5: Wenn ja: Ausmass der Fälligkeitsverschiebung? | G5: Monate | H5: -
A6: Sind garantierte Kredite in Deckungsmasse enthalten? | B6: Ja/Nein | C6: Nicht anwendbar* | D6: Ist Fälligkeitsverschiebung gesetzlich geregelt? | G6: Ja/Nein | H6: Nein
A7: Anteil garantierter Kredite | B7: % | C7: Nicht anwendbar* | D7: Sind Pass through Strukturen enthalten? | G7: Ja/Nein | H7: Nicht anwendbar*
A8: Gesetzliche Überdeckung (barwertig nach Stressszenarien) | B8: % | C8: 2
A9: Sind "self certified loans" Bestandteil der Deckungsmasse? | B9: Ja/Nein | C9: Nicht anwendbar* | D9: Gesamtkreditbetrag der 10 größten Kreditnehmer | G9: (Mio. €) | H9: 2949.9
A10: Sind "limited certified loans" Bestandteil der Deckungsmasse? | B10: Ja/Nein | C10: Nicht anwendbar*
A11: Anteil von "non first lien mortgages" | B11: % | C11: Nicht anwendbar* | G11: Residential | H11: Commercial
A12: Sind ABS Bestandteil der Deckungsmasse? | B12: Ja/Nein | C12: Nicht anwendbar* | D12: Anzahl der Kreditnehmer | G12: 1116 | H12: 751
A13: "interest only loans" | B13: (Mio. €) | C13: 6842.6 | D13: Anzahl der Kredite | G13: 1118 | H13: 792
A14: Notenbankfähige Wertpapiere | B14: (Mio. €) | C14: 56 | D14: Anzahl der Objekte | G14: 3949 | H14: 1591
A15: Aufteilung der Forderungen gegenüber Zentralbanken und Kreditinstituten i.S. d. § 28 Abs. 1 Nr. 5 nach Bonitätsstufe | D15: Selbstgenutzte Wohnungen in der Deckungsmasse (Mio. €) | G15: 13.2
A16: Bonitätsstufe 1 | B16: (Mio. €) | C16: 130 | D16: Mehrfamilienhäuser in der Deckungsmasse (Mio. €) | G16: 4075.6
A17: Bonitätsstufe 2 | B17: (Mio. €) | C17: 160
A18: Sind Derivate in Deckung? | B18: Y/N | C18: =IF(C20<>0,"Y","N") -> N
A19: Typ der Swap-Kontrahenten? (Intern, Extern, Beide, None) | B19: I/E/B/N
A20: Nettobarwert der Derivate in Deckung | B20: (Mio. €) | C20: 0
A21: Währungspositionen (nominal) | B21: (Mio. €) | C21: Pfandbriefe | D21: Deckungsmasse
A22: EUR | C22: 13244.8 | D22: 13446.7
A23: AUD | C23: 0 | D23: 0
A24: CAD | C24: 0 | D24: 0
A25: CHF | C25: 0 | D25: 37.3
A26: CZK | C26: 0 | D26: 0
A27: DKK | C27: 0 | D27: 0
A28: GBP | C28: 0 | D28: 189.1
A29: HKD | C29: 0 | D29: 0
A30: JPY | C30: 0 | D30: 0
A31: NOK | C31: 0 | D31: 0
A32: SEK | C32: 0 | D32: 0
A33: USD | C33: 0 | D33: 0
A34: Ratingagentur | C34: Fitch | D34: Moody´s | E34: S&P | F34: DBRS | G34: Scope
A35: Aktuelles Pfandbriefrating | D35: Aaa
A36: Deckungsmasse nach Beleihungsauslauf in Bandbreiten | C36: 0- ≤20 | D36: >20- ≤30 | E36: >30- ≤40 | F36: >40- ≤50 | G36: >50- ≤60
B37: (Mio. €) | C37: 205.3 | D37: 290.7 | E37: 589.2 | F37: 937.3 | G37: 11304.6
A38: Deckungsmasse nach Alter der Kredite in Bandbreiten -seasoning- residential+commercial | C38: ≤12 Monate | D38: >12 - ≤24 Monate | E38: >24 - ≤36 Monate | F38: >36 - ≤60 Monate | G38: >60 - ≤120 Monate | H38: > 120 Monate
B39: (Mio. €) | C39: 1443.4 | D39: 3001.3 | E39: 2534.5 | F39: 3753.8 | G39: 1969.8 | H39: 624.3

Sheet extended vdp-Template
A1: Mortgage Pfandbriefe | B1: ='erweitertes vdp-Template'!B1 -> Q 2 2019
A2: Cover pool (nom.) | B2: (mn. €) | C2: 13673.1 | D2: Pfandbriefe outstanding (nom). | G2: (mn. €) | H2: 13244.8
A3: Weighted Average Life (WAL) of cover pool (Total) | B3: Years | C3: 5.1 | D3: WAL of outstanding Pfandbriefe (Total) | G3: Years | H3: 4.8
A4: Share of "insured mortgages" | B4: % | C4: 100 | D4: Are soft bullet structures included? | G4: Yes/No | H4: No
A5: Are insurances part of the cover pool register? | C5: Yes | D5: If yes: maturity expansion period? | G5: Months | H5: -
A6: Are guaranteed loans included in the cover pool? | B6: Yes/No | C6: Not applicable* | D6: Is maturity extension regulated by law? | G6: Yes/No | H6: No
A7: Share of guaranteed loans | B7: % | C7: Not applicable* | D7: Are pass-through structures included? | G7: Yes/No | H7: Not applicable*
A8: Legal overcollateralisation (npv based on stress scenarios) | B8: % | C8: 2
A9: Are self certified loans part of the cover pool? | B9: Yes/No | C9: Not applicable* | D9: Total amount lent to 10 lagest borrowers | G9: (mn. €) | H9: 2949.9
A10: Are limited certified loans part of the cover pool? | B10: Yes/No | C10: Not applicable*
A11: Percentage of non first lien mortgages | B11: % | C11: Not applicable* | G11: Residential | H11: Commercial
A12: Are ABS part of the cover pool? | B12: Yes/No | C12: Not applicable* | D12: Number of borrowers | G12: 1116 | H12: 751
A13: "interest only loans" | B13: (mn. €) | C13: 6842.6 | D13: Number of loans | G13: 1118 | H13: 792
A14: Central bank eligible securities | B14: (mn. €) | C14: 56 | D14: Number of properties | G14: 3949 | H14: 1591
A15: Breakdown of exposures to central banks and credit institutions within the meaning of sec. 28(1) no.5 by credit quality step | D15: Owner-occupied dwellings in the cover pool (mn. €) | G15: 13.2
A16: Credit quality step 1 | B16: (mn. €) | C16: 130 | D16: Multi-family houses in the cover pool ( mn.€) | G16: 4075.6
A17: Credit quality step 2 | B17: (mn. €) | C17: 160
A18: Are derivatives included in the cover pool? | B18: Y/N | C18: =IF(C20<>0,"Y","N") -> N
A19: Type of swap counterparties? (internal, external, both, none) | B19: I/E/B/N
A20: Net present value of derivatives in the cover pool | B20: (mn. €) | C20: 0
A21: Currency positions (nominal) | B21: (mn. €) | C21: Pfandbriefe | D21: Cover pool
A22: EUR | C22: 13244.8 | D22: 13446.7
A23: AUD | C23: 0 | D23: 0
A24: CAD | C24: 0 | D24: 0
A25: CHF | C25: 0 | D25: 37.3
A26: CZK | C26: 0 | D26: 0
A27: DKK | C27: 0 | D27: 0
A28: GBP | C28: 0 | D28: 189.1
A29: HKD | C29: 0 | D29: 0
A30: JPY | C30: 0 | D30: 0
A31: NOK | C31: 0 | D31: 0
A32: SEK | C32: 0 | D32: 0
A33: USD | C33: 0 | D33: 0
A34: Rating agency | C34: Fitch | D34: Moody´s | E34: S&P | F34: DBRS | G34: Scope
A35: Current Pfandbrief rating | D35: Aaa
A36: Cover pool by LTV buckets | C36: 0- ≤20 | D36: >20- ≤30 | E36: >30- ≤40 | F36: >40- ≤50 | G36: >50- ≤60
B37: (mn. €) | C37: 205.3 | D37: 290.7 | E37: 589.2 | F37: 937.3 | G37: 11304.6
A38: Cover pool by age of loans (seasoning) in buckets Residential+commercial | C38: ≤12 months | D38: >12 - ≤24 months | E38: >24 - ≤36 months | F38: >36 - ≤60 months | G38: >60 - ≤120 months | H38: > 120 months
B39: (mn. €) | C39: 1443.4 | D39: 3001.3 | E39: 2534.5 | F39: 3753.8 | G39: 1969.8 | H39: 624.3

Sheet A. HTT General
A1: A. Harmonised Transparency Template - General Information | F1: HTT 2019
B3: Reporting in Domestic Currency | C3: EURO
B5: CONTENT OF TAB A
B6: 1. Basic Facts
B7: 2. Regulatory Summary
B8: 3. General Cover Pool / Covered Bond Information | F8: `
B9: 4. References to Capital Requirements Regulation (CRR) 129(7)
B10: 5. References to Capital Requirements Regulation (CRR) 129(1)
B11: 6. Other relevant information
A13: Field Number | B13: 1. Basic Facts
A14: G.1.1.1 | B14: Country | C14: Germany
A15: G.1.1.2 | B15: Issuer Name | C15: Berlin Hyp AG
A16: G.1.1.3 | B16: Link to Issuer's Website | C16: www.berlinhyp.de
A17: G.1.1.4 | B17: Cut-off date | C17: 6/30/2019
A18: OG.1.1.1 | B18: Optional information e.g. Contact names
A19: OG.1.1.2 | B19: Optional information e.g. Parent name
A20: OG.1.1.3
A21: OG.1.1.4
A22: OG.1.1.5
A23: OG.1.1.6
A24: OG.1.1.7
A25: OG.1.1.8
B26: 2. Regulatory Summary
A27: G.2.1.1 | B27: UCITS Compliance (Y/N) | C27: Y
A28: G.2.1.2 | B28: CRR Compliance (Y/N) | C28: Y
A29: G.2.1.3 | B29: LCR status | C29: [Insert link to the issuer's profile on the Covered Bond Label website]
A30: OG.2.1.1
A31: OG.2.1.2
A32: OG.2.1.3
A33: OG.2.1.4
A34: OG.2.1.5
A35: OG.2.1.6
B36: 3. General Cover Pool / Covered Bond Information
B37: 1.General Information | C37: Nominal (mn)
A38: G.3.1.1 | B38: Total Cover Assets | C38: 13673.1
A39: G.3.1.2 | B39: Outstanding Covered Bonds | C39: 13244.8
A40: OG.3.1.1 | B40: Cover Pool Size [NPV] (mn) | C40: 15004.9
A41: OG.3.1.2 | B41: Outstanding Covered Bonds [NPV] (mn) | C41: 14365
A42: OG.3.1.3
A43: OG.3.1.4
B44: 2. Over-collateralisation (OC) | C44: Legal / Regulatory | D44: Actual | F44: Minimum Committed | G44: Purpose
A45: G.3.2.1 | B45: OC (%) | D45: 0.03233721914 | F45: ND1 | G45: ND1
A46: OG.3.2.1 | B46: Optional information e.g. Asset Coverage Test (ACT)
A47: OG.3.2.2 | B47: Optional information e.g. OC (NPV basis) | C47: 0.02
A48: OG.3.2.3
A49: OG.3.2.4
A50: OG.3.2.5
A51: OG.3.2.6
B52: 3. Cover Pool Composition | C52: Nominal (mn) | F52: % Cover Pool
A53: G.3.3.1 | B53: Mortgages | C53: 13327.1 | F53: =IF($C$58=0,"",IF(C53="[for completion]","",C53/$C$58)) -> 0.9746948388
A54: G.3.3.2 | B54: Public Sector | C54: 0 | F54: =IF($C$58=0,"",IF(C54="[for completion]","",C54/$C$58)) -> 0
A55: G.3.3.3 | B55: Shipping | C55: 0 | F55: =IF($C$58=0,"",IF(C55="[for completion]","",C55/$C$58)) -> 0
A56: G.3.3.4 | B56: Substitute Assets | C56: 346 | F56: =IF($C$58=0,"",IF(C56="[for completion]","",C56/$C$58)) -> 0.02530516123
A57: G.3.3.5 | B57: Other (Derivates) | C57: 0 | F57: =IF($C$58=0,"",IF(C57="[for completion]","",C57/$C$58)) -> 0
A58: G.3.3.6 | B58: Total | C58: =SUM(C53:C57) -> 13673.1 | F58: =SUM(F53:F57) -> 1
A59: OG.3.3.1 | B59: o/w [If relevant, please specify] | F59: =IF($C$58=0,"",IF(C59="[for completion]","",C59/$C$58)) -> 0
A60: OG.3.3.2 | B60: o/w [If relevant, please specify] | F60: 0
A61: OG.3.3.3 | B61: o/w [If relevant, please specify] | F61: 0
A62: OG.3.3.4 | B62: o/w [If relevant, please specify] | F62: 0
A63: OG.3.3.5 | B63: o/w [If relevant, please specify] | F63: 0
A64: OG.3.3.6 | B64: o/w [If relevant, please specify] | F64: 0
B65: 4. Cover Pool Amortisation Profile | C65: Contractual | D65: Expected Upon Prepayments | F65: % Total Contractual | G65: % Total Expected Upon Prepayments
A66: G.3.4.1 | B66: Weighted Average life (in years) | C66: 5.1 | D66: ND1
A68: G.3.4.2 | B68: Residual Life (mn)
B69: By buckets:
A70: G.3.4.2 | B70: 0 - 1 Y | C70: =SUM(C79:C80) -> 1564.2 | D70: ND1 | F70: =IF($C$77=0,"",IF(C70="[for completion]","",C70/$C$77)) -> 0.1143998069 | G70: =IF($D$77=0,"",IF(D70="[Mark as ND1 if not relevant]","",D70/$D$77)) -> 
A71: G.3.4.3 | B71: 1 - 2 Y | C71: =SUM(C81:C82) -> 1162.7 | D71: ND1 | F71: 0.08503558081
A72: G.3.4.4 | B72: 2 - 3 Y | C72: 1307.1 | D72: ND1 | F72: 0.09559646313
A73: G.3.4.5 | B73: 3 - 4 Y | C73: 1567.3 | D73: ND1 | F73: 0.1146265295
A74: G.3.4.6 | B74: 4 - 5 Y | C74: 1511.5 | D74: ND1 | F74: 0.1105455237
A75: G.3.4.7 | B75: 5 - 10 Y | C75: 6066.2 | D75: ND1 | F75: 0.4436594481
A76: G.3.4.8 | B76: 10+ Y | C76: 494.1 | D76: ND1 | F76: 0.03613664787
A77: G.3.4.9 | B77: Total | C77: =SUM(C70:C76) -> 13673.1 | D77: 0 | F77: =SUM(F70:F76) -> 1 | G77: =SUM(G70:G76) -> 0
A78: OG.3.4.1 | B78: o/w 0-1 day | F78: =IF($C$77=0,"",IF(C78="[for completion]","",C78/$C$77)) -> 0 | G78: =IF($D$77=0,"",IF(D78="[for completion]","",D78/$D$77)) -> 
A79: OG.3.4.2 | B79: o/w 0-0.5y | C79: 1026.6 | F79: =IF($C$77=0,"",IF(C79="[for completion]","",C79/$C$77)) -> 0.07508172982 | G79: =IF($D$77=0,"",IF(D79="[for completion]","",D79/$D$77)) -> 
A80: OG.3.4.3 | B80: o/w 0.5-1 y | C80: 537.6 | F80: =IF($C$77=0,"",IF(C80="[for completion]","",C80/$C$77)) -> 0.0393180771 | G80: =IF($D$77=0,"",IF(D80="[for completion]","",D80/$D$77)) -> 
A81: OG.3.4.4 | B81: o/w 1-1.5y | C81: 664.4 | F81: =IF($C$77=0,"",IF(C81="[for completion]","",C81/$C$77)) -> 0.04859176046 | G81: =IF($D$77=0,"",IF(D81="[for completion]","",D81/$D$77)) -> 
A82: OG.3.4.5 | B82: o/w 1.5-2 y | C82: 498.3 | F82: =IF($C$77=0,"",IF(C82="[for completion]","",C82/$C$77)) -> 0.03644382035 | G82: =IF($D$77=0,"",IF(D82="[for completion]","",D82/$D$77)) -> 
A83: OG.3.4.6
A84: OG.3.4.7
A85: OG.3.4.8
A86: OG.3.4.9 | F86: =IF($C$77=0,"",IF(C86="[for completion]","",C86/$C$77)) -> 0 | G86: =IF($D$77=0,"",IF(D86="[for completion]","",D86/$D$77)) -> 
A87: OG.3.4.10 | F87: =IF($C$77=0,"",IF(C87="[for completion]","",C87/$C$77)) -> 0 | G87: =IF($D$77=0,"",IF(D87="[for completion]","",D87/$D$77)) -> 
B88: 5. Maturity of Covered Bonds | C88: Initial Maturity | D88: Extended Maturity | F88: % Total Initial Maturity | G88: % Total Extended Maturity
A89: G.3.5.1 | B89: Weighted Average life (in years) | C89: 4.8 | D89: ND1
A91: G.3.5.2 | B91: Maturity (mn)
A92: G.3.5.2 | B92: By buckets:
A93: G.3.5.3 | B93: 0 - 1 Y | C93: =SUM(C102:C103) -> 699.2 | D93: ND1 | F93: =IF($C$100=0,"",IF(C93="[for completion]","",C93/$C$100)) -> 0.05279052911 | G93: =IF($D$100=0,"",IF(D93="[Mark as ND1 if not relevant]","",D93/$D$100)) -> 
A94: G.3.5.4 | B94: 1 - 2 Y | C94: =SUM(C104:C105) -> 1511 | D94: ND1 | F94: 0.1140825079
A95: G.3.5.5 | B95: 2 - 3 Y | C95: 3725 | D95: ND1 | F95: 0.2812424499
A96: G.3.5.6 | B96: 3 - 4 Y | C96: 2199 | D96: ND1 | F96: 0.1660274221
A97: G.3.5.7 | B97: 4 - 5 Y | C97: 1650 | D97: ND1 | F97: 0.1245771926
A98: G.3.5.8 | B98: 5 - 10 Y | C98: 2533 | D98: ND1 | F98: 0.1912448659
A99: G.3.5.9 | B99: 10+ Y | C99: 927.6 | D99: ND1 | F99: 0.07003503262
A100: G.3.5.10 | B100: Total | C100: =SUM(C93:C99) -> 13244.8 | D100: 0 | F100: =SUM(F93:F99) -> 1 | G100: =SUM(G93:G99) -> 0
A101: OG.3.5.1 | B101: o/w 0-1 day | F101: =IF($C$100=0,"",IF(C101="[for completion]","",C101/$C$100)) -> 0 | G101: =IF($D$100=0,"",IF(D101="[for completion]","",D101/$D$100)) -> 
A102: OG.3.5.2 | B102: o/w 0-0.5y | C102: 424.2 | F102: =IF($C$100=0,"",IF(C102="[for completion]","",C102/$C$100)) -> 0.03202766369 | G102: =IF($D$100=0,"",IF(D102="[for completion]","",D102/$D$100)) -> 
A103: OG.3.5.3 | B103: o/w 0.5-1 y | C103: 275 | F103: =IF($C$100=0,"",IF(C103="[for completion]","",C103/$C$100)) -> 0.02076286543 | G103: =IF($D$100=0,"",IF(D103="[for completion]","",D103/$D$100)) -> 
A104: OG.3.5.4 | B104: o/w 1-1.5y | C104: 947 | F104: =IF($C$100=0,"",IF(C104="[for completion]","",C104/$C$100)) -> 0.0714997584 | G104: =IF($D$100=0,"",IF(D104="[for completion]","",D104/$D$100)) -> 
A105: OG.3.5.5 | B105: o/w 1.5-2 y | C105: 564 | F105: =IF($C$100=0,"",IF(C105="[for completion]","",C105/$C$100)) -> 0.04258274946 | G105: =IF($D$100=0,"",IF(D105="[for completion]","",D105/$D$100)) -> 
A106: OG.3.5.6
A107: OG.3.5.7
A108: OG.3.5.8 | F108: =IF($C$100=0,"",IF(C108="[for completion]","",C108/$C$100)) -> 0 | G108: =IF($D$100=0,"",IF(D108="[for completion]","",D108/$D$100)) -> 
A109: OG.3.5.9 | F109: =IF($C$100=0,"",IF(C109="[for completion]","",C109/$C$100)) -> 0 | G109: =IF($D$100=0,"",IF(D109="[for completion]","",D109/$D$100)) -> 
A110: OG.3.5.10 | F110: =IF($C$100=0,"",IF(C110="[for completion]","",C110/$C$100)) -> 0 | G110: =IF($D$100=0,"",IF(D110="[for completion]","",D110/$D$100)) -> 
B111: 6. Covered Assets - Currency | C111: Nominal [before hedging] (mn) | D111: Nominal [after hedging] (mn) | F111: % Total [before] | G111: % Total [after]
A112: G.3.6.1 | B112: EUR | C112: ND3 | D112: 13446.7 | F112: =IF(C112="ND3","ND3",C112/$C$129) -> ND3 | G112: =IF($D$129=0,"ND3",D112/$D$129) -> 0.9834419407
A113: G.3.6.2 | B113: AUD | C113: ND3 | D113: 0 | F113: ND3 | G113: =IF($D$129=0,"ND3",D113/$D$129) -> 0
A114: G.3.6.3 | B114: BRL | C114: ND3 | D114: 0 | F114: ND3 | G114: ND3
A115: G.3.6.4 | B115: CAD | C115: ND3 | D115: 0 | F115: ND3 | G115: =IF($D$129=0,"ND3",D115/$D$129) -> 0
A116: G.3.6.5 | B116: CHF | C116: ND3 | D116: 37.3 | F116: ND3 | G116: 0.002727984144
A117: G.3.6.6 | B117: CZK | C117: ND3 | D117: 0 | F117: ND3 | G117: 0
A118: G.3.6.7 | B118: DKK | C118: ND3 | D118: 0 | F118: ND3 | G118: 0
A119: G.3.6.8 | B119: GBP | C119: ND3 | D119: 189.1 | F119: ND3 | G119: 0.01383007511
A120: G.3.6.9 | B120: HKD | C120: ND3 | D120: 0 | F120: ND3 | G120: 0
A121: G.3.6.10 | B121: JPY | C121: ND3 | D121: 0 | F121: ND3 | G121: 0
A122: G.3.6.11 | B122: KRW | C122: ND3 | D122: 0 | F122: ND3 | G122: ND3
A123: G.3.6.12 | B123: NOK | C123: ND3 | D123: 0 | F123: ND3 | G123: =IF($D$129=0,"ND3",D123/$D$129) -> 0
A124: G.3.6.13 | B124: PLN | C124: ND3 | D124: 0 | F124: ND3 | G124: ND3
A125: G.3.6.14 | B125: SEK | C125: ND3 | D125: 0 | F125: ND3 | G125: =IF($D$129=0,"ND3",D125/$D$129) -> 0
A126: G.3.6.15 | B126: SGD | C126: ND3 | D126: 0 | F126: ND3 | G126: ND3
A127: G.3.6.16 | B127: USD | C127: ND3 | D127: 0 | F127: ND3 | G127: =IF($D$129=0,"ND3",D127/$D$129) -> 0
A128: G.3.6.17 | B128: Other | C128: ND3 | D128: - | F128: ND3 | G128: ND3
A129: G.3.6.18 | B129: Total | C129: =IF(NOT(SUM(C112:C128)=0),SUM(C112:C128),"ND3") -> ND3 | D129: =SUM(D112:D128) -> 13673.1 | F129: =SUM(F112:F128) -> 0 | G129: =SUM(G112:G128) -> 1
A130: OG.3.6.3 | B130: o/w [If relevant, please specify] | F130: =#VALUE! ->  | G130: 0
A131: OG.3.6.4 | B131: o/w [If relevant, please specify] | F131: =#VALUE! ->  | G131: 0
A132: OG.3.6.5 | B132: o/w [If relevant, please specify] | F132: =#VALUE! ->  | G132: 0
A133: OG.3.6.6 | B133: o/w [If relevant, please specify] | F133: =#VALUE! ->  | G133: 0
A134: OG.3.6.7 | B134: o/w [If relevant, please specify] | F134: =#VALUE! ->  | G134: 0
A135: OG.3.6.8 | B135: o/w [If relevant, please specify] | F135: =#VALUE! ->  | G135: 0
A136: OG.3.6.9 | B136: o/w [If relevant, please specify] | F136: =#VALUE! ->  | G136: 0
B137: 7. Covered Bonds - Currency | C137: Nominal [before hedging] (mn) | D137: Nominal [after hedging] (mn) | F137: % Total [before] | G137: % Total [after]
A138: G.3.7.1 | B138: EUR | C138: ND3 | D138: 13244.8 | F138: =IF(C138="ND3","ND3",C138/$C$155) -> ND3 | G138: =IF($D$155=0,"ND3",D138/$D$155) -> 1
A139: G.3.7.2 | B139: AUD | C139: ND3 | D139: 0 | F139: ND3 | G139: =IF($D$155=0,"ND3",D139/$D$155) -> 0
A140: G.3.7.3 | B140: BRL | C140: ND3 | D140: 0 | F140: ND3 | G140: ND3
A141: G.3.7.4 | B141: CAD | C141: ND3 | D141: 0 | F141: ND3 | G141: =IF($D$155=0,"ND3",D141/$D$155) -> 0
A142: G.3.7.5 | B142: CHF | C142: ND3 | D142: 0 | F142: ND3 | G142: 0
A143: G.3.7.6 | B143: CZK | C143: ND3 | D143: 0 | F143: ND3 | G143: 0
A144: G.3.7.7 | B144: DKK | C144: ND3 | D144: 0 | F144: ND3 | G144: 0
A145: G.3.7.8 | B145: GBP | C145: ND3 | D145: 0 | F145: ND3 | G145: 0
A146: G.3.7.9 | B146: HKD | C146: ND3 | D146: 0 | F146: ND3 | G146: 0
A147: G.3.7.10 | B147: JPY | C147: ND3 | D147: 0 | F147: ND3 | G147: 0
A148: G.3.7.11 | B148: KRW | C148: ND3 | D148: 0 | F148: ND3 | G148: ND3
A149: G.3.7.12 | B149: NOK | C149: ND3 | D149: 0 | F149: ND3 | G149: =IF($D$155=0,"ND3",D149/$D$155) -> 0
A150: G.3.7.13 | B150: PLN | C150: ND3 | D150: 0 | F150: ND3 | G150: ND3
A151: G.3.7.14 | B151: SEK | C151: ND3 | D151: 0 | F151: ND3 | G151: =IF($D$155=0,"ND3",D151/$D$155) -> 0
A152: G.3.7.15 | B152: SGD | C152: ND3 | D152: 0 | F152: ND3 | G152: ND3
A153: G.3.7.16 | B153: USD | C153: ND3 | D153: 0 | F153: ND3 | G153: =IF($D$155=0,"ND3",D153/$D$155) -> 0
A154: G.3.7.17 | B154: Other | C154: ND3 | D154: - | F154: ND3 | G154: ND3
A155: G.3.7.18 | B155: Total | C155: =IF(NOT(SUM(C138:C154)=0),SUM(C138:C154),"ND3") -> ND3 | D155: =SUM(D138:D154) -> 13244.8 | F155: =SUM(F138:F154) -> 0 | G155: =SUM(G138:G154) -> 1
A156: OG.3.7.3 | B156: o/w [If relevant, please specify] | F156: =#VALUE! ->  | G156: 0
A157: OG.3.7.4 | B157: o/w [If relevant, please specify] | F157: =#VALUE! ->  | G157: 0
A158: OG.3.7.5 | B158: o/w [If relevant, please specify] | F158: =#VALUE! ->  | G158: 0
A159: OG.3.7.6 | B159: o/w [If relevant, please specify] | F159: =#VALUE! ->  | G159: 0
A160: OG.3.7.7 | B160: o/w [If relevant, please specify] | F160: =#VALUE! ->  | G160: 0
A161: OG.3.7.8 | B161: o/w [If relevant, please specify] | F161: =#VALUE! ->  | G161: 0
A162: OG.3.7.9 | B162: o/w [If relevant, please specify] | F162: =#VALUE! ->  | G162: 0
B163: 8. Covered Bonds - Breakdown by interest rate | C163: Nominal (mn) | D163: Nominal [after hedging] (mn) | F163: % Total [before] | G163: % Total [after]
A164: G.3.8.1 | B164: Fixed coupon | C164: ND1 | D164: 10436.9024 | F164: ND1 | G164: =D164/D167 -> 0.788
A165: G.3.8.2 | B165: Floating coupon | C165: ND1 | D165: =C39-D164 -> 2807.8976 | F165: ND1 | G165: =D165/D167 -> 0.212
A166: G.3.8.3 | B166: Other | C166: ND1 | D166: 0 | F166: ND1
A167: G.3.8.4 | B167: Total | C167: ND1 | D167: =SUM(D164:D166) -> 13244.8 | F167: ND1 | G167: =SUM(G164:G166) -> 1
A168: OG.3.8.1
A169: OG.3.8.2
A170: OG.3.8.3
A171: OG.3.8.4
A172: OG.3.8.5
B173: 9. Substitute Assets - Type | C173: Nominal (mn) | F173: % Substitute Assets
A174: G.3.9.1 | B174: Cash | C174: ND1 | F174: ND1
A175: G.3.9.2 | B175: Exposures to/guaranteed by Supranational, Sovereign, Agency (SSA) | C175: 56 | F175: =IF(C175="ND1","ND1",C175/$C$179) -> 0.161849711
A176: G.3.9.3 | B176: Exposures to central banks | C176: ND3 | F176: =IF(C176="ND3","ND3",C176/$C$179) -> ND3
A177: G.3.9.4 | B177: Exposures to credit institutions (inkl Central Banks) | C177: 290 | F177: =IF($C$179=0,"",IF(C177="[for completion]","",C177/$C$179)) -> 0.838150289
A178: G.3.9.5 | B178: Other | C178: ND1 | F178: =IF(C178="ND1","ND1",C178/$C$179) -> ND1
A179: G.3.9.6 | B179: Total | C179: =SUM(C174:C178) -> 346 | F179: =SUM(F174:F178) -> 1
A180: OG.3.9.1 | B180: o/w EU gvts or quasi govts | F180: =IF($C$179=0,"",IF(C180="[for completion]","",C180/$C$179)) -> 0
A181: OG.3.9.2 | B181: o/w third-party countries Credit Quality Step 1 (CQS1) gvts or quasi govts | F181: 0
A182: OG.3.9.3 | B182: o/w third-party countries Credit Quality Step 2 (CQS2) gvts or quasi govts | F182: 0
A183: OG.3.9.4 | B183: o/w EU central banks | F183: 0
A184: OG.3.9.5 | B184: o/w third-party countries Credit Quality Step 1 (CQS1) central banks | F184: 0
A185: OG.3.9.6 | B185: o/w third-party countries Credit Quality Step 2 (CQS2) central banks | F185: 0
A186: OG.3.9.7 | B186: o/w CQS1 credit institutions | C186: 130 | F186: 0.3757225434
A187: OG.3.9.8 | B187: o/w CQS2 credit institutions | C187: 160 | F187: 0.4624277457
A188: OG.3.9.9
A189: OG.3.9.10
A190: OG.3.9.11
A191: OG.3.9.12 | F191: =IF($C$179=0,"",IF(C191="[for completion]","",C191/$C$179)) -> 0
B192: 10. Substitute Assets - Country | C192: Nominal (mn) | F192: % Substitute Assets
A193: G.3.10.1 | B193: Domestic (Country of Issuer) | C193: 322 | F193: =IF($C$208=0,"",IF(C193="[for completion]","",C193/$C$208)) -> 0.9306358382
A194: G.3.10.2 | B194: Eurozone | C194: 0 | F194: 0
A195: G.3.10.3 | B195: Rest of European Union (EU) | C195: 24 | F195: 0.06936416185
A196: G.3.10.4 | B196: European Economic Area (not member of EU) | C196: 0 | F196: 0
A197: G.3.10.5 | B197: Switzerland | C197: 0 | F197: 0
A198: G.3.10.6 | B198: Australia | C198: 0 | F198: 0
A199: G.3.10.7 | B199: Brazil | C199: 0 | F199: 0
A200: G.3.10.8 | B200: Canada | C200: 0 | F200: 0
A201: G.3.10.9 | B201: Japan | C201: 0 | F201: 0
A202: G.3.10.10 | B202: Korea | C202: 0 | F202: 0
A203: G.3.10.11 | B203: New Zealand | C203: 0 | F203: 0
A204: G.3.10.12 | B204: Singapore | C204: 0 | F204: 0
A205: G.3.10.13 | B205: US | C205: 0 | F205: 0
... 160 more rows

Sheet A. HTT General P (hidden)
A1: A. Harmonised Transparency Template - General Information Public Pool
B3: Reporting in Domestic Currency | C3: EURO
B5: CONTENT OF TAB A
B6: 1. Basic Facts
B7: 2. Regulatory Summary
B8: 3. General Cover Pool / Covered Bond Information | F8: `
B9: 4. References to Capital Requirements Regulation (CRR) 129(7)
B10: 5. References to Capital Requirements Regulation (CRR) 129(1)
B11: 6. Other relevant information
A13: Field Number | B13: 1. Basic Facts
A14: G.1.1.1 | B14: Country | C14: Germany
A15: G.1.1.2 | B15: Issuer Name
A16: G.1.1.3 | B16: Link to Issuer's Website
A17: G.1.1.4 | B17: Cut-off date
A18: OG.1.1.1 | B18: Optional information e.g. Contact names
A19: OG.1.1.2 | B19: Optional information e.g. Parent name
A20: OG.1.1.3
A21: OG.1.1.4
A22: OG.1.1.5
A23: OG.1.1.6
A24: OG.1.1.7
A25: OG.1.1.8
B26: 2. Regulatory Summary
A27: G.2.1.1 | B27: UCITS Compliance (Y/N) | C27: Y
A28: G.2.1.2 | B28: CRR Compliance (Y/N) | C28: Y
A29: G.2.1.3 | B29: LCR status | C29: [Insert link to the issuer's profile on the Covered Bond Label website]
A30: OG.2.1.1
A31: OG.2.1.2
A32: OG.2.1.3
A33: OG.2.1.4
A34: OG.2.1.5
A35: OG.2.1.6
B36: 3. General Cover Pool / Covered Bond Information
B37: 1.General Information | C37: Nominal (mn)
A38: G.3.1.1 | B38: Total Cover Assets | C38: 0
A39: G.3.1.2 | B39: Outstanding Covered Bonds | C39: 0
A40: OG.3.1.1 | B40: Cover Pool Size [NPV] (mn) | C40: 0
A41: OG.3.1.2 | B41: Outstanding Covered Bonds [NPV] (mn) | C41: 0
A42: OG.3.1.3
A43: OG.3.1.4
B44: 2. Over-collateralisation (OC) | C44: Legal / Regulatory | D44: Actual | F44: Minimum Committed | G44: Purpose
A45: G.3.2.1 | B45: OC (%) | D45: 0 | F45: ND1 | G45: ND1
A46: OG.3.2.1 | B46: Optional information e.g. Asset Coverage Test (ACT)
A47: OG.3.2.2 | B47: Optional information e.g. OC (NPV basis) | C47: 0.02
A48: OG.3.2.3
A49: OG.3.2.4
A50: OG.3.2.5
A51: OG.3.2.6
B52: 3. Cover Pool Composition | C52: Nominal (mn) | F52: % Cover Pool
A53: G.3.3.1 | B53: Mortgages | F53: =IF($C$58=0,"",IF(C53="[for completion]","",C53/$C$58)) -> 
A54: G.3.3.2 | B54: Public Sector | C54: 0 | F54: =IF($C$58=0,"",IF(C54="[for completion]","",C54/$C$58)) -> 
A55: G.3.3.3 | B55: Shipping | F55: =IF($C$58=0,"",IF(C55="[for completion]","",C55/$C$58)) -> 
A56: G.3.3.4 | B56: Substitute Assets | C56: 0 | F56: =IF($C$58=0,"",IF(C56="[for completion]","",C56/$C$58)) -> 
A57: G.3.3.5 | B57: Other (Derivates) | C57: 0 | F57: =IF($C$58=0,"",IF(C57="[for completion]","",C57/$C$58)) -> 
A58: G.3.3.6 | B58: Total | C58: =SUM(C53:C57) -> 0 | F58: =SUM(F53:F57) -> 0
A59: OG.3.3.1 | B59: o/w [If relevant, please specify] | F59: 0
A60: OG.3.3.2 | B60: o/w [If relevant, please specify] | F60: 0
A61: OG.3.3.3 | B61: o/w [If relevant, please specify] | F61: 0
A62: OG.3.3.4 | B62: o/w [If relevant, please specify] | F62: 0
A63: OG.3.3.5 | B63: o/w [If relevant, please specify] | F63: 0
A64: OG.3.3.6 | B64: o/w [If relevant, please specify] | F64: 0
B65: 4. Cover Pool Amortisation Profile | C65: Contractual (mn) | D65: Expected (mn) | F65: % Total Contractual | G65: % Total Expected
A66: G.3.4.1 | B66: Weighted Average life (in years) | C66: - | D66: ND1
A68: G.3.4.2 | B68: Residual Life (mn)
B69: By buckets:
A70: G.3.4.2 | B70: 0 - 1 Y | C70: =SUM(C79:C80) -> 0 | D70: ND1 | F70: =IF($C$77=0,"",IF(C70="[for completion]","",C70/$C$77)) ->  | G70: =IF($D$77=0,"",IF(D70="[Mark as ND1 if not relevant]","",D70/$D$77)) -> 
A71: G.3.4.3 | B71: 1 - 2 Y | C71: =SUM(C81:C82) -> 0 | D71: ND1
A72: G.3.4.4 | B72: 2 - 3 Y | D72: ND1
A73: G.3.4.5 | B73: 3 - 4 Y | D73: ND1
A74: G.3.4.6 | B74: 4 - 5 Y | D74: ND1
A75: G.3.4.7 | B75: 5 - 10 Y | D75: ND1
A76: G.3.4.8 | B76: 10+ Y | D76: ND1
A77: G.3.4.9 | B77: Total | C77: =SUM(C70:C76) -> 0 | D77: 0 | F77: =SUM(F70:F76) -> 0 | G77: =SUM(G70:G76) -> 0
A78: OG.3.4.1 | B78: o/w 0-1 day | F78: =IF($C$77=0,"",IF(C78="[for completion]","",C78/$C$77)) ->  | G78: =IF($D$77=0,"",IF(D78="[for completion]","",D78/$D$77)) -> 
A79: OG.3.4.2 | B79: o/w 0-0.5y | F79: =IF($C$77=0,"",IF(C79="[for completion]","",C79/$C$77)) ->  | G79: =IF($D$77=0,"",IF(D79="[for completion]","",D79/$D$77)) -> 
A80: OG.3.4.3 | B80: o/w 0.5-1 y | F80: =IF($C$77=0,"",IF(C80="[for completion]","",C80/$C$77)) ->  | G80: =IF($D$77=0,"",IF(D80="[for completion]","",D80/$D$77)) -> 
A81: OG.3.4.4 | B81: o/w 1-1.5y | F81: =IF($C$77=0,"",IF(C81="[for completion]","",C81/$C$77)) ->  | G81: =IF($D$77=0,"",IF(D81="[for completion]","",D81/$D$77)) -> 
A82: OG.3.4.5 | B82: o/w 1.5-2 y | F82: =IF($C$77=0,"",IF(C82="[for completion]","",C82/$C$77)) ->  | G82: =IF($D$77=0,"",IF(D82="[for completion]","",D82/$D$77)) -> 
A83: OG.3.4.6
A84: OG.3.4.7
A85: OG.3.4.8
A86: OG.3.4.9 | F86: =IF($C$77=0,"",IF(C86="[for completion]","",C86/$C$77)) ->  | G86: =IF($D$77=0,"",IF(D86="[for completion]","",D86/$D$77)) -> 
A87: OG.3.4.10 | F87: =IF($C$77=0,"",IF(C87="[for completion]","",C87/$C$77)) ->  | G87: =IF($D$77=0,"",IF(D87="[for completion]","",D87/$D$77)) -> 
B88: 5. Maturity of Covered Bonds | C88: Initial Maturity (mn) | D88: Extended Maturity (mn) | F88: % Total Initial Maturity | G88: % Total Extended Maturity
A89: G.3.5.1 | B89: Weighted Average life (in years) | C89: - | D89: ND1
A91: G.3.5.2 | B91: Maturity (mn)
A92: G.3.5.2 | B92: By buckets:
A93: G.3.5.3 | B93: 0 - 1 Y | C93: =SUM(C102:C103) -> 0 | D93: ND1 | F93: =IF($C$100=0,"",IF(C93="[for completion]","",C93/$C$100)) ->  | G93: =IF($D$100=0,"",IF(D93="[Mark as ND1 if not relevant]","",D93/$D$100)) -> 
A94: G.3.5.4 | B94: 1 - 2 Y | C94: =SUM(C104:C105) -> 0 | D94: ND1
A95: G.3.5.5 | B95: 2 - 3 Y | D95: ND1
A96: G.3.5.6 | B96: 3 - 4 Y | D96: ND1
A97: G.3.5.7 | B97: 4 - 5 Y | D97: ND1
A98: G.3.5.8 | B98: 5 - 10 Y | D98: ND1
A99: G.3.5.9 | B99: 10+ Y | D99: ND1
A100: G.3.5.10 | B100: Total | C100: =SUM(C93:C99) -> 0 | D100: =SUM(D93:D99) -> 0 | F100: =SUM(F93:F99) -> 0 | G100: =SUM(G93:G99) -> 0
A101: OG.3.5.1 | B101: o/w 0-1 day | F101: =IF($C$100=0,"",IF(C101="[for completion]","",C101/$C$100)) ->  | G101: =IF($D$100=0,"",IF(D101="[for completion]","",D101/$D$100)) -> 
A102: OG.3.5.2 | B102: o/w 0-0.5y | F102: =IF($C$100=0,"",IF(C102="[for completion]","",C102/$C$100)) ->  | G102: =IF($D$100=0,"",IF(D102="[for completion]","",D102/$D$100)) -> 
A103: OG.3.5.3 | B103: o/w 0.5-1 y | F103: =IF($C$100=0,"",IF(C103="[for completion]","",C103/$C$100)) ->  | G103: =IF($D$100=0,"",IF(D103="[for completion]","",D103/$D$100)) -> 
A104: OG.3.5.4 | B104: o/w 1-1.5y | F104: =IF($C$100=0,"",IF(C104="[for completion]","",C104/$C$100)) ->  | G104: =IF($D$100=0,"",IF(D104="[for completion]","",D104/$D$100)) -> 
A105: OG.3.5.5 | B105: o/w 1.5-2 y | F105: =IF($C$100=0,"",IF(C105="[for completion]","",C105/$C$100)) ->  | G105: =IF($D$100=0,"",IF(D105="[for completion]","",D105/$D$100)) -> 
A106: OG.3.5.6
A107: OG.3.5.7
A108: OG.3.5.8 | F108: =IF($C$100=0,"",IF(C108="[for completion]","",C108/$C$100)) ->  | G108: =IF($D$100=0,"",IF(D108="[for completion]","",D108/$D$100)) -> 
A109: OG.3.5.9 | F109: =IF($C$100=0,"",IF(C109="[for completion]","",C109/$C$100)) ->  | G109: =IF($D$100=0,"",IF(D109="[for completion]","",D109/$D$100)) -> 
A110: OG.3.5.10 | F110: =IF($C$100=0,"",IF(C110="[for completion]","",C110/$C$100)) ->  | G110: =IF($D$100=0,"",IF(D110="[for completion]","",D110/$D$100)) -> 
B111: 6. Covered Assets - Currency | C111: Nominal [before hedging] (mn) | D111: Nominal [after hedging] (mn) | F111: % Total [before] | G111: % Total [after]
A112: G.3.6.1 | B112: EUR | D112: 0 | F112: =IF(C112="ND3","ND3",C112/$C$127) ->  | G112: =IF($D$127=0,"",IF(D112="[for completion]","",D112/$D$127)) -> 
A113: G.3.6.2 | B113: USD | C113: ND3 | D113: 0 | F113: ND3
A114: G.3.6.3 | B114: GBP | C114: ND3 | D114: 0 | F114: ND3
A115: G.3.6.4 | B115: JPY | C115: ND3 | D115: 0 | F115: ND3
A116: G.3.6.5 | B116: CHF | C116: ND3 | D116: 0 | F116: ND3
A117: G.3.6.6 | B117: AUD | C117: ND3 | D117: 0 | F117: ND3
A118: G.3.6.7 | B118: CAD | C118: ND3 | D118: 0 | F118: ND3
A119: G.3.6.8 | B119: BRL | C119: ND3 | D119: 0 | F119: ND3
A120: G.3.6.9 | B120: CZK | C120: ND3 | D120: 0 | F120: ND3 | G120: =IF($D$127=0,"",IF(D120="[for completion]","",D120/$D$127)) -> 
A121: G.3.6.10 | B121: DKK | C121: ND3 | D121: 0 | F121: ND3 | G121: =IF($D$127=0,"",IF(D121="[for completion]","",D121/$D$127)) -> 
A122: G.3.6.11 | B122: HKD | C122: ND3 | D122: 0 | F122: ND3 | G122: =IF($D$127=0,"",IF(D122="[for completion]","",D122/$D$127)) -> 
A123: G.3.6.12 | B123: KRW | C123: ND3 | D123: 0 | F123: ND3
A124: G.3.6.13 | B124: SEK | C124: ND3 | D124: 0 | F124: ND3 | G124: =IF($D$127=0,"",IF(D124="[for completion]","",D124/$D$127)) -> 
A125: G.3.6.14 | B125: SGD | C125: ND3 | D125: 0 | F125: ND3
A126: G.3.6.15 | B126: Other (NOK) | C126: ND3 | D126: 0 | F126: ND3 | G126: =IF($D$127=0,"",IF(D126="[for completion]","",D126/$D$127)) -> 
A127: G.3.6.16 | B127: Total | C127: =IF(NOT(SUM(C112:C126)=0),SUM(C112:C126),"ND3") -> ND3 | D127: =SUM(D112:D126) -> 0 | F127: ND3 | G127: =SUM(G112:G126) -> 0
A128: OG.3.6.1 | B128: o/w [If relevant, please specify] | F128: =#VALUE! ->  | G128: 0
A129: OG.3.6.2 | B129: o/w [If relevant, please specify] | F129: =#VALUE! ->  | G129: 0
A130: OG.3.6.3 | B130: o/w [If relevant, please specify] | F130: =#VALUE! ->  | G130: 0
A131: OG.3.6.4 | B131: o/w [If relevant, please specify] | F131: =#VALUE! ->  | G131: 0
A132: OG.3.6.5 | B132: o/w [If relevant, please specify] | F132: =#VALUE! ->  | G132: 0
A133: OG.3.6.6 | B133: o/w [If relevant, please specify] | F133: =#VALUE! ->  | G133: 0
A134: OG.3.6.7 | B134: o/w [If relevant, please specify] | F134: =#VALUE! ->  | G134: 0
A135: OG.3.6.8 | B135: o/w [If relevant, please specify] | F135: =#VALUE! ->  | G135: 0
A136: OG.3.6.9 | B136: o/w [If relevant, please specify] | F136: =#VALUE! ->  | G136: 0
B137: 7. Covered Bonds - Currency | C137: Nominal [before hedging] (mn) | D137: Nominal [after hedging] (mn) | F137: % Total [before] | G137: % Total [after]
A138: G.3.7.1 | B138: EUR | C138: ND3 | D138: 0 | F138: =IF(C138="ND3","ND3",C138/$C$153) -> ND3 | G138: =IF($D$153=0,"",IF(D138="[for completion]","",D138/$D$153)) -> 
A139: G.3.7.2 | B139: USD | C139: ND3 | D139: 0 | F139: ND3
A140: G.3.7.3 | B140: GBP | C140: ND3 | D140: 0 | F140: ND3
A141: G.3.7.4 | B141: JPY | C141: ND3 | D141: 0 | F141: ND3
A142: G.3.7.5 | B142: CHF | C142: ND3 | D142: 0 | F142: ND3
A143: G.3.7.6 | B143: AUD | C143: ND3 | D143: 0 | F143: ND3
A144: G.3.7.7 | B144: CAD | C144: ND3 | D144: 0 | F144: ND3
A145: G.3.7.8 | B145: BRL | C145: ND3 | D145: 0 | F145: ND3
A146: G.3.7.9 | B146: CZK | C146: ND3 | D146: 0 | F146: ND3 | G146: =IF($D$153=0,"",IF(D146="[for completion]","",D146/$D$153)) -> 
A147: G.3.7.10 | B147: DKK | C147: ND3 | D147: 0 | F147: ND3 | G147: =IF($D$153=0,"",IF(D147="[for completion]","",D147/$D$153)) -> 
A148: G.3.7.11 | B148: HKD | C148: ND3 | D148: 0 | F148: ND3 | G148: =IF($D$153=0,"",IF(D148="[for completion]","",D148/$D$153)) -> 
A149: G.3.7.12 | B149: KRW | C149: ND3 | D149: 0 | F149: ND3
A150: G.3.7.13 | B150: SEK | C150: ND3 | D150: 0 | F150: ND3 | G150: =IF($D$153=0,"",IF(D150="[for completion]","",D150/$D$153)) -> 
A151: G.3.7.14 | B151: SGD | C151: ND3 | D151: 0 | F151: ND3
A152: G.3.7.15 | B152: Other (NOK) | C152: ND3 | D152: 0 | F152: ND3 | G152: =IF($D$153=0,"",IF(D152="[for completion]","",D152/$D$153)) -> 
A153: G.3.7.16 | B153: Total | C153: =IF(NOT(SUM(C138:C152)=0),SUM(C138:C152),"ND3") -> ND3 | D153: =SUM(D138:D152) -> 0 | F153: ND3 | G153: =SUM(G138:G152) -> 0
A154: OG.3.7.1 | B154: o/w [If relevant, please specify] | F154: =#VALUE! ->  | G154: 0
A155: OG.3.7.2 | B155: o/w [If relevant, please specify] | F155: =#VALUE! ->  | G155: 0
A156: OG.3.7.3 | B156: o/w [If relevant, please specify] | F156: =#VALUE! ->  | G156: 0
A157: OG.3.7.4 | B157: o/w [If relevant, please specify] | F157: =#VALUE! ->  | G157: 0
A158: OG.3.7.5 | B158: o/w [If relevant, please specify] | F158: =#VALUE! ->  | G158: 0
A159: OG.3.7.6 | B159: o/w [If relevant, please specify] | F159: =#VALUE! ->  | G159: 0
A160: OG.3.7.7 | B160: o/w [If relevant, please specify] | F160: =#VALUE! ->  | G160: 0
A161: OG.3.7.8 | B161: o/w [If relevant, please specify] | F161: =#VALUE! ->  | G161: 0
A162: OG.3.7.9 | B162: o/w [If relevant, please specify] | F162: =#VALUE! ->  | G162: 0
B163: 8. Covered Bonds - Breakdown by interest rate | C163: Nominal (mn) | D163: Nominal [after hedging] (mn) | F163: % Total [before] | G163: % Total [after]
A164: G.3.8.1 | B164: Fixed coupon | C164: ND1 | D164: 0 | F164: ND1 | G164: =D164/D167 -> 
A165: G.3.8.2 | B165: Floating coupon | C165: ND1 | D165: =C39-D164 -> 0 | F165: ND1 | G165: =D165/D167 -> 
A166: G.3.8.3 | B166: Other | C166: ND1 | F166: ND1
A167: G.3.8.4 | B167: Total | C167: ND1 | D167: =SUM(D164:D166) -> 0 | F167: ND1 | G167: =SUM(G164:G166) -> 
A168: OG.3.8.1
A169: OG.3.8.2
A170: OG.3.8.3
A171: OG.3.8.4
A172: OG.3.8.5
B173: 9. Substitute Assets - Type | C173: Nominal (mn) | F173: % Substitute Assets
A174: G.3.9.1 | B174: Cash | C174: ND1 | F174: ND1
A175: G.3.9.2 | B175: Exposures to/guaranteed by Supranational, Sovereign, Agency (SSA) | C175: ND1 | F175: ND1
A176: G.3.9.3 | B176: Exposures to central banks | C176: ND3
A177: G.3.9.4 | B177: Exposures to credit institutions (inkl Central Banks) | C177: 0 | F177: =IF($C$179=0,"",IF(C177="[for completion]","",C177/$C$179)) -> 
A178: G.3.9.5 | B178: Other | C178: ND1 | F178: ND1
A179: G.3.9.6 | B179: Total | C179: =SUM(C174:C178) -> 0 | F179: =SUM(F174:F178) -> 0
A180: OG.3.9.1 | B180: o/w EU gvts or quasi govts | F180: =IF($C$179=0,"",IF(C180="[for completion]","",C180/$C$179)) -> 
A181: OG.3.9.2 | B181: o/w third-party countries Credit Quality Step 1 (CQS1) gvts or quasi govts
A182: OG.3.9.3 | B182: o/w third-party countries Credit Quality Step 2 (CQS2) gvts or quasi govts
A183: OG.3.9.4 | B183: o/w EU central banks
A184: OG.3.9.5 | B184: o/w third-party countries Credit Quality Step 1 (CQS1) central banks
A185: OG.3.9.6 | B185: o/w third-party countries Credit Quality Step 2 (CQS2) central banks
A186: OG.3.9.7 | B186: o/w CQS1 credit institutions | C186: 0
A187: OG.3.9.8 | B187: o/w CQS2 credit institutions | C187: 0
A188: OG.3.9.9
A189: OG.3.9.10
A190: OG.3.9.11
A191: OG.3.9.12 | F191: =IF($C$179=0,"",IF(C191="[for completion]","",C191/$C$179)) -> 
B192: 10. Substitute Assets - Country | C192: Nominal (mn) | F192: % Substitute Assets
A193: G.3.10.1 | B193: Domestic (Country of Issuer) | C193: 0 | F193: =IF($C$208=0,"",IF(C193="[for completion]","",C193/$C$208)) -> 
A194: G.3.10.2 | B194: Eurozone | C194: 0
A195: G.3.10.3 | B195: Rest of European Union (EU) | C195: 0
A196: G.3.10.4 | B196: European Economic Area (not member of EU) | C196: 0
A197: G.3.10.5 | B197: Switzerland | C197: 0
A198: G.3.10.6 | B198: Australia | C198: 0
A199: G.3.10.7 | B199: Brazil | C199: 0
A200: G.3.10.8 | B200: Canada | C200: 0
A201: G.3.10.9 | B201: Japan | C201: 0
A202: G.3.10.10 | B202: Korea | C202: 0
A203: G.3.10.11 | B203: New Zealand | C203: 0
A204: G.3.10.12 | B204: Singapore | C204: 0
A205: G.3.10.13 | B205: US | C205: 0
... 160 more rows

Sheet A. HTT General S (hidden)
A1: A. Harmonised Transparency Template - General Information Shipping Pool
B3: Reporting in Domestic Currency | C3: EURO
B5: CONTENT OF TAB A
B6: 1. Basic Facts
B7: 2. Regulatory Summary
B8: 3. General Cover Pool / Covered Bond Information | F8: `
B9: 4. References to Capital Requirements Regulation (CRR) 129(7)
B10: 5. References to Capital Requirements Regulation (CRR) 129(1)
B11: 6. Other relevant information
A13: Field Number | B13: 1. Basic Facts
A14: G.1.1.1 | B14: Country | C14: Germany
A15: G.1.1.2 | B15: Issuer Name
A16: G.1.1.3 | B16: Link to Issuer's Website
A17: G.1.1.4 | B17: Cut-off date
A18: OG.1.1.1 | B18: Optional information e.g. Contact names
A19: OG.1.1.2 | B19: Optional information e.g. Parent name
A20: OG.1.1.3
A21: OG.1.1.4
A22: OG.1.1.5
A23: OG.1.1.6
A24: OG.1.1.7
A25: OG.1.1.8
B26: 2. Regulatory Summary
A27: G.2.1.1 | B27: UCITS Compliance (Y/N) | C27: Y
A28: G.2.1.2 | B28: CRR Compliance (Y/N) | C28: Y
A29: G.2.1.3 | B29: LCR status | C29: [Insert link to the issuer's profile on the Covered Bond Label website]
A30: OG.2.1.1
A31: OG.2.1.2
A32: OG.2.1.3
A33: OG.2.1.4
A34: OG.2.1.5
A35: OG.2.1.6
B36: 3. General Cover Pool / Covered Bond Information
B37: 1.General Information | C37: Nominal (mn)
A38: G.3.1.1 | B38: Total Cover Assets | C38: 0
A39: G.3.1.2 | B39: Outstanding Covered Bonds | C39: 0
A40: OG.3.1.1 | B40: Cover Pool Size [NPV] (mn) | C40: 0
A41: OG.3.1.2 | B41: Outstanding Covered Bonds [NPV] (mn) | C41: 0
A42: OG.3.1.3
A43: OG.3.1.4
B44: 2. Over-collateralisation (OC) | C44: Legal / Regulatory | D44: Actual | F44: Minimum Committed | G44: Purpose
A45: G.3.2.1 | B45: OC (%) | D45: 0 | F45: ND1 | G45: ND1
A46: OG.3.2.1 | B46: Optional information e.g. Asset Coverage Test (ACT)
A47: OG.3.2.2 | B47: Optional information e.g. OC (NPV basis) | C47: 0.02
A48: OG.3.2.3
A49: OG.3.2.4
A50: OG.3.2.5
A51: OG.3.2.6
B52: 3. Cover Pool Composition | C52: Nominal (mn) | F52: % Cover Pool
A53: G.3.3.1 | B53: Mortgages | F53: =IF($C$58=0,"",IF(C53="[for completion]","",C53/$C$58)) -> 
A54: G.3.3.2 | B54: Public Sector | F54: =IF($C$58=0,"",IF(C54="[for completion]","",C54/$C$58)) -> 
A55: G.3.3.3 | B55: Shipping | C55: 0 | F55: =IF($C$58=0,"",IF(C55="[for completion]","",C55/$C$58)) -> 
A56: G.3.3.4 | B56: Substitute Assets | C56: 0 | F56: =IF($C$58=0,"",IF(C56="[for completion]","",C56/$C$58)) -> 
A57: G.3.3.5 | B57: Other (Derivates) | C57: 0 | F57: =IF($C$58=0,"",IF(C57="[for completion]","",C57/$C$58)) -> 
A58: G.3.3.6 | B58: Total | C58: =SUM(C53:C57) -> 0 | F58: =SUM(F53:F57) -> 0
A59: OG.3.3.1 | B59: o/w [If relevant, please specify] | F59: =IF($C$58=0,"",IF(C59="[for completion]","",C59/$C$58)) -> 
A60: OG.3.3.2 | B60: o/w [If relevant, please specify]
A61: OG.3.3.3 | B61: o/w [If relevant, please specify]
A62: OG.3.3.4 | B62: o/w [If relevant, please specify]
A63: OG.3.3.5 | B63: o/w [If relevant, please specify]
A64: OG.3.3.6 | B64: o/w [If relevant, please specify]
B65: 4. Cover Pool Amortisation Profile | C65: Contractual (mn) | D65: Expected (mn) | F65: % Total Contractual | G65: % Total Expected
A66: G.3.4.1 | B66: Weighted Average life (in years) | C66: - | D66: ND1
A68: G.3.4.2 | B68: Residual Life (mn)
B69: By buckets:
A70: G.3.4.2 | B70: 0 - 1 Y | C70: =SUM(C79:C80) -> 0 | D70: ND1 | F70: =IF($C$77>0,C70/$C$77,0) -> 0
A71: G.3.4.3 | B71: 1 - 2 Y | C71: =SUM(C81:C82) -> 0 | D71: ND1 | F71: 0
A72: G.3.4.4 | B72: 2 - 3 Y | D72: ND1 | F72: 0
A73: G.3.4.5 | B73: 3 - 4 Y | D73: ND1 | F73: 0
A74: G.3.4.6 | B74: 4 - 5 Y | D74: ND1 | F74: 0
A75: G.3.4.7 | B75: 5 - 10 Y | D75: ND1 | F75: 0
A76: G.3.4.8 | B76: 10+ Y | D76: ND1 | F76: 0
A77: G.3.4.9 | B77: Total | C77: =SUM(C70:C76) -> 0 | D77: 0 | F77: 0 | G77: 0
A78: OG.3.4.1 | B78: o/w 0-1 day | F78: 0
A79: OG.3.4.2 | B79: o/w 0-0.5y | F79: 0
A80: OG.3.4.3 | B80: o/w 0.5-1 y | F80: 0
A81: OG.3.4.4 | B81: o/w 1-1.5y | F81: 0
A82: OG.3.4.5 | B82: o/w 1.5-2 y | F82: 0
A83: OG.3.4.6
A84: OG.3.4.7
A85: OG.3.4.8
A86: OG.3.4.9
A87: OG.3.4.10
B88: 5. Maturity of Covered Bonds | C88: Contractual (mn) | D88: Expected (mn) | F88: % Total Contractual | G88: % Total Expected
A89: G.3.5.1 | B89: Weighted Average life (in years) | C89: - | D89: ND1
A91: G.3.5.2 | B91: Maturity (mn)
A92: G.3.5.2 | B92: By buckets:
A93: G.3.5.3 | B93: 0 - 1 Y | C93: =SUM(C102:C103) -> 0 | D93: ND1 | F93: =IF($C$100>0,C93/$C$100,0) -> 0
A94: G.3.5.4 | B94: 1 - 2 Y | C94: =SUM(C104:C105) -> 0 | D94: ND1 | F94: 0
A95: G.3.5.5 | B95: 2 - 3 Y | D95: ND1 | F95: 0
A96: G.3.5.6 | B96: 3 - 4 Y | D96: ND1 | F96: 0
A97: G.3.5.7 | B97: 4 - 5 Y | D97: ND1 | F97: 0
A98: G.3.5.8 | B98: 5 - 10 Y | D98: ND1 | F98: 0
A99: G.3.5.9 | B99: 10+ Y | D99: ND1 | F99: 0
A100: G.3.5.10 | B100: Total | C100: =SUM(C93:C99) -> 0 | D100: 0 | F100: 0 | G100: 0
A101: OG.3.5.1 | B101: o/w 0-1 day | F101: 0
A102: OG.3.5.2 | B102: o/w 0-0.5y | F102: 0
A103: OG.3.5.3 | B103: o/w 0.5-1 y | F103: 0
A104: OG.3.5.4 | B104: o/w 1-1.5y | F104: 0
A105: OG.3.5.5 | B105: o/w 1.5-2 y | F105: 0
A106: OG.3.5.6
A107: OG.3.5.7
A108: OG.3.5.8
A109: OG.3.5.9
A110: OG.3.5.10
B111: 6. Covered Assets - Currency | C111: Nominal [before hedging] (mn) | D111: Nominal [after hedging] (mn) | F111: % Total [before] | G111: % Total [after]
A112: G.3.6.1 | B112: EUR | C112: ND3 | D112: 0 | F112: =IF(C112="ND3","ND3",C112/$C$127) -> ND3 | G112: =IF($D$127=0,"",IF(D112="[for completion]","",D112/$D$127)) -> 
A113: G.3.6.2 | B113: USD | C113: ND3 | D113: 0 | F113: ND3
A114: G.3.6.3 | B114: GBP | C114: ND3 | D114: 0 | F114: ND3
A115: G.3.6.4 | B115: JPY | C115: ND3 | D115: 0 | F115: ND3
A116: G.3.6.5 | B116: CHF | C116: ND3 | D116: 0 | F116: ND3
A117: G.3.6.6 | B117: AUD | C117: ND3 | D117: 0 | F117: ND3
A118: G.3.6.7 | B118: CAD | C118: ND3 | D118: 0 | F118: ND3
A119: G.3.6.8 | B119: BRL | C119: ND3 | D119: 0 | F119: ND3 | G119: 0
A120: G.3.6.9 | B120: CZK | C120: ND3 | D120: 0 | F120: ND3 | G120: =IF($D$127=0,"",IF(D120="[for completion]","",D120/$D$127)) -> 
A121: G.3.6.10 | B121: DKK | C121: ND3 | D121: 0 | F121: ND3 | G121: =IF($D$127=0,"",IF(D121="[for completion]","",D121/$D$127)) -> 
A122: G.3.6.11 | B122: HKD | C122: ND3 | D122: 0 | F122: ND3 | G122: =IF($D$127=0,"",IF(D122="[for completion]","",D122/$D$127)) -> 
A123: G.3.6.12 | B123: KRW | C123: ND3 | D123: 0 | F123: ND3 | G123: 0
A124: G.3.6.13 | B124: SEK | C124: ND3 | D124: 0 | F124: ND3 | G124: =IF($D$127=0,"",IF(D124="[for completion]","",D124/$D$127)) -> 
A125: G.3.6.14 | B125: SGD | C125: ND3 | D125: 0 | F125: ND3 | G125: 0
A126: G.3.6.15 | B126: Other (NOK) | C126: ND3 | D126: 0 | F126: ND3 | G126: =IF($D$127=0,"",IF(D126="[for completion]","",D126/$D$127)) -> 
A127: G.3.6.16 | B127: Total | C127: =IF(NOT(SUM(C112:C126)=0),SUM(C112:C126),"ND3") -> ND3 | D127: =SUM(D112:D126) -> 0 | F127: ND3 | G127: =SUM(G112:G126) -> 0
A128: OG.3.6.1 | B128: o/w [If relevant, please specify] | F128: =#VALUE! -> 
A129: OG.3.6.2 | B129: o/w [If relevant, please specify] | F129: =#VALUE! -> 
A130: OG.3.6.3 | B130: o/w [If relevant, please specify] | F130: =#VALUE! -> 
A131: OG.3.6.4 | B131: o/w [If relevant, please specify] | F131: =#VALUE! -> 
A132: OG.3.6.5 | B132: o/w [If relevant, please specify] | F132: =#VALUE! -> 
A133: OG.3.6.6 | B133: o/w [If relevant, please specify] | F133: =#VALUE! -> 
A134: OG.3.6.7 | B134: o/w [If relevant, please specify] | F134: =#VALUE! -> 
A135: OG.3.6.8 | B135: o/w [If relevant, please specify] | F135: =#VALUE! -> 
A136: OG.3.6.9 | B136: o/w [If relevant, please specify] | F136: =#VALUE! -> 
B137: 7. Covered Bonds - Currency | C137: Nominal [before hedging] (mn) | D137: Nominal [after hedging] (mn) | F137: % Total [before] | G137: % Total [after]
A138: G.3.7.1 | B138: EUR | C138: ND3 | D138: 0 | F138: =IF(C138="ND3","ND3",C138/$C$153) -> ND3 | G138: =IF($D$153=0,"",IF(D138="[for completion]","",D138/$D$153)) -> 
A139: G.3.7.2 | B139: USD | C139: ND3 | D139: 0 | F139: ND3
A140: G.3.7.3 | B140: GBP | C140: ND3 | D140: 0 | F140: ND3
A141: G.3.7.4 | B141: JPY | C141: ND3 | D141: 0 | F141: ND3
A142: G.3.7.5 | B142: CHF | C142: ND3 | D142: 0 | F142: ND3
A143: G.3.7.6 | B143: AUD | C143: ND3 | D143: 0 | F143: ND3
A144: G.3.7.7 | B144: CAD | C144: ND3 | D144: 0 | F144: ND3
A145: G.3.7.8 | B145: BRL | C145: ND3 | D145: 0 | F145: ND3 | G145: 0
A146: G.3.7.9 | B146: CZK | C146: ND3 | D146: 0 | F146: ND3 | G146: =IF($D$153=0,"",IF(D146="[for completion]","",D146/$D$153)) -> 
A147: G.3.7.10 | B147: DKK | C147: ND3 | D147: 0 | F147: ND3 | G147: =IF($D$153=0,"",IF(D147="[for completion]","",D147/$D$153)) -> 
A148: G.3.7.11 | B148: HKD | C148: ND3 | D148: 0 | F148: ND3 | G148: =IF($D$153=0,"",IF(D148="[for completion]","",D148/$D$153)) -> 
A149: G.3.7.12 | B149: KRW | C149: ND3 | D149: 0 | F149: ND3 | G149: 0
A150: G.3.7.13 | B150: SEK | C150: ND3 | D150: 0 | F150: ND3 | G150: =IF($D$153=0,"",IF(D150="[for completion]","",D150/$D$153)) -> 
A151: G.3.7.14 | B151: SGD | C151: ND3 | D151: 0 | F151: ND3 | G151: 0
A152: G.3.7.15 | B152: Other (NOK) | C152: ND3 | D152: 0 | F152: ND3 | G152: =IF($D$153=0,"",IF(D152="[for completion]","",D152/$D$153)) -> 
A153: G.3.7.16 | B153: Total | C153: =IF(NOT(SUM(C138:C152)=0),SUM(C138:C152),"ND3") -> ND3 | D153: =SUM(D138:D152) -> 0 | F153: ND3 | G153: =SUM(G138:G152) -> 0
A154: OG.3.7.1 | B154: o/w [If relevant, please specify] | F154: =#VALUE! -> 
A155: OG.3.7.2 | B155: o/w [If relevant, please specify] | F155: =#VALUE! -> 
A156: OG.3.7.3 | B156: o/w [If relevant, please specify] | F156: =#VALUE! -> 
A157: OG.3.7.4 | B157: o/w [If relevant, please specify] | F157: =#VALUE! -> 
A158: OG.3.7.5 | B158: o/w [If relevant, please specify] | F158: =#VALUE! -> 
A159: OG.3.7.6 | B159: o/w [If relevant, please specify] | F159: =#VALUE! -> 
A160: OG.3.7.7 | B160: o/w [If relevant, please specify] | F160: =#VALUE! -> 
A161: OG.3.7.8 | B161: o/w [If relevant, please specify] | F161: =#VALUE! -> 
A162: OG.3.7.9 | B162: o/w [If relevant, please specify] | F162: =#VALUE! -> 
B163: 8. Covered Bonds - Breakdown by interest rate | C163: Nominal (mn) | D163: Nominal [after hedging] (mn) | F163: % Total [before] | G163: % Total [after]
A164: G.3.8.1 | B164: Fixed coupon | C164: ND1 | D164: 0 | F164: ND1 | G164: =D164/D167 -> 
A165: G.3.8.2 | B165: Floating coupon | C165: ND1 | D165: =C39-D164 -> 0 | F165: ND1 | G165: =D165/D167 -> 
A166: G.3.8.3 | B166: Other | C166: ND1 | D166: 0 | F166: ND1
A167: G.3.8.4 | B167: Total | C167: ND1 | D167: =SUM(D164:D166) -> 0 | F167: ND1 | G167: =SUM(G164:G166) -> 
A168: OG.3.8.1
A169: OG.3.8.2
A170: OG.3.8.3
A171: OG.3.8.4
A172: OG.3.8.5
B173: 9. Substitute Assets - Type | C173: Nominal (mn) | F173: % Substitute Assets
A174: G.3.9.1 | B174: Cash | C174: ND1 | F174: ND1
A175: G.3.9.2 | B175: Exposures to/guaranteed by Supranational, Sovereign, Agency (SSA) | C175: 0 | F175: =IF($C$179=0,"",IF(C175="[for completion]","",C175/$C$179)) -> 
A176: G.3.9.3 | B176: Exposures to central banks | C176: ND3
A177: G.3.9.4 | B177: Exposures to credit institutions (inkl Central Banks) | C177: 0 | F177: =IF($C$179=0,"",IF(C177="[for completion]","",C177/$C$179)) -> 
A178: G.3.9.5 | B178: Other | C178: ND1 | F178: ND1
A179: G.3.9.6 | B179: Total | C179: =SUM(C174:C178) -> 0 | F179: =SUM(F174:F178) -> 0
A180: OG.3.9.1 | B180: o/w EU gvts or quasi govts | F180: =IF($C$179=0,"",IF(C180="[for completion]","",C180/$C$179)) -> 
A181: OG.3.9.2 | B181: o/w third-party countries Credit Quality Step 1 (CQS1) gvts or quasi govts
A182: OG.3.9.3 | B182: o/w third-party countries Credit Quality Step 2 (CQS2) gvts or quasi govts
A183: OG.3.9.4 | B183: o/w EU central banks
A184: OG.3.9.5 | B184: o/w third-party countries Credit Quality Step 1 (CQS1) central banks
A185: OG.3.9.6 | B185: o/w third-party countries Credit Quality Step 2 (CQS2) central banks
A186: OG.3.9.7 | B186: o/w CQS1 credit institutions | C186: 0
A187: OG.3.9.8 | B187: o/w CQS2 credit institutions | C187: 0
A188: OG.3.9.9
A189: OG.3.9.10
A190: OG.3.9.11
A191: OG.3.9.12 | F191: =IF($C$179=0,"",IF(C191="[for completion]","",C191/$C$179)) -> 
B192: 10. Substitute Assets - Country | C192: Nominal (mn) | F192: % Substitute Assets
A193: G.3.10.1 | B193: Domestic (Country of Issuer) | C193: 0 | F193: =IF($C$208=0,"",IF(C193="[for completion]","",C193/$C$208)) -> 
A194: G.3.10.2 | B194: Eurozone | C194: 0
A195: G.3.10.3 | B195: Rest of European Union (EU) | C195: 0
A196: G.3.10.4 | B196: European Economic Area (not member of EU) | C196: 0
A197: G.3.10.5 | B197: Switzerland | C197: 0
A198: G.3.10.6 | B198: Australia | C198: 0
A199: G.3.10.7 | B199: Brazil | C199: 0
A200: G.3.10.8 | B200: Canada | C200: 0
A201: G.3.10.9 | B201: Japan | C201: 0
A202: G.3.10.10 | B202: Korea | C202: 0
A203: G.3.10.11 | B203: New Zealand | C203: 0
A204: G.3.10.12 | B204: Singapore | C204: 0
A205: G.3.10.13 | B205: US | C205: 0
... 160 more rows

Sheet B1. HTT Mortgage Assets
A1: B1. Harmonised Transparency Template - Mortgage Assets
B3: Reporting in Domestic Currency | C3: EURO
B5: CONTENT OF TAB B1
B6: 7. Mortgage Assets
B7: 7.A Residential Cover Pool
B8: 7.B Commercial Cover Pool
A10: Field Number | B10: 7. Mortgage Assets
B11: 1. Property Type Information | C11: Nominal (mn) | F11: % Total Mortgages
A12: M.7.1.1 | B12: Residential | C12: 4155 | F12: =IF(C12>0,C12/$C$15,0) -> 0.3117707528
A13: M.7.1.2 | B13: Commercial | C13: 9172.1 | F13: 0.6882292472
A14: M.7.1.3 | B14: Other | C14: 0 | F14: 0
A15: M.7.1.4 | B15: Total | C15: =SUM(C12:C14) -> 13327.1 | F15: 1
A16: OM.7.1.1 | B16: o/w Housing Cooperatives / Multi-family assets | C16: 4075.6 | F16: 0.3058129676
A17: OM.7.1.2 | B17: o/w Forest & Agriculture | C17: 0 | F17: 0
A18: OM.7.1.3 | B18: o/w [If relevant, please specify] | F18: 0
A19: OM.7.1.4 | B19: o/w [If relevant, please specify] | F19: 0
A20: OM.7.1.5 | B20: o/w [If relevant, please specify] | F20: 0
A21: OM.7.1.6 | B21: o/w [If relevant, please specify] | F21: 0
A22: OM.7.1.7 | B22: o/w [If relevant, please specify] | F22: 0
A23: OM.7.1.8 | B23: o/w [If relevant, please specify] | F23: 0
A24: OM.7.1.9 | B24: o/w [If relevant, please specify] | F24: 0
A25: OM.7.1.10 | B25: o/w [If relevant, please specify] | F25: 0
A26: OM.7.1.11 | B26: o/w [If relevant, please specify] | F26: 0
B27: 2. General Information | C27: Residential Loans | D27: Commercial Loans | F27: Total Mortgages
A28: M.7.2.1 | B28: Number of mortgage loans | C28: 1118 | D28: 792 | F28: =SUM(C28:D28) -> 1910
A29: OM.7.2.1 | B29: Optional information eg, Number of borrowers | C29: 1116 | D29: 751
A30: OM.7.2.2 | B30: Optional information eg, Number of guarantors
A31: OM.7.2.3
A32: OM.7.2.4
A33: OM.7.2.5
A34: OM.7.2.6
B35: 3. Concentration Risks | C35: % Residential Loans | D35: % Commercial Loans | F35: % Total Mortgages
A36: M.7.3.1 | B36: 10 largest exposures | C36: ND3 | D36: ND3 | F36: 0.2213459792
A37: OM.7.3.1
A38: OM.7.3.2
A39: OM.7.3.3
A40: OM.7.3.4
A41: OM.7.3.5
A42: OM.7.3.6
B43: 4. Breakdown by Geography | C43: % Residential Loans | D43: % Commercial Loans | F43: % Total Mortgages
A44: M.7.4.1 | B44: European Union | C44: =SUM(C45:C72) -> 100 | D44: =SUM(D45:D72) -> 100 | F44: =SUM(F45:F72) -> 100
A45: M.7.4.2 | B45: Austria | C45: 0 | D45: 0 | F45: 0
A46: M.7.4.3 | B46: Belgium (inkl. EU-Institutionen) | C46: 0 | D46: 2.237219394 | F46: 1.539719819
A47: M.7.4.4 | B47: Bulgaria | C47: 0 | D47: 0 | F47: 0
A48: M.7.4.5 | B48: Croatia * (row 87) | C48: ND3 | D48: ND3 | F48: ND2
A49: M.7.4.6 | B49: Cyprus | C49: 0 | D49: 0 | F49: 0
A50: M.7.4.7 | B50: Czech Republic | C50: 0 | D50: 2.869571854 | F50: 1.974923277
A51: M.7.4.8 | B51: Denmark | C51: 0 | D51: 0 | F51: 0
A52: M.7.4.9 | B52: Estonia | C52: 0 | D52: 0 | F52: 0
A53: M.7.4.10 | B53: Finland | C53: 0 | D53: 0 | F53: 0
A54: M.7.4.11 | B54: France | C54: 0 | D54: 12.6972013 | F54: 8.738585289
A55: M.7.4.12 | B55: Germany | C55: 94.86642599 | D55: 54.90781827 | F55: 67.36574349
A56: M.7.4.13 | B56: Greece | C56: 0 | D56: 0 | F56: 0
A57: M.7.4.14 | B57: Netherlands | C57: 5.133574007 | D57: 15.56459262 | F57: 12.3125061
A58: M.7.4.15 | B58: Hungary | C58: 0 | D58: 0 | F58: 0
A59: M.7.4.16 | B59: Ireland | C59: 0 | D59: 0 | F59: 0
A60: M.7.4.17 | B60: Italy | C60: 0 | D60: 0 | F60: 0
A61: M.7.4.18 | B61: Latvia | C61: 0 | D61: 0 | F61: 0
A62: M.7.4.19 | B62: Lithuania | C62: 0 | D62: 0 | F62: 0
A63: M.7.4.20 | B63: Luxembourg | C63: 0 | D63: 0 | F63: 0
A64: M.7.4.21 | B64: Malta | C64: 0 | D64: 0 | F64: 0
A65: M.7.4.22 | B65: Poland | C65: 0 | D65: 9.661909486 | F65: 6.649608692
A66: M.7.4.23 | B66: Portugal | C66: 0 | D66: 0 | F66: 0
A67: M.7.4.24 | B67: Romania | C67: 0 | D67: 0 | F67: 0
A68: M.7.4.25 | B68: Slovakia | C68: 0 | D68: 0 | F68: 0
A69: M.7.4.26 | B69: Slovenia | C69: 0 | D69: 0 | F69: 0
A70: M.7.4.27 | B70: Spain | C70: 0 | D70: 0 | F70: 0
A71: M.7.4.28 | B71: Sweden | C71: 0 | D71: 0 | F71: 0
A72: M.7.4.29 | B72: United Kingdom | C72: 0 | D72: 2.061687073 | F72: 1.418913342
A73: M.7.4.30 | B73: European Economic Area (not member of EU) | C73: =SUM(C74:C76) -> 0 | D73: =SUM(D74:D76) -> 0 | F73: 0
A74: M.7.4.31 | B74: Iceland | C74: 0 | D74: 0 | F74: 0
A75: M.7.4.32 | B75: Liechtenstein | C75: 0 | D75: 0 | F75: 0
A76: M.7.4.33 | B76: Norway | C76: 0 | D76: 0 | F76: 0
A77: M.7.4.34 | B77: Other | C77: =SUM(C78:C87) -> 0 | D77: =SUM(D78:D87) -> 0 | F77: =SUM(F78:F87) -> 0
A78: M.7.4.35 | B78: Switzerland | C78: 0 | D78: 0 | F78: 0
A79: M.7.4.36 | B79: Australia * (row 87) | C79: ND3 | D79: ND3 | F79: ND2
A80: M.7.4.37 | B80: Brazil | C80: ND2 | D80: ND2 | F80: ND2
A81: M.7.4.38 | B81: Canada | C81: 0 | D81: 0 | F81: 0
A82: M.7.4.39 | B82: Japan | C82: 0 | D82: 0 | F82: 0
A83: M.7.4.40 | B83: Korea | C83: ND2 | D83: ND2 | F83: ND2
A84: M.7.4.41 | B84: New Zealand *(row 87) | C84: ND3 | D84: ND3 | F84: ND2
A85: M.7.4.42 | B85: Singapore *(row 87) | C85: ND3 | D85: ND3 | F85: ND2
A86: M.7.4.43 | B86: US | C86: 0 | D86: 0 | F86: 0
A87: M.7.4.44 | B87: Other | C87: 0 | D87: 0 | F87: 0
A88: OM.7.4.1 | B88: o/w [If relevant, please specify]
A89: OM.7.4.2 | B89: o/w [If relevant, please specify]
A90: OM.7.4.3 | B90: o/w [If relevant, please specify]
A91: OM.7.4.4 | B91: o/w [If relevant, please specify]
A92: OM.7.4.5 | B92: o/w [If relevant, please specify]
A93: OM.7.4.6 | B93: o/w [If relevant, please specify]
A94: OM.7.4.7 | B94: o/w [If relevant, please specify]
A95: OM.7.4.8 | B95: o/w [If relevant, please specify]
A96: OM.7.4.9 | B96: o/w [If relevant, please specify]
A97: OM.7.4.10 | B97: o/w [If relevant, please specify]
B98: 5. Breakdown by regions of main country origin | C98: % Residential Loans | D98: % Commercial Loans | F98: % Total Mortgages
A99: M.7.5.1 | B99: Baden-Württemberg | C99: 0.0004 | D99: 0.0435 | F99: 0.0439
A100: M.7.5.2 | B100: Bayern | C100: 0.0262 | D100: 0.0583 | F100: 0.0845
A101: M.7.5.3 | B101: Berlin | C101: 0.1545 | D101: 0.072 | F101: 0.2266
A102: M.7.5.4 | B102: Brandenburg | C102: 0.0107 | D102: 0.0102 | F102: 0.0209
A103: M.7.5.5 | B103: Bremen | C103: 0.0007 | D103: 0.0089 | F103: 0.0096
A104: M.7.5.6 | B104: Hamburg | C104: 0.0031 | D104: 0.0255 | F104: 0.0286
A105: M.7.5.7 | B105: Hessen | C105: 0.0203 | D105: 0.1128 | F105: 0.133
A106: M.7.5.8 | B106: Mecklenburg-Vorpommern | C106: 0.0091 | D106: 0.0048 | F106: 0.0139
A107: M.7.5.9 | B107: Niedersachsen | C107: 0.0144 | D107: 0.0427 | F107: 0.0571
A108: M.7.5.10 | B108: Nordrhein-Westfalen | C108: 0.1335 | D108: 0.1192 | F108: 0.2527
A109: M.7.5.11 | B109: Rheinland-Pfalz | C109: 0.0021 | D109: 0.0133 | F109: 0.0154
A110: M.7.5.12 | B110: Saarland | C110: 0 | D110: 0.0012 | F110: 0.0012
A111: M.7.5.13 | B111: Sachsen-Anhalt | C111: 0.0049 | D111: 0.0059 | F111: 0.0108
A112: M.7.5.14 | B112: Sachsen | C112: 0.0358 | D112: 0.024 | F112: 0.0598
A113: M.7.5.15 | B113: Schleswig-Holstein | C113: 0.0237 | D113: 0.0095 | F113: 0.0332
A114: M.7.5.16 | B114: Thüringen | C114: 0.0017 | D114: 0.0071 | F114: 0.0088
A115: M.7.5.17 | B115: TBC at a country level | C115: ND3 | D115: ND3 | F115: ND3
A116: M.7.5.18 | B116: TBC at a country level | C116: ND3 | D116: ND3 | F116: ND3
A117: M.7.5.19 | B117: TBC at a country level | C117: ND3 | D117: ND3 | F117: ND3
A118: M.7.5.20 | B118: TBC at a country level | C118: ND3 | D118: ND3 | F118: ND3
A119: M.7.5.21 | B119: TBC at a country level | C119: ND3 | D119: ND3 | F119: ND3
A120: M.7.5.22 | B120: TBC at a country level | C120: ND3 | D120: ND3 | F120: ND3
A121: M.7.5.23 | B121: TBC at a country level | C121: ND3 | D121: ND3 | F121: ND3
A122: M.7.5.24 | B122: TBC at a country level | C122: ND3 | D122: ND3 | F122: ND3
A123: M.7.5.25 | B123: TBC at a country level | C123: ND3 | D123: ND3 | F123: ND3
A124: M.7.5.26 | B124: TBC at a country level | C124: ND3 | D124: ND3 | F124: ND3
A125: M.7.5.27 | B125: TBC at a country level | C125: ND3 | D125: ND3 | F125: ND3
A126: M.7.5.28 | B126: TBC at a country level | C126: ND3 | D126: ND3 | F126: ND3
A127: M.7.5.29 | B127: TBC at a country level | C127: ND3 | D127: ND3 | F127: ND3
A128: M.7.5.30 | B128: TBC at a country level | C128: ND3 | D128: ND3 | F128: ND3
A129: M.7.5.31 | B129: TBC at a country level | C129: ND3 | D129: ND3 | F129: ND3
A130: M.7.5.32 | B130: TBC at a country level | C130: ND3 | D130: ND3 | F130: ND3
A131: M.7.5.33 | B131: TBC at a country level | C131: ND3 | D131: ND3 | F131: ND3
A132: M.7.5.34 | B132: TBC at a country level | C132: ND3 | D132: ND3 | F132: ND3
A133: M.7.5.35 | B133: TBC at a country level | C133: ND3 | D133: ND3 | F133: ND3
A134: M.7.5.36 | B134: TBC at a country level | C134: ND3 | D134: ND3 | F134: ND3
A135: M.7.5.37 | B135: TBC at a country level | C135: ND3 | D135: ND3 | F135: ND3
A136: M.7.5.38 | B136: TBC at a country level | C136: ND3 | D136: ND3 | F136: ND3
A137: M.7.5.39 | B137: TBC at a country level | C137: ND3 | D137: ND3 | F137: ND3
A138: M.7.5.40 | B138: TBC at a country level | C138: ND3 | D138: ND3 | F138: ND3
A139: M.7.5.41 | B139: TBC at a country level | C139: ND3 | D139: ND3 | F139: ND3
A140: M.7.5.42 | B140: TBC at a country level | C140: ND3 | D140: ND3 | F140: ND3
A141: M.7.5.43 | B141: TBC at a country level | C141: ND3 | D141: ND3 | F141: ND3
A142: M.7.5.44 | B142: TBC at a country level | C142: ND3 | D142: ND3 | F142: ND3
A143: M.7.5.45 | B143: TBC at a country level | C143: ND3 | D143: ND3 | F143: ND3
A144: M.7.5.46 | B144: TBC at a country level | C144: ND3 | D144: ND3 | F144: ND3
A145: M.7.5.47 | B145: TBC at a country level | C145: ND3 | D145: ND3 | F145: ND3
A146: M.7.5.48 | B146: TBC at a country level | C146: ND3 | D146: ND3 | F146: ND3
A147: M.7.5.49 | B147: TBC at a country level | C147: ND3 | D147: ND3 | F147: ND3
A148: M.7.5.50 | B148: TBC at a country level | C148: ND3 | D148: ND3 | F148: ND3
B149: 6. Breakdown by Interest Rate | C149: % Residential Loans | D149: % Commercial Loans | F149: % Total Mortgages
A150: M.7.6.1 | B150: Fixed rate | C150: 0.2295 | D150: 0.418 | F150: =SUM(C150,D150) -> 0.6475
A151: M.7.6.2 | B151: Floating rate | C151: 0.0749 | D151: 0.2606 | F151: =SUM(C151,D151) -> 0.3355
A152: M.7.6.3 | B152: Other | C152: 0.0069 | D152: 0.0101 | F152: =SUM(C152,D152) -> 0.017
A153: OM.7.6.1
A154: OM.7.6.2
A155: OM.7.6.3
A156: OM.7.6.4
A157: OM.7.6.5
A158: OM.7.6.6
B159: 7. Breakdown by Repayment Type | C159: % Residential Loans | D159: % Commercial Loans | F159: % Total Mortgages
A160: M.7.7.1 | B160: Bullet / interest only | C160: 0.1478 | D160: 0.3657 | F160: =SUM(C160,D160) -> 0.5135
A161: M.7.7.2 | B161: Amortising | C161: 0.1069 | D161: 0.0928 | F161: =SUM(C161,D161) -> 0.1997
A162: M.7.7.3 | B162: Other | C162: 0.0565 | D162: 0.2303 | F162: =SUM(C162,D162) -> 0.2868
A163: OM.7.7.1 | C163: [For completion] | D163: [For completion] | F163: [For completion]
A164: OM.7.7.2
A165: OM.7.7.3
A166: OM.7.7.4
A167: OM.7.7.5
A168: OM.7.7.6
B169: 8. Loan Seasoning | C169: % Residential Loans | D169: % Commercial Loans | F169: % Total Mortgages
A170: M.7.8.1 | B170: Up to 12months | C170: 0.0321 | D170: 0.0762 | F170: =SUM(C170,D170) -> 0.1083
A171: M.7.8.2 | B171: ≥ 12 - ≤ 24 months | C171: 0.0584 | D171: 0.1668 | F171: =SUM(C171,D171) -> 0.2252
A172: M.7.8.3 | B172: ≥ 24 - ≤ 36 months | C172: 0.0525 | D172: 0.1376 | F172: =SUM(C172,D172) -> 0.1901
A173: M.7.8.4 | B173: ≥ 36 - ≤ 60 months | C173: 0.0983 | D173: 0.1833 | F173: =SUM(C173,D173) -> 0.2816
A174: M.7.8.5 | B174: ≥ 60 months | C174: 0.0699 | D174: 0.1247 | F174: =SUM(C174,D174) -> 0.1946
A175: OM.7.8.1
A176: OM.7.8.2
A177: OM.7.8.3
A178: OM.7.8.4
B179: 9. Non-Performing Loans (NPLs) | C179: % Residential Loans | D179: % Commercial Loans | F179: % Total Mortgages
A180: M.7.9.1 | B180: % NPLs | C180: 0 | D180: 0 | F180: =SUM(C180,D180) -> 0
A181: OM.7.9.1
A182: OM.7.9.2
A183: OM.7.9.3
A184: OM.7.9.4
B185: 7.A Residential Cover Pool
B186: 10. Loan Size Information | C186: Nominal | D186: Number of Loans | F186: % Residential Loans: | G186: % No. of Loans
A187: M.7A.10.1 | B187: Average loan size (000s) | C187: =C12/D187*1000 -> 3716.457961 | D187: =C28 -> 1118
B189: by buckets (mn):
A190: M.7A.10.2 | B190: up to 300,000 Euros | C190: 41.5 | D190: ND3 | F190: =C190/$C$214 -> 0.009987966306
A191: M.7A.10.3 | B191: more than 300,000 Euros up to 1 mn. Euros | C191: 59.6 | D191: ND3 | F191: =C191/$C$214 -> 0.01434416366
A192: M.7A.10.4 | B192: more than 1 mn. Euros up to 10 mn. Euros | C192: 784.6 | D192: ND3 | F192: =C192/$C$214 -> 0.1888327316
A193: M.7A.10.5 | B193: more than 10 mn. Euros | C193: 3269.3 | D193: ND3 | F193: =C193/$C$214 -> 0.7868351384
A194: M.7A.10.6 | B194: TBC at a country level | C194: [For completion] | D194: ND3 | F194: =IF($C$214=0,"",IF(C194="[for completion]","",C194/$C$214)) -> 
A195: M.7A.10.7 | B195: TBC at a country level | C195: [For completion] | D195: ND3
A196: M.7A.10.8 | B196: TBC at a country level | C196: [For completion] | D196: ND3
A197: M.7A.10.9 | B197: TBC at a country level | C197: [For completion] | D197: ND3
A198: M.7A.10.10 | B198: TBC at a country level | C198: [For completion] | D198: ND3
A199: M.7A.10.11 | B199: TBC at a country level | C199: [For completion] | D199: ND3
A200: M.7A.10.12 | B200: TBC at a country level | C200: [For completion] | D200: ND3
A201: M.7A.10.13 | B201: TBC at a country level | C201: [For completion] | D201: ND3
A202: M.7A.10.14 | B202: TBC at a country level | C202: [For completion] | D202: ND3
A203: M.7A.10.15 | B203: TBC at a country level | C203: [For completion] | D203: ND3
A204: M.7A.10.16 | B204: TBC at a country level | C204: [For completion] | D204: ND3
... 178 more rows

Sheet B2. HTT Public Sector Assets (hidden)
A1: B2. Harmonised Transparency Template - Public Sector Assets
B3: Reporting in Domestic Currency | C3: EURO
B5: CONTENT OF TAB B2
B6: 8. Public Sector Assets
A8: Field Number | B8: 8. Public Sector Assets
B9: 1. General Information
A10: PS.8.1.1 | B10: Number of public sector exposures | C10: 0
A11: OPS.8.1.1 | B11: Optional information eg, Number of borrowers | C11: 151
A12: OPS.8.1.2 | B12: Optional information eg, Number of guarantors
A13: OPS.8.1.3
A14: OPS.8.1.4
A15: OPS.8.1.5
A16: OPS.8.1.6
A17: OPS.8.1.7
B18: 2. Size Information | C18: Nominal | D18: Number of Exposures | F18: % Public Sector Assets | G18: % No. of Exposures
A19: PS.8.2.1 | B19: Average exposure size (000s) | C19: =C37/D19*1000 ->  | D19: =C10 -> 0
B21: By buckets (mn):
A22: PS.8.2.2 | B22: up to 10 mn. Euros | C22: 0 | D22: ND3 | F22: =C22/$C$37 -> 
A23: PS.8.2.3 | B23: more than 10 mn. Euros up to 100 mn. Euros | C23: 0 | D23: ND3 | F23: =C23/$C$37 -> 
A24: PS.8.2.4 | B24: more than 100 mn. Euros | C24: 0 | D24: ND3 | F24: =C24/$C$37 -> 
A25: PS.8.2.5 | B25: TBC at a country level | C25: [For completion] | D25: [For completion]
A26: PS.8.2.6 | B26: TBC at a country level | C26: [For completion] | D26: [For completion]
A27: PS.8.2.7 | B27: TBC at a country level | C27: [For completion] | D27: [For completion]
A28: PS.8.2.8 | B28: TBC at a country level | C28: [For completion] | D28: [For completion]
A29: PS.8.2.9 | B29: TBC at a country level | C29: [For completion] | D29: [For completion]
A30: PS.8.2.10 | B30: TBC at a country level | C30: [For completion] | D30: [For completion]
A31: PS.8.2.11 | B31: TBC at a country level | C31: [For completion] | D31: [For completion]
A32: PS.8.2.12 | B32: TBC at a country level | C32: [For completion] | D32: [For completion]
A33: PS.8.2.13 | B33: TBC at a country level | C33: [For completion] | D33: [For completion]
A34: PS.8.2.14 | B34: TBC at a country level | C34: [For completion] | D34: [For completion]
A35: PS.8.2.15 | B35: TBC at a country level | C35: [For completion] | D35: [For completion]
A36: PS.8.2.16 | B36: TBC at a country level | C36: [For completion] | D36: [For completion]
A37: PS.8.2.17 | B37: Total | C37: =SUM(C22:C24) -> 0 | D37: 0 | F37: =C37/$C$37 ->  | G37: 0
B38: 3. Breakdown by Asset Type | C38: Nominal (mn) | F38: % Public Sector Assets
A39: PS.8.3.1 | B39: Loans | C39: 0 | F39: =C39/$C$42 -> 
A40: PS.8.3.2 | B40: Bonds | C40: 0 | F40: =C40/$C$42 -> 
A41: PS.8.3.3 | B41: Other | C41: 0 | F41: =C41/$C$42 -> 
A42: PS.8.3.4 | B42: Total | C42: =SUM(C39:C41) -> 0 | F42: =C42/$C$42 -> 
A43: OPS.8.3.1
A44: OPS.8.3.2
A45: OPS.8.3.3
A46: OPS.8.3.4
A47: OPS.8.3.5
B48: 4. Breakdown by Geography | C48: % Public Sector Assets
A49: PS.8.4.1 | B49: European Union | C49: =SUM(C50:C77) -> 0
A50: PS.8.4.2 | B50: Austria | C50: 0
A51: PS.8.4.3 | B51: Belgium | C51: 0 | D51: inkl. EU-Institutionen
A52: PS.8.4.4 | B52: Bulgaria | C52: 0
A53: PS.8.4.5 | B53: Croatia *(row 92) | C53: ND3
A54: PS.8.4.6 | B54: Cyprus | C54: 0
A55: PS.8.4.7 | B55: Czech Republic | C55: 0
A56: PS.8.4.8 | B56: Denmark | C56: 0
A57: PS.8.4.9 | B57: Estonia | C57: 0
A58: PS.8.4.10 | B58: Finland | C58: 0
A59: PS.8.4.11 | B59: France | C59: 0
A60: PS.8.4.12 | B60: Germany | C60: 0
A61: PS.8.4.13 | B61: Greece | C61: 0
A62: PS.8.4.14 | B62: Netherlands | C62: 0
A63: PS.8.4.15 | B63: Hungary | C63: 0
A64: PS.8.4.16 | B64: Ireland | C64: 0
A65: PS.8.4.17 | B65: Italy | C65: 0
A66: PS.8.4.18 | B66: Latvia | C66: 0
A67: PS.8.4.19 | B67: Lithuania | C67: 0
A68: PS.8.4.20 | B68: Luxembourg | C68: 0
A69: PS.8.4.21 | B69: Malta | C69: 0
A70: PS.8.4.22 | B70: Poland | C70: 0
A71: PS.8.4.23 | B71: Portugal | C71: 0
A72: PS.8.4.24 | B72: Romania | C72: 0
A73: PS.8.4.25 | B73: Slovakia | C73: 0
A74: PS.8.4.26 | B74: Slovenia | C74: 0
A75: PS.8.4.27 | B75: Spain | C75: 0
A76: PS.8.4.28 | B76: Sweden | C76: 0
A77: PS.8.4.29 | B77: United Kingdom | C77: 0
A78: PS.8.4.30 | B78: European Economic Area (not member of EU) | C78: =SUM(C79:C81) -> 0
A79: PS.8.4.31 | B79: Iceland | C79: 0
A80: PS.8.4.32 | B80: Liechtenstein | C80: 0
A81: PS.8.4.33 | B81: Norway | C81: 0
A82: PS.8.4.34 | B82: Other | C82: =SUM(C83:C92) -> 0
A83: PS.8.4.35 | B83: Switzerland | C83: 0
A84: PS.8.4.36 | B84: Australia *(row 92) | C84: ND3
A85: PS.8.4.37 | B85: Brazil | C85: ND2
A86: PS.8.4.38 | B86: Canada | C86: 0
A87: PS.8.4.39 | B87: Japan | C87: 0
A88: PS.8.4.40 | B88: Korea | C88: ND2
A89: PS.8.4.41 | B89: New Zealand *(row 92) | C89: ND3
A90: PS.8.4.42 | B90: Singapore *(row 92) | C90: ND3
A91: PS.8.4.43 | B91: US | C91: 0
A92: PS.8.4.44 | B92: Other | C92: 0
A93: OPS.8.4.1 | B93: o/w [If relevant, please specify]
A94: OPS.8.4.2 | B94: o/w [If relevant, please specify]
A95: OPS.8.4.3 | B95: o/w [If relevant, please specify]
A96: OPS.8.4.4 | B96: o/w [If relevant, please specify]
A97: OPS.8.4.5 | B97: o/w [If relevant, please specify]
A98: OPS.8.4.6 | B98: o/w [If relevant, please specify]
A99: OPS.8.4.7 | B99: o/w [If relevant, please specify]
A100: OPS.8.4.8 | B100: o/w [If relevant, please specify]
A101: OPS.8.4.9 | B101: o/w [If relevant, please specify]
A102: OPS.8.4.10 | B102: o/w [If relevant, please specify]
B103: 5. Breakdown by regions of main country origin | C103: % Public Sector Assets
A104: PS.8.5.1 | B104: TBC at a country level | C104: ND3
A105: PS.8.5.2 | B105: TBC at a country level | C105: ND3
A106: PS.8.5.3 | B106: TBC at a country level | C106: ND3
A107: PS.8.5.4 | B107: TBC at a country level | C107: ND3
A108: PS.8.5.5 | B108: TBC at a country level | C108: ND3
A109: PS.8.5.6 | B109: TBC at a country level | C109: ND3
A110: PS.8.5.7 | B110: TBC at a country level | C110: ND3
A111: PS.8.5.8 | B111: TBC at a country level | C111: ND3
A112: PS.8.5.9 | B112: TBC at a country level | C112: ND3
A113: PS.8.5.10 | B113: TBC at a country level | C113: ND3
A114: PS.8.5.11 | B114: TBC at a country level | C114: ND3
A115: PS.8.5.12 | B115: TBC at a country level | C115: ND3
A116: PS.8.5.13 | B116: TBC at a country level | C116: ND3
A117: PS.8.5.14 | B117: TBC at a country level | C117: ND3
A118: PS.8.5.15 | B118: TBC at a country level | C118: ND3
A119: PS.8.5.16 | B119: TBC at a country level | C119: ND3
A120: PS.8.5.17 | B120: TBC at a country level | C120: ND3
A121: PS.8.5.18 | B121: TBC at a country level | C121: ND3
A122: PS.8.5.19 | B122: TBC at a country level | C122: ND3
A123: PS.8.5.20 | B123: TBC at a country level | C123: ND3
A124: PS.8.5.21 | B124: TBC at a country level | C124: ND3
A125: PS.8.5.22 | B125: TBC at a country level | C125: ND3
A126: PS.8.5.23 | B126: TBC at a country level | C126: ND3
A127: PS.8.5.24 | B127: TBC at a country level | C127: ND3
A128: PS.8.5.25 | B128: TBC at a country level | C128: ND3
B129: 6. Breakdown by Interest Rate | C129: % Public Sector Assets
A130: PS.8.6.1 | B130: Fixed rate | C130: 0
A131: PS.8.6.2 | B131: Floating rate | C131: =100-C130 -> 100
A132: PS.8.6.3 | B132: Other | C132: 0
A133: OPS.8.6.1
A134: OPS.8.6.2
A135: OPS.8.6.3
A136: OPS.8.6.4
B137: 7. Breakdown by Repayment Type | C137: % Public Sector Assets
A138: PS.8.7.1 | B138: Bullet / interest only | C138: ND3
A139: PS.8.7.2 | B139: Amortising | C139: ND3
A140: PS.8.7.3 | B140: Other | C140: ND3
A141: OPS.8.7.1
A142: OPS.8.7.2
A143: OPS.8.7.3
A144: OPS.8.7.4
A145: OPS.8.7.5
A146: OPS.8.7.6
B147: 8. Breakdown by Type of Debtor | C147: Nominal (mn) | F147: % Public Sector Assets
A148: PS.8.8.1 | B148: Sovereigns | C148: 0 | F148: =C148/$C$152 -> 
A149: PS.8.8.2 | B149: Regional/federal authorities | C149: 0 | F149: =C149/$C$152 -> 
A150: PS.8.8.3 | B150: Local/municipal authorities | C150: 0 | F150: =C150/$C$152 -> 
A151: PS.8.8.4 | B151: Others | C151: 0 | F151: =C151/$C$152 -> 
A152: PS.8.8.5 | B152: Total | C152: =SUM(C148:C151) -> 0 | F152: =C152/$C$152 -> 
A153: OPS.8.8.1 | B153: o/w Claim against supranational | F153: 0
A154: OPS.8.8.2 | B154: o/w Claim against sovereigns | F154: 0
A155: OPS.8.8.3 | B155: o/w Claim guaranteed by sovereigns | F155: 0
A156: OPS.8.8.4 | B156: o/w Claim against regional/federal authorities | F156: 0
A157: OPS.8.8.5 | B157: o/w Claim guaranteed by regional/federal authorities | F157: 0
A158: OPS.8.8.6 | B158: o/w Claim against local/municipal authorities | F158: 0
A159: OPS.8.8.7 | B159: o/w Claimguaranteed by local/municipal authorities | F159: 0
A160: OPS.8.8.8
A161: OPS.8.8.9
A162: OPS.8.8.10
A163: OPS.8.8.11
A164: OPS.8.8.12 | F164: 0
A165: OPS.8.8.13 | F165: 0
B166: 9. Non-Performing Loans
A167: PS.8.9.1 | B167: % NPLs | C167: 0
A168: OPS.8.9.1
A169: OPS.8.9.2
A170: OPS.8.9.3
A171: OPS.8.9.4
B172: 10. Concentration Risks | C172: % Public Sector Assets
A173: PS.8.10.1 | B173: 10 largest exposures | C173: 0
A174: OPS.8.10.1
A175: OPS.8.10.2
A176: OPS.8.10.3
A177: OPS.8.10.4
A178: OPS.8.10.5
A179: OPS.8.10.6

Sheet B3. HTT Shipping Assets (hidden)
A1: B3. Harmonised Transparency Template - Shipping Assets
B3: Reporting in Domestic Currency | C3: EURO
B5: CONTENT OF TAB B3
B6: 9. Shipping Assets
A8: Field Number | B8: 9. Shipping Assets
B9: 1. General Information | C9: Shipping Loans
A10: S.9.1.1 | B10: Number of shipping loans | C10: 0
A11: OS.9.1.1 | B11: Optional information eg, Number of borrowers | C11: 0
A12: OS.9.1.2 | B12: Optional information eg, Number of guarantors
A13: OS.9.1.3
A14: OS.9.1.4
A15: OS.9.1.5
A16: OS.9.1.6
B17: 2. Concentration Risks | C17: % Shipping Loans
A18: S.9.2.1 | B18: 10 largest exposures | C18: ND3
A19: OS.9.2.1
A20: OS.9.2.2
A21: OS.9.2.3
A22: OS.9.2.4
A23: OS.9.2.5
A24: OS.9.2.6
B25: 3. Breakdown by Geography / Country of Registration | C25: % Shipping Loans
A26: S.9.3.1 | B26: European Union | C26: =SUM(C27:C54) -> 0
A27: S.9.3.2 | B27: Austria | C27: 0
A28: S.9.3.3 | B28: Belgium | C28: 0
A29: S.9.3.4 | B29: Bulgaria | C29: 0
A30: S.9.3.5 | B30: Croatia | C30: 0
A31: S.9.3.6 | B31: Cyprus | C31: 0
A32: S.9.3.7 | B32: Czech Republic | C32: 0
A33: S.9.3.8 | B33: Denmark | C33: 0
A34: S.9.3.9 | B34: Estonia | C34: 0
A35: S.9.3.10 | B35: Finland | C35: 0
A36: S.9.3.11 | B36: France | C36: 0
A37: S.9.3.12 | B37: Germany | C37: 0
A38: S.9.3.13 | B38: Greece | C38: 0
A39: S.9.3.14 | B39: Netherlands | C39: 0
A40: S.9.3.15 | B40: Hungary | C40: 0
A41: S.9.3.16 | B41: Ireland | C41: 0
A42: S.9.3.17 | B42: Italy | C42: 0
A43: S.9.3.18 | B43: Latvia | C43: 0
A44: S.9.3.19 | B44: Lithuania | C44: 0
A45: S.9.3.20 | B45: Luxembourg | C45: 0
A46: S.9.3.21 | B46: Malta | C46: 0
A47: S.9.3.22 | B47: Poland | C47: 0
A48: S.9.3.23 | B48: Portugal | C48: 0
A49: S.9.3.24 | B49: Romania | C49: 0
A50: S.9.3.25 | B50: Slovakia | C50: 0
A51: S.9.3.26 | B51: Slovenia | C51: 0
A52: S.9.3.27 | B52: Spain | C52: 0
A53: S.9.3.28 | B53: Sweden | C53: 0
A54: S.9.3.29 | B54: United Kingdom | C54: 0
A55: S.9.3.30 | B55: European Economic Area (not member of EU) | C55: =SUM(C56:C58) -> 0
A56: S.9.3.31 | B56: Iceland | C56: 0
A57: S.9.3.32 | B57: Liechtenstein | C57: 0
A58: S.9.3.33 | B58: Norway | C58: 0
A59: S.9.3.34 | B59: Other | C59: =SUM(C60:C69) -> 0
A60: S.9.3.35 | B60: Switzerland | C60: 0
A61: S.9.3.36 | B61: Australia | C61: 0
A62: S.9.3.37 | B62: Brazil | C62: 0
A63: S.9.3.38 | B63: Canada | C63: 0
A64: S.9.3.39 | B64: Japan | C64: 0
A65: S.9.3.40 | B65: Korea | C65: 0
A66: S.9.3.41 | B66: New Zealand | C66: 0
A67: S.9.3.42 | B67: Singapore | C67: 0
A68: S.9.3.43 | B68: US | C68: 0
A69: S.9.3.44 | B69: Other | C69: =IF(100-C26-C55-(C60+C61+C62+C63+C64+C65+C66+C67+C68)=100,0,100-C26-C55-(C60+C61+C62+C63+C64+C65+C66+C67+C68)) -> 0
A70: OS.9.3.1 | B70: o/w [If relevant, please specify]
A71: OS.9.3.2 | B71: o/w [If relevant, please specify]
A72: OS.9.3.3 | B72: o/w [If relevant, please specify]
A73: OS.9.3.4 | B73: o/w [If relevant, please specify]
A74: OS.9.3.5 | B74: o/w [If relevant, please specify]
A75: OS.9.3.6 | B75: o/w [If relevant, please specify]
A76: OS.9.3.7 | B76: o/w [If relevant, please specify]
A77: OS.9.3.8 | B77: o/w [If relevant, please specify]
A78: OS.9.3.9 | B78: o/w [If relevant, please specify]
A79: OS.9.3.10 | B79: o/w [If relevant, please specify]
B80: 4. Breakdown by Interest Rate | C80: % Shipping Loans
A81: S.9.4.1 | B81: Fixed rate | C81: 0
A82: S.9.4.2 | B82: Floating rate | C82: =100-C81 -> 100
A83: S.9.4.3 | B83: Other | C83: 0
A84: OS.9.4.1
A85: OS.9.4.2
A86: OS.9.4.3
A87: OS.9.4.4
A88: OS.9.4.5
A89: OS.9.4.6
B90: 5. Breakdown by Repayment Type | C90: % Shipping Loans
A91: S.9.5.1 | B91: Bullet / interest only | C91: ND3
A92: S.9.5.2 | B92: Amortising | C92: ND3
A93: S.9.5.3 | B93: Other | C93: ND3
A94: OS.9.5.1 | C94: [For completion]
A95: OS.9.5.2
A96: OS.9.5.3
A97: OS.9.5.4
A98: OS.9.5.5
A99: OS.9.5.6
B100: 6. Loan Seasoning | C100: % Shipping Loans
A101: S.9.6.1 | B101: Up to 12months | C101: ND3
A102: S.9.6.2 | B102: ≥ 12 - ≤ 24 months | C102: ND3
A103: S.9.6.3 | B103: ≥ 24 - ≤ 36 months | C103: ND3
A104: S.9.6.4 | B104: ≥ 36 - ≤ 60 months | C104: ND3
A105: S.9.6.5 | B105: ≥ 60 months | C105: ND3
A106: OS.9.6.1
A107: OS.9.6.2
A108: OS.9.6.3
A109: OS.9.6.4
B110: 7. Non-Performing Loans (NPLs) | C110: % Shipping Loans
A111: S.9.7.1 | B111: % NPLs | C111: 0
A112: OS.9.7.1
A113: OS.9.7.2
A114: OS.9.7.3
A115: OS.9.7.4
B116: 8. Loan Size Information | C116: Nominal | D116: Number of Loans | F116: % Shipping Loans | G116: % No. of Loans
A117: S.9.8.1 | B117: Average loan size (000s) | C117: =C144/C10*100 -> 
B119: By buckets (mn):
A120: S.9.8.2 | B120: up to 500,000 Euros | C120: 0 | D120: ND3 | F120: =C120/$C$144 -> 
A121: S.9.8.3 | B121: more than 500,000 Euros up to 5 mn. Euros | C121: 0 | D121: ND3 | F121: =C121/$C$144 -> 
A122: S.9.8.4 | B122: more than 5 mn. Euros | C122: 0 | D122: ND3 | F122: =C122/$C$144 -> 
A123: S.9.8.5 | B123: TBC at a country level | C123: [For completion] | D123: [For completion]
A124: S.9.8.6 | B124: TBC at a country level | C124: [For completion] | D124: [For completion]
A125: S.9.8.7 | B125: TBC at a country level | C125: [For completion] | D125: [For completion]
A126: S.9.8.8 | B126: TBC at a country level | C126: [For completion] | D126: [For completion]
A127: S.9.8.9 | B127: TBC at a country level | C127: [For completion] | D127: [For completion]
A128: S.9.8.10 | B128: TBC at a country level | C128: [For completion] | D128: [For completion]
A129: S.9.8.11 | B129: TBC at a country level | C129: [For completion] | D129: [For completion]
A130: S.9.8.12 | B130: TBC at a country level | C130: [For completion] | D130: [For completion]
A131: S.9.8.13 | B131: TBC at a country level | C131: [For completion] | D131: [For completion]
A132: S.9.8.14 | B132: TBC at a country level | C132: [For completion] | D132: [For completion]
A133: S.9.8.15 | B133: TBC at a country level | C133: [For completion] | D133: [For completion]
A134: S.9.8.16 | B134: TBC at a country level | C134: [For completion] | D134: [For completion]
A135: S.9.8.17 | B135: TBC at a country level | C135: [For completion] | D135: [For completion]
A136: S.9.8.18 | B136: TBC at a country level | C136: [For completion] | D136: [For completion]
A137: S.9.8.19 | B137: TBC at a country level | C137: [For completion] | D137: [For completion]
A138: S.9.8.20 | B138: TBC at a country level | C138: [For completion] | D138: [For completion]
A139: S.9.8.21 | B139: TBC at a country level | C139: [For completion] | D139: [For completion]
A140: S.9.8.22 | B140: TBC at a country level | C140: [For completion] | D140: [For completion]
A141: S.9.8.23 | B141: TBC at a country level | C141: [For completion] | D141: [For completion]
A142: S.9.8.24 | B142: TBC at a country level | C142: [For completion] | D142: [For completion]
A143: S.9.8.25 | B143: TBC at a country level | C143: [For completion] | D143: [For completion]
A144: S.9.8.26 | B144: Total | C144: =SUM(C120:C143) -> 0 | D144: 0 | F144: =SUM(F120:F122) ->  | G144: 0
B145: 9. Loan to Value (LTV) Information - UNINDEXED | C145: Nominal | D145: Number of Loans | F145: % Shipping Loans | G145: % No. of Loans
A146: S.9.9.1 | B146: Weighted Average LTV (%) | C146: ND1
B148: By LTV buckets (mn):
A149: S.9.9.2 | B149: >0 - <=40 % | C149: ND1 | D149: ND1
A150: S.9.9.3 | B150: >40 - <=50 % | C150: ND1 | D150: ND1
A151: S.9.9.4 | B151: >50 - <=60 % | C151: ND1 | D151: ND1
A152: S.9.9.5 | B152: >60 - <=70 % | C152: ND1 | D152: ND1
A153: S.9.9.6 | B153: >70 - <=80 % | C153: ND1 | D153: ND1
A154: S.9.9.7 | B154: >80 - <=90 % | C154: ND1 | D154: ND1
A155: S.9.9.8 | B155: >90 - <=100 % | C155: ND1 | D155: ND1
A156: S.9.9.9 | B156: >100% | C156: ND1 | D156: ND1
A157: S.9.9.10 | B157: Total | C157: 0 | D157: 0 | F157: 0 | G157: 0
A158: OS.9.9.1 | B158: o/w >100 - <=110 %
A159: OS.9.9.2 | B159: o/w >110 - <=120 %
A160: OS.9.9.3 | B160: o/w >120 - <=130 %
A161: OS.9.9.4 | B161: o/w >130 - <=140 %
A162: OS.9.9.5 | B162: o/w >140 - <=150 %
A163: OS.9.9.6 | B163: o/w >150 %
A164: OS.9.9.7
A165: OS.9.9.8
A166: OS.9.9.9
B167: 10. Loan to Value (LTV) Information - INDEXED | C167: Nominal | D167: Number of Loans | F167: % Shipping Loans | G167: % No. of Loans
A168: S.9.10.1 | B168: Weighted Average LTV (%) | C168: ND1
B170: By LTV buckets (mn):
A171: S.9.10.2 | B171: >0 - <=40 % | C171: ND1 | D171: ND1
A172: S.9.10.3 | B172: >40 - <=50 % | C172: ND1 | D172: ND1
A173: S.9.10.4 | B173: >50 - <=60 % | C173: ND1 | D173: ND1
A174: S.9.10.5 | B174: >60 - <=70 % | C174: ND1 | D174: ND1
A175: S.9.10.6 | B175: >70 - <=80 % | C175: ND1 | D175: ND1
A176: S.9.10.7 | B176: >80 - <=90 % | C176: ND1 | D176: ND1
A177: S.9.10.8 | B177: >90 - <=100 % | C177: ND1 | D177: ND1
A178: S.9.10.9 | B178: >100% | C178: ND1 | D178: ND1
A179: S.9.10.10 | B179: Total | C179: 0 | D179: 0 | F179: 0 | G179: 0
A180: OS.9.10.1 | B180: o/w >100 - <=110 %
A181: OS.9.10.2 | B181: o/w >110 - <=120 %
A182: OS.9.10.3 | B182: o/w >120 - <=130 %
A183: OS.9.10.4 | B183: o/w >130 - <=140 %
A184: OS.9.10.5 | B184: o/w >140 - <=150 %
A185: OS.9.10.6 | B185: o/w >150 %
A186: OS.9.10.7
A187: OS.9.10.8
A188: OS.9.10.9
B189: 11. Breakdown by type of ship | C189: % Shipping Loans
A190: S.9.11.1 | B190: Sea-going vessels | C190: =#DIV/0! -> 
A191: S.9.11.2 | B191: Inland waterway vessels | C191: =#DIV/0! -> 
A192: S.9.11.3 | B192: TBC at a country level | C192: [For completion]
A193: S.9.11.4 | B193: TBC at a country level | C193: [For completion]
A194: S.9.11.5 | B194: TBC at a country level | C194: [For completion]
A195: S.9.11.6 | B195: TBC at a country level | C195: [For completion]
A196: S.9.11.7 | B196: TBC at a country level | C196: [For completion]
A197: S.9.11.8 | B197: TBC at a country level | C197: [For completion]
A198: S.9.11.9 | B198: TBC at a country level | C198: [For completion]
A199: S.9.11.10 | B199: TBC at a country level | C199: [For completion]
A200: S.9.11.11 | B200: TBC at a country level | C200: [For completion]
A201: S.9.11.12 | B201: TBC at a country level | C201: [For completion]
A202: S.9.11.13 | B202: TBC at a country level | C202: [For completion]
A203: S.9.11.14 | B203: TBC at a country level | C203: [For completion]
A204: S.9.11.15 | B204: TBC at a country level | C204: [For completion]
A205: S.9.11.16 | B205: TBC at a country level | C205: [For completion]
A206: S.9.11.17 | B206: TBC at a country level | C206: [For completion]
... 5 more rows

Sheet C. HTT Harmonised Glossary
A1: C. Harmonised Transparency Template - Glossary
A3: The definitions below reflect the national specificities
A5: Field Number | B5: 1. Glossary - Standard Harmonised Items | C5: Definition
A6: HG.1.1 | B6: OC Calculation: Actual | C6: [For completion]
A7: HG.1.2 | B7: OC Calculation: Legal minimum | C7: [For completion]
A8: HG.1.3 | B8: OC Calculation: Committed | C8: [For completion]
A9: HG.1.4 | B9: Interest Rate Types | C9: [For completion]
A10: HG.1.5 | B10: Maturity Buckets of Cover assets [i.e. how is the contractual and/or expected maturity defined? What assumptions eg, in terms of prepayments? etc.] | C10: [For completion]
A11: HG.1.6 | B11: Maturity Buckets of Covered Bonds [i.e. how is the contractual and/or expected maturity defined? What maturity structure (hard bullet, soft bullet, conditional pass through)? Under what conditions/circumstances? Etc.] | C11: [For completion]
A12: HG.1.7 | B12: LTVs: Definition | C12: [For completion]
A13: HG.1.8 | B13: LTVs: Calculation of property/shipping value
A14: HG.1.9 | B14: LTVs: Applied property/shipping valuation techniques, including whether use of index, Automated Valuation Model (AVM) or on-site audits
A15: HG.1.10 | B15: LTVs: Frequency and time of last valuation
A16: HG.1.11 | B16: Explain how mortgage types are defined whether for residential housing, multi-family housing, commercial real estate, etc. Same for shipping where relecvant | C16: [For completion]
A17: HG.1.12 | B17: Hedging Strategy (please explain how you address interest rate and currency risk) | C17: [For completion]
A18: HG.1.13 | B18: Non-performing loans | C18: [For completion]
A19: OHG.1.1 | B19: NPV assumptions (when stated)
A20: OHG.1.2
A21: OHG.1.3
A22: OHG.1.4
A23: OHG.1.5
B24: 2. Reason for No Data | C24: Value
A25: HG.2.1 | B25: Not applicable for the jurisdiction | C25: ND1
A26: HG.2.2 | B26: Not relevant for the issuer and/or CB programme at the present time | C26: ND2
A27: HG.2.3 | B27: Not available at the present time | C27: ND3
A28: HG.2.1
A29: OHG.2.1
A30: OHG.2.2
B31: 3. Glossary - Extra national and/or Issuer Items | C31: Definition
A32: HG.3.1 | B32: Other definitions deemed relevant | C32: [For completion]
A33: OHG.3.1
A34: OHG.3.2
A35: OHG.3.3
A36: OHG.3.4
A37: OHG.3.5

Sheet E. Optional ECB-ECAIs data
A1: This addendum is optional
A2: E. Harmonised Transparency Template - Optional ECB - ECAIs Data Disclosure
B4: Reporting in Domestic Currency | C4: Euro | I4: Reason for No Data in Worksheet E. | J4: Value
I5: Not applicable for the jurisdiction | J5: ND1
B6: CONTENT OF TABLE | I6: Not relevant for the issuer and/or CB programme at the present time | J6: ND2
B7: 1. Additional information on the programme | I7: Not available at the present time | J7: ND3
B8: 2. Additional information on the swaps | I8: Confidential | J8: ND4
B9: 3. Additional information on the asset distribution
I10: * Legal Entity Identifier (LEI) finder: http://www.lei-lookup.com/#!search
I11: ** Weighted Average Maturity = Remaining Term to Maturity
A12: Field Number | B12: 1. Additional information on the programme
B13: Transaction Counterparties | C13: Name | D13: Legal Entity Identifier (LEI)*
A14: E.1.1.1 | B14: Sponsor (if applicable) | C14: ND1 | D14: ND1
A15: E.1.1.2 | B15: Servicer | C15: ND1 | D15: ND1
A16: E.1.1.3 | B16: Back-up servicer | C16: ND1 | D16: ND1
A17: E.1.1.4 | B17: BUS facilitator | C17: ND1 | D17: ND1
A18: E.1.1.5 | B18: Cash manager | C18: ND1 | D18: ND1
A19: E.1.1.6 | B19: Back-up cash manager | C19: ND1 | D19: ND1
A20: E.1.1.7 | B20: Account bank | C20: ND1 | D20: ND1
A21: E.1.1.8 | B21: Standby account bank | C21: ND1 | D21: ND1
A22: E.1.1.9 | B22: Account bank guarantor | C22: ND1 | D22: ND1
A23: E.1.1.10 | B23: Trustee | C23: ND1 | D23: ND1
A24: E.1.1.11 | B24: Cover Pool Monitor | C24: ND4 | D24: ND4
A25: OE.1.1.1
A26: OE.1.1.2
A27: OE.1.1.3
A28: OE.1.1.4
A29: OE.1.1.5
A30: OE.1.1.6
A31: OE.1.1.7
A32: OE.1.1.8
B33: 2. Additional information on the swaps
B34: Swap Counterparties | C34: Guarantor (if applicable) | D34: Legal Entity Identifier (LEI)* | E34: Type of Swap
A35: E.2.1.1 | B35: ND4 | C35: ND4 | D35: ND4 | E35: ND4
A36: E.2.1.2 | B36: ND4 | C36: ND4 | D36: ND4 | E36: ND4
A37: E.2.1.3 | B37: ND4 | C37: ND4 | D37: ND4 | E37: ND4
A38: E.2.1.4 | B38: ND4 | C38: ND4 | D38: ND4 | E38: ND4
A39: E.2.1.5 | B39: ND4 | C39: ND4 | D39: ND4 | E39: ND4
A40: E.2.1.6 | B40: ND4 | C40: ND4 | D40: ND4 | E40: ND4
A41: E.2.1.7
A42: E.2.1.8
A43: E.2.1.9
A44: E.2.1.10
A45: E.2.1.11
A46: E.2.1.12
A47: E.2.1.13
A48: E.2.1.14
A49: E.2.1.15
A50: E.2.1.16
A51: E.2.1.17
A52: E.2.1.18
A53: E.2.1.19
A54: E.2.1.20
A55: E.2.1.21
A56: E.2.1.22
A57: E.2.1.23
A58: E.2.1.24
A59: E.2.1.25
A60: OE.2.1.1
A61: OE.2.1.2
A62: OE.2.1.3
A63: OE.2.1.4
A64: OE.2.1.5
A65: OE.2.1.6
A66: OE.2.1.7
A67: OE.2.1.8
A68: OE.2.1.9
A69: OE.2.1.10
A70: OE.2.1.11
A71: OE.2.1.12
A72: OE.2.1.13
B73: 3. Additional information on the asset distribution
B74: 1. General Information | C74: Total Assets Mortgage | D74: Totals Assets Public
A75: E.3.1.1 | B75: Weighted Average Seasoning (months) | C75: 46.8
A76: E.3.1.2 | B76: Weighted Average Maturity (months) | C76: 61.2 | D76: 133.2
A77: OE.3.1.1
A78: OE.3.1.2
A79: OE.3.1.3
A80: OE.3.1.4
B81: 2. Arrears 1) | C81: % Residential Loans | D81: % Commercial Loans | E81: % Public Sector Assets | F81: % Shipping Loans | G81: % Total Loans
A82: E.3.2.1 | B82: <30 days | C82: 0 | D82: 0 | E82: 0 | F82: 0 | G82: ND2
A83: E.3.2.2 | B83: 30-<60 days | C83: 0 | D83: 0 | E83: 0 | F83: 0 | G83: ND2
A84: E.3.2.3 | B84: 60-<90 days | C84: 0 | D84: 0 | E84: 0 | F84: 0 | G84: ND2
A85: E.3.2.4 | B85: 90-<180 days | C85: 0 | D85: 0 | E85: 0 | F85: 0 | G85: ND2
A86: E.3.2.5 | B86: >= 180 days | C86: 0 | D86: 0 | E86: 0 | F86: 0 | G86: ND2
A87: OE.3.2.1
A88: OE.3.2.2
A89: OE.3.2.3
A90: OE.3.2.4
A92: footnote:

Sheet vdp-Glossar (D)
A1: Begriff | B1: vdp-§ 28 Transparenzinitiative | C1: erweiterters vdp-Template | D1: HTT | E1: Erklärung
A2: Ausgleichsforderungen | B2: Tabellenblätter StTwh, STwo, StTws, StTwf Spalte F | E2: 1. aus der Währungsreform 1948 stammende, im Schuldbuch eingetragene Forderungen von der Deutschen Bundesbank (bzw. Bank deutscher Länder und Landeszentralbanken), von Kreditinstituten, Post- und Bausparkassen sowie Versicherungen gegen die öffentliche Hand (Bund, Länder). Die Eröffnungsbilanzen der Institute hatten 1948 eine Lücke bei den Aktiva, da der Großteil ihrer Forderungen (diejenigen gegen das Deutsche Reich) im Unterschied zu ihren Verbindlichkeiten nicht auf DM umgerechnet wurden. Die Ausgleichsforderungen wurden u.a. aus Mitteln des Bundesbank-Gewinns seit 1956 innerhalb von 37 Jahren getilgt. Die je nach Fristigkeit mit 3 bis 4,5 Prozent pro Jahr festverzinsten Ausgleichsforderungen waren zum Nennbetrag zwischen Kredit- und Versicherungsinstituten handelbar; wurden in Schatzwechsel und unverzinsliche Schatzanweisungen umgewandelt. 2. Auch im Zuge der Einführung der DM in der ehemaligen DDR zum 1.7.1990 wurde das Instrument der Ausgleichsforderungen verwendet. Ergab sich bei sanierungsfähigen Unternehmen (nicht Kreditinstitute, Versicherungen und Außenhandelsbetriebe), die als bisheriges volkseigenes Vermögen unentgeltlich der Treuhandanstalt oder ihrer Tochterunternehmungen zur Privatisierung übertragen wurden, ein nicht durch Eigenkapital gedeckter Fehlbetrag, so erhielten diese eine ab 1.7.1990 verzinsliche (Treuhandanstalt 5 Prozent pro Jahr) Ausgleichsforderung gegenüber ihren vorläufigen Eignern (§ 24 DMBilG)
A3: Barwert | B3: Tabellenblatt StTai Spalte F - I | C3: Spalte C Zeilen 20, 54, 83, 114 | D3: A. HTT General Spalte C Zeilen 40-41 (NPV) | E3: Der Barwert ist der Wert, den zukünftige Zahlungen in der Gegenwart besitzen. Er wird durch Abzinsung der zukünftigen Zahlungen und anschließendes Summieren ermittelt Heutiger Wert zukünftiger Zahlungen (Cashflows) unter Annahme einer bestimmten Verzinsung (z.B. Barwert von Investitionsrückflüssen, Barwert einer Rente oder Barwert einer Anleihe). Durch die Ermittlung des Barwertes werden Zahlungen, die zu unterschiedlichen Zeitpunkten entstehen, vergleichbar gemacht. Zur Ermittlung des Barwertes eines Zahlungsstroms werden die einzelnen Ein- bzw. Auszahlungen mit einem laufzeit- und risikoäquivalenten Kalkulationszinssatz abgezinst (diskontiert). Die Diskontierung berücksichtigt den Umstand, dass der heutige Wert einer Zahlung sowohl für den Zahlungspflichtigen als auch für den Zahlungsempfänger umso geringer ist, je später diese Zahlung fällig wird.
A4: Barwertverordnung | B4: Tabellenblatt StTk | E4: http://www.pfandbrief.de/cms/_internet.nsf/0/06A21D027F07E932C12579E200384989/$FILE/DE_PfandBarWertV_01.2011.pdf?OpenElement
A5: Beleihungswert | E5: http://www.pfandbrief.de/cms/_internet.nsf/0/2E2059E444935AC8C1257D74003309A0/$FILE/vdp_Broschuere_BelWert_2011_11_04_DE.pdf
A6: Beleihungswertermittlungsverordnung | E6: http://www.pfandbrief.de/cms/_internet.nsf/0/06BFDC302B658001C12579E20038498C/$FILE/DE_PfandBG_10.2009.pdf?OpenElement
A7: Bonitätsdifferenzierungsmodell | B7: Tabellenblatt StTai Spalte D - G, Zeilen 28-29, 41-42, 54-55, 67-68 | E7: Die andauernde Finanzkrise hat das Vertrauen in die Kreditwürdigkeit einiger europäischer Staaten erschüttert. Infolgedessen ist die uneingeschränkte Deckungsfähigkeit von Forderungen gegenüber EU- und EWR-Staaten sowie deren unterstaatliche Stellen zunehmend kritisiert worden. Vor diesem Hintergrund haben die vdp-Mitgliedsinstitute anlässlich ihrer im Juni 2012 durchgeführten Mitgliederversammlung einstimmig das vdp-Bonitätsdifferenzierungsmodell für EU-Staaten gebilligt. Die Mitte 2011 ins Leben gerufene vdp-Initiative ist eine Antwort darauf, dass auch die neue Bankenregulierung nicht zwischen unterschiedlichen Staatenrisiken differenzieren wird. Die fehlenden gesetzlichen Regelungen zur Kreditdifferenzierung souveräner Staaten sollen durch einen freiwilligen vdp-Standard kompensiert werden, wobei mittelfristig eine gesetzliche Lösung ohne Bezug zu externen Ratings wünschenswert ist. Erfahrungswerte, welche nun im Zuge der Anwendung des freiwilligen vdp-Standards gesammelt werden, können später in eine gesetzliche Regelung einfließen. Die im vdp-Modell vorgesehene Bonitätsdifferenzierung erfolgt durch laufzeitunabhängige Abschläge auf den Nominalwert der jeweiligen Forderung. Die Höhe der Sicherheitsabschläge orientiert sich an den externen Ratings von Moody’s, Standard & Poor’s und Fitch für Zentralstaaten sowie an den diesen Ratingstufen zugrundeliegenden Ausfallwahrscheinlichkeiten. Der vdp-Standard sieht vor, dass Forderungen gegen EU-Staaten mit einem Non-Investmentgrade-Rating außerhalb der gesetzlich vorgeschriebenen Deckungsrechnung gesondert mit Abschlägen versehen werden. Die Abschläge sind auch auf Forderungen gegen unterstaatliche Stellen aus diesem Land anzuwenden. http://www.pfandbrief.de/cms/_internet.nsf/tindex/de_32.htm
A8: Bonitätsstufe 1 und 2 | C8: Spalte C Zeilen 16-17, 50-51, 79-80, 110-111 | D8: A. HTT General Spalte C Zeilen 190-191 | E8: Nach § 4 Abs. 1 Nr. 3 PfandBG sind grundsätzlich nur Kreditinstitute aus dem Europäischen Wirtschaftsraum, der Schweiz, den USA, Kanada und Japan deckungsfähig, die die Anforderungen der Bonitätsstufe 1 erfüllen. Maßgeblich hierfür sind Tabelle 3 in Artikel 120 CRR (EU-Verordnung Nr. 575/2013) sowie Tabelle 5 des Artikels 121 CRR. Weisen die Forderungen eine Ursprungslaufzeit von bis zu 100 Tagen auf, sind auch Forderungen gegen Kreditinstitute der Bonitätsstufe 2 deckungsfähig. Droht eine erhebliche Schuldnerkonzentration im Falle der Beschränkung der Deckungsfähigkeit auf Kreditinstitute der Bonitätsstufe 1, kann die nationale Aufsichtsbehörde BaFin nach Konsultation mit der EBA auch Forderungen gegen Kreditinstitute der Bonitätsstufe 2 mit einer Ursprungslaufzeit von mehr als 100 Tagen für deckungsfähig erklären. Zur Zeit liegt eine entsprechende Allgemeinverfügung der BaFin vor wonach Forderungen gegenüber Kreditinstituten mit Bonitätsstufe 2 deckungsfähig sind. Bezogen auf die drei großen Ratingagenturen Fitch/Moody's/S&P erfüllen Kreditinstitute die Anforderungen an Bonitätsstufe 1, wenn sie mindestens AA-/Aaa/AA- geratet sind. Für die Bonitätsstufe 2 sind Ratings von mindestens A-/Baa3/A- erforderlich. Liegen für ein Kreditinstitut mehrere externe Ratings vor, orientiert sich die Frage der Deckungsfähigkeit an Artikel 138 e) und j) der CRR (EU-Verordnung 575/2013.
A9: Fälligkeitsverschiebung | C9: Spalte H Zeile 5-6 | E9: Erst nach Einsetzen eines Sachwalters, hat dieser die Möglichkeit die Rückzahlung anstehender Fälligkeiten für einen bestimmten Zeitraum zu verschieben. Zeitraum als auch Bedingungen der Verschiebung sind entweder gesetzlich oder vertraglich geregelt.
A10: Fremdwährungen, Nettobarwert | B10: Tabellenblatt StTK Spalte D und E Zeilen 17-27, 42-52, 67-77,92-102 | E10: Nach § 28 Abs. 1 Nr. 10 PfandBG müssen Pfandbriefbanken den Nettobarwert je Fremdwährung veröffentlichen. Dieser ist definiert in § 6 Barwertverordnung. Der Ausweis erfolgt in Euro, die Umrechnung nach § 1 Barwertverordnung auf Basis der EZB-Referenzkurse
A11: gesetzliche Überdeckung | C11: Spalte C Zielen 8, 43, 73, 104 | D11: A. HTT General C47 | E11: barwertig unter Berücksichtigung von Zins- und Währungsstress (s. auch Überdeckung)
A12: Gewichteter LTV (Durchschnittlicher Beleihungsauslauf) | B12: Tabellenblatt StTK Spalte D und E Zeile 29 | C12: Spalte C Zeilen 76, 107 | D12: B1. HTT Mortgage Assets C 197 | E12: Durchschnittlicher, anhand des Betrages der zur Deckung verwendeten Forderung gewichteter, Beleihungsauslauf
A13: Grenzwerte nach § 13 Abs. 1 PfandBG | B13: Tabellenblatt StTK Spalte D und E Zeile 13 | E13: Der Gesamtbetrag der Beleihungen in Staaten, die nicht der Europäischen Union angehören, bei denen nicht sichergestellt ist, dass sich das Vorrecht der Pfandbriefgläubiger nach § 30 Abs. 1 PfandBG auf die Forderungen der Pfandbriefbank aus diesen Beleihungen erstreckt, darf 10 Prozent des Gesamtbetrages der Beleihungen, bei denen das Vorrecht sichergestellt ist, nicht übersteigen.
A14: Grenzwerte nach § 19 Abs. 1 Nr. 2 PfandBG | B14: Tabellenblatt StTK Spalte D und E Zeile 14 | E14: Die Deckung der Hypothekenpfandbriefe kann bis zu insgesamt 10 Prozent des Gesamtbetrages der im Umlauf befindlichen Hypothekenpfandbriefe durch Werte der in § 4 Absatz 1 Satz 2 Nummer 1 und 2 PfandBG bezeichneten Art, durch Geldforderungen gegen die Europäische Zentralbank, gegen Zentralbanken der Mitgliedstaaten der Europäischen Union oder gegen Kreditinstitute im Sinne des § 4 Absatz 1 Satz 2 Nummer 3 PfandBG, sofern die Höhe der Forderungen der Pfandbriefbank bereits beim Erwerb bekannt ist, sowie durch das jeweilige Guthaben aus einer Kontoverbindung mit den vorgenannten Stellen erfolgen; der Anteil an Geldforderungen gegen ein und dasselbe Kreditinstitut darf nicht höher sein als 2 Prozent des Gesamtbetrages der in Halbsatz 1 genannten Hypothekenpfandbriefe.
A15: Grenzwerte nach § 19 Abs. 1 Nr. 3 PfandBG | B15: Tabellenblatt StTK Spalte D und E Zeile 15 | E15: Die Deckung der Hypothekenpfandbriefe kann bis zu insgesamt 20 Prozent des Gesamtbetrages der im Umlauf befindlichen Hypothekenpfandbriefe durch Werte der in § 20 Abs. 1 PfandBG bezeichneten Art, sofern es sich um Schuldverschreibungen handelt erfolgen; die in Nummer 2 genannten Deckungswerte sind anzurechnen.
A16: Grenzwerte nach § 20 Abs. 2 PfandBG | B16: Tabellenblatt StTK Spalte D und E Zeile 39 | E16: Die Deckung der Öffentlichen Pfandbriefe kann bis zu 10 Prozent des Gesamtbetrages der im Umlauf befindlichen Öffentlichen Pfandbriefe durch Geldforderungen gegen die Europäische Zentralbank, gegen Zentralbanken der Mitgliedstaaten der Europäischen Union oder gegen Kreditinstitute im Sinne des § 4 Abs. 1 Satz 2 Nr. 3 PfandBG, sofern die Höhe der Forderungen der Pfandbriefbank bereits beim Erwerb bekannt ist, sowie durch das jeweilige Guthaben aus einer Kontoverbindung mit den vorgenannten Stellen erfolgen; der Anteil an Geldforderungen gegen ein und dasselbe geeignete Kreditinstitut darf nicht höher als 2 Prozent des Gesamtbetrages der im Umlauf befindlichen Öffentlichen Pfandbriefe sein; § 4 Absatz 1 Satz 4 bis 8 PfandBG gilt entsprechend.
A17: Grenzwerte nach § 26 Abs. 1 Nr. 3 PfandBG | B17: Tabellenblatt StTK Spalte D und E Zeile 64 | E17: Die Deckung von Schiffspfandbriefen kann bis zu 10 Prozent des Gesamtbetrages der im Umlauf befindlichen Schiffspfandbriefe durch Werte der in § 4 Abs. 1 Satz 2 Nr. 1 und 2 PfandBG bezeichneten Art, durch Geldforderungen gegen die Europäische Zentralbank, gegen Zentralbanken der Mitgliedstaaten der Europäischen Union oder gegen Kreditinstitute im Sinne des § 4 Abs. 1 Satz 2 Nr. 3 PfandBG, sofern die Höhe der Forderungen der Pfandbriefbank bereits beim Erwerb bekannt ist, sowie durch das jeweilige Guthaben aus einer Kontoverbindung mit den vorgenannten Stellen erfolgen; der Anteil an Geldforderungen gegen ein und dasselbe Kreditinstitut darf nicht höher als 2 Prozent des Gesamtbetrages der in Halbsatz 1 genannten Schiffspfandbriefe sein; § 4 Absatz 1 Satz 4 bis 8 PfandBG gilt entsprechend.
A18: Grenzwerte nach § 26 Abs. 1 Nr. 4 PfandBG | B18: Tabellenblatt StTK Spalte D und E Zeile 65 | E18: Die Deckung von Schiffspfandbriefen kann bis zu insgesamt 20 Prozent des Gesamtbetrages der im Umlauf befindlichen Schiffspfandbriefe durch Werte der in § 20 Abs. 1 PfandBG bezeichneten Art, sofern es sich um Schuldverschreibungen handelt erfolgen; die in Nummer 3 genannten Deckungswerte sind anzurechnen.
A19: Grenzwerte nach § 26f Abs. 1 Nr. 3 PfandBG | B19: Tabellenblatt StTK Spalte D und E Zeile 89 | E19: Die Deckung von Flugzeugpfandbriefen kann bis zu 10 Prozent des Gesamtbetrages der im Umlauf befindlichen Schiffspfandbriefe durch Werte der in § 4 Abs. 1 Satz 2 Nr. 1 und 2 PfandBG bezeichneten Art, durch Geldforderungen gegen die Europäische Zentralbank, gegen Zentralbanken der Mitgliedstaaten der Europäischen Union oder gegen Kreditinstitute im Sinne des § 4 Abs. 1 Satz 2 Nr. 3 PfandBG, sofern die Höhe der Forderungen der Pfandbriefbank bereits beim Erwerb bekannt ist, sowie durch das jeweilige Guthaben aus einer Kontoverbindung mit den vorgenannten Stellen erfolgen; der Anteil an Geldforderungen gegen ein und dasselbe Kreditinstitut darf nicht höher als 2 Prozent des Gesamtbetrages der in Halbsatz 1 genannten Schiffspfandbriefe sein; § 4 Absatz 1 Satz 4 bis 8 PfandBG gilt entsprechend.
A20: Grenzwerte nach § 26f Abs. 1 Nr. 4 PfandBG | B20: Tabellenblatt StTK Spalte D und E Zeile 90 | E20: Die Deckung von Flugzeugpfandbriefen kann bis zu insgesamt 20 Prozent des Gesamtbetrages der im Umlauf befindlichen Schiffspfandbriefe durch Werte der in § 20 Abs. 1 PfandBG bezeichneten Art, sofern es sich um Schuldverschreibungen handelt erfolgen; die in Nummer 3 genannten Deckungswerte sind anzurechnen.
A21: Gruppeninterne Transaktionen | C21: Spalte C Zeilen 19, 53, 82, 113 | D21: A. HTT General C241 | E21: Diese Betrachtung bezieht sich auf Derivatgeschäfte: Artikel 1 Nr. 19 der Verordnung (EU) Nr. 1333/2014 der EZB definiert gruppeninterne Transaktionen als Geschäfte zwischen einem Berichtspflichtigen und einem anderen Unternehmen, welches durchgängig in denselben konsolidierten Abschluss einbezogen ist. Der Begriff „konsolidierter Abschluss“ basiert dabei auf der Definition von IFRS bzw. bankenaufsichtlicher Konsolidierung. Verbandsinterne Geschäfte zwischen rechtlich selbstständigen Instituten, zum Beispiel innerhalb des Sparkassen- bzw. genossenschaftlichen Sektors, zählen nicht als gruppeninterne Transaktionen im Sinne der Verordnung (EU) Nr. 1333/2014 der EZB.
A22: insured mortgages | C22: Spalte C Zeile 4 | E22: Anteil versicherter Darlehen. Nach § 15 PfandBG muss während der gesamten Beleihung eine Versicherung sichergestellt sein. Daher sind alle Immobilien, die als Sicherheiten von in Deckung befindlichen Immobiliendarlehen dienen, gegen die jeweils relevanten Risiken versichert
A23: interest only loans | C23: Spalte C Zeile 13 | D23: B1. HTT Mortgage Assets F141 | E23: Anteil der Immobiliendarlehen an der Deckungsmasse, bei denen ausschließlich am Laufzeitende eine Tilgung erfolgt
A24: interner Swap-Kontrahent | C24: Spalte C Zeilen 19, 53, 82, 113 | D24: A. HTT General C241 | E24: Ein interner Swap-Kontrahent liegt z.B. bei einem Mutter-Tochter-Verhältnis entsprechend Artikel 1 der Richtlinie 83/349/EWG vor
A25: Laufzeitstruktur | B25: Tabellenblatt StTal | D25: A. HTT General C71-84 und C 97-109 | E25: Nach § 28 Abs. 1 Nr. 2 PfandBG sind Pfandbriefbanken gesetzlich verpflichtet, quartalsweise die Laufzeitstruktur der Pfandbriefe und Deckungswerte zu veröffentlichen. Dabei wird bei den Deckungswerten auf die Zinsbindungsfrist abgestellt. Grundsätzlich soll die Abbildung von Optionen gemäß der internen Steuerungslogik eines jeden Hauses erfolgen, insbesondere dort, wo für die gesamtbank- bzw. Konzernsteuerung zur Bewertung von Cash-flows Optionspreismodelle herangezogen werden. Auf der Passivseite ist eine Berücksichtigung der Kündigungsrechte nicht erforderlich, da die Entscheidung über deren Ausübung bei der Pfandbriefbank bzw. beim Sachwalter liegt. Auf der Aktivseite können Kündigungsrechte der Bank berücksichtigt werden. Gesetzliche Kündigungsrechte nach § 489 BGB können für die Darstellung in den Laufzeitbändern unberücksichtigt bleiben. Variabel verzinsliche Hypothekendarlehen sollen gemäß dem Termin der nächsten Margenanpassung in die Laufzeitbänder eingeordnet werden. Bei der Einordnung in die Laufzeitbänder sind die planmäßigen Tilgungsanteile zugrunde zu legen (Cash-Flow-Betrachtung)
A26: limited certified loans | C26: Spalte C Zeile 10 | E26: Immobiliendarlehen bei denen der Schuldner sein Einkommen nur teilweise nachgewiesen hat. Solche Darlehen sind nicht Bestandteil der Deckungsmassen deutscher Pfandbriefe.
A27: LTV (Beleihungsauslauf) | B27: Tabellenblatt StTK | D27: B1. HTT Mortgage Assets C 197-202 | E27: Die Ermittlung des Beleihungsauslaufs (LTV) stellt auf den deutschen Beleihungswert ab, der in § 16 PfandBG sowie detailliert in der Beleihungswertermittlungsverordung (BelWertV) geregelt ist. Sowohl wohnwirtschaftliche als auch gewerbliche Immobiliendarlehen sind bis zu 60% des ermittelten Beleihungswertes deckungsfähig. Bei der Beleihungswertermittlung werden die langfristigen und nachhaltigen Objektmerkmale sowie derzeitige und mögliche anderweitige Nutzungen und Nutzer berücksichtigt. Übertriebene Marktpreise müssen dabei außer Acht gelassen werden. Grundsätzlich ist eine Objektbesichtigung im Rahmen der Wertermittlung vorgeschrieben, Ausnahmen gibt es für Kleindarlehen bis 400.000 Euro. Die Monitoring-Anforderungen ergeben sich zum Einen aus Artikel 208 Absatz 3 CRR. Danach sind Gewerbeimmobilien mindestens jährlich, Wohnimmobilien mindestens alle 3 Jahre zu überwachen. Ferner verlangt § 27 der BelWertV eine Überprüfung, wenn das Preisniveau am Immobilienmarkt substantiell gesunken ist. Eine Überprüfung ist ebenso bei einem Default des Darlehens erforderlich.
A28: ND1 | E28: ND1 = No Data - Diese Information beim Deutschen Pfandbrief nicht geeignet/anwendbar
A29: ND2 | E29: ND2 = No Data - Diese Information ist zurzeit bei diesem Emittenten und / oder Pfandbriefprogramm nicht relevant
A30: ND3 | E30: ND3 = No Data - Diese Information ist zurzeit nicht verfügbar
A31: Nominalwert / Nominal / nom. | E31: Im Wertpapierbereich können Nominalwerte häufig von den aktuellen Kurswerten, d.h. den Werten am Markt, abweichen. Beispiel: Nominalwert Anleihe X = 1.000 € Kurswert Anleihe X = 990,00 € (Kurs = 99 %) Der Nominalwert stellt die Forderung des Investors gegenüber dem Emittenten dar, welche bei Fälligkeit zu 100 % fällig ist. Bei Rückzahlung wird, unabhängig vom investierten Betrag, der Nominalwert zu Grunde gelegt. Sollte das Wertpapier noch während der Laufzeit und somit vor Fälligkeit veräußert werden, wird die Zahlung auf dem aktuellen Kurswert basieren.
A32: non first Lien mortgages | C32: Spalte C Zeile 11 | D32: B1. HTT Mortgage Assets C257 | E32: Anteil der Immobiliendarlehen an der Deckungsmasse, bei denen Vorrechte im Grundbuch eingetragen sind. Eine Unterteilung nach Erstrang und Zweitrang ist in Deutschland bzw. beim Pfandbrief irrelevant. Nach der deutschen Rechtsordnung haben die Inhaber von Grundpfandrechten grundsätzlich unabhängig vom Rang die gleichen Verfahrensrechte. Jeder Inhaber eines Grundpfandrechtes kann Verwertungsmaßnahmen betreiben. Für die Sicherheit eines Grundpfandrechts ist vielmehr der Auslauf entscheidend. Es kommt darauf an, dass bestehende vorrangige Grundpfandrechte richtig berechnet und von der 60%-Grenze abgezogen werden. Vorränge im Grundbuch mit äußerst geringen Beträgen sind nicht selten, da alte Rechte oft nicht einfach zu löschen sind. Eine Verwässerung durch solch vorrangige Grundpfandrechte lässt sich durch eine entsprechende Kalkulation vermeiden. Theoretisch könnten alle in Deckung befindlichen Immobiliendarlehen nachrangig sein, ohne dass dies die Werthaltigkeit und Qualität der Deckungswerte schmälern und ein Risiko darstellen würde.
A33: NPL (Rückständige Darlehen) | B33: StTdh Spalte S-T, StTdoR, StTds Spalten H-I, StTdf Spalten F-G | D33: B1. HTT Mortgage Assets F161 | E33: Nach § 28 Abs. 2 Nr. 2 PfandBG müssen Pfandbriefbanken den Gesamtbestand der mindestens 90 Tage rückständigen Leistungen, bezogen auf den in Deckung befindlichen Teil eines Darlehens, quartalsweise veröffentlichen.
A34: Objektarten | B34: Tabellenblatt StTdo | D34: B1. HTT Mortgage Assets C241-249 und C341-350 | E34: Die deckungsfähigen Immobilienwerte sind in §§ 12 bis 18 PfandBG geregelt. Danach sind sowohl wohnwirtschaftliche als auch gewerbliche Immobilien deckungsfähig. Die Abgrenzung erfolgt anhand der Nutzungsart. § 28 Abs. 2 Nr. 1 PfandBG verlangt von Pfandbriefbanken eine quartalsweise Veröffentlichung der Deckungswerte aufgegliedert nach Eigentumswohnungen, Ein- und Zweifamilienhäusern, Mehrfamilienhäusern, Bürogebäuden, Handelsgebäuden, Industriegebäuden, sonstigen gewerblich genutzten Gebäuden, unfertigen und noch nicht ertragsfähigen Neubauten sowie Bauplätzen. Hypotheken an Bauplätzen dürfen jedoch maximal 1% des Gesamtbetrages der zur Deckung der Hypothekenpfandbriefe benutzten Deckungswerte ausmachen (§ 16 Abs. 3 PfandBG). Zusammen mit noch nicht fertig gestellten Neubauten, die noch nicht ertragsfähig sind, darf der Anteil 10 Prozent des Gesamtbetrages der zur Deckung von Hypothekenpfandbriefen verwendeten Deckungswerte nicht überschreiten. Hypotheken an Grundstücken, die einen dauernden Ertrag nicht gewähren sind nicht deckungsfähig.
A35: Pass through Strukturen | C35: Spalte H Zeilen 7,46,76,107 | E35: Hierbei werden im Falle der Insolvenz des Emittenten sämtliche ausstehenden Covered Bonds pro rata nach den eingehenden Zahlungen aus der Deckungsmasse bedient. Die Zahlungen werden so zu sagen zum Covered Bond Gläubiger durchgereicht.
A36: Pfandbriefgesetz | E36: http://www.pfandbrief.de/cms/_internet.nsf/tindex/de_111.htm
A37: Risikobarwert | B37: StTai Spalte H und I | E37: Nach § 28 Abs. 1 PfandBG sind Pfandbriefbanken gesetzlich verpflichtet, quartalsweise den so genannten Risikobarwert der ausstehenden Pfandbriefe und der Deckungswerte zu veröffentlichen. Darunter ist der Barwert nach den vorgegebenen Zins- und Währungsstressszenarien zu verstehen. Da beim Zinsstress sowohl ein Anstieg als auch ein Rückgang der Zinsen und beim Währungsstress sowohl eine Auf- als auch eine Abwertung simuliert werden muss, sollen die Pfandbriefbanken nur den Risikobarwert veröffentlichen, der die betragsmäßig geringste Überdeckung ergibt.
A38: Rückständige Leistungen | B38: StTdh Spalte S-T, StTdoR, StTds Spalten H-I, StTdf Spalten F-G | D38: B1. HTT Mortgage Assets F160 B2. HTT Public Assets C167 | E38: Als rückständig gilt eine Leistung ab dem 90. Tag nach ihrer Fälligkeit (siehe auch NPL). Es sind lediglich die auf den in Deckung befindlichen Teil eines Darlehens entfallenden rückständigen Leistungen auszuweisen: Zinsen: Aufteilung auf Deckungs- und Außerdeckungsteil anzurechnen / Tiglung: Zunächst nur auf Außerdeckungsteil anzurechnen.
A39: Seasoning | B39: StTk Spalte D-E Zeile 28 | C39: Spalten C-H Zeile 39 | D39: B1. HTT Mortgage Assets Spalte C-F Zeilen 150-155 | E39: Ausweis der seit der Kreditvergabe verstrichenen Zeit. Unter Kreditvergabe wird der Zeitpunkt der erstmaligen Kreditvalutierung verstanden.
A40: Self certified loans | C40: C9 | E40: Immobiliendarlehen bei denen der Schuldner sein Einkommen nicht nachgewiesen hat. Solche Darlehen sind gemäß Pfandbriefgesetz als Deckungswerte nicht zugelassen und somit auch nicht Bestandteil der Deckungsmassen deutscher Pfandbriefe.
A41: Soft Bullet Strukturen | C41: Spalte H Zeilen 4,43,73,104 | E41: Die Rückzahlung des Kapitalbetrages der Anleihe kann zu festgelegten Bedingungen (Zahlung eines vereinbarten Verzugszinses) um einen festgelegten Zeitraum (meistens 6 bis 12 Monate) verschoben werden. Die Zeiträume und Bedingungen können je nach Jurisdiktion bzw. Bank variieren. Im Gegensatz dazu erfolgt bei Hard-Bullet-Strukturen die Rückzahlung zu einem festen Zeitpunkt.
A42: Überdeckung | B42: Tabellenblatt StTai | C42: Spalte C Zeile 8,43,73,104 | D42: A. HTT General Spalten C-D Zeilen 45-47 | E42: Grundsätzlich der Anteil der Deckungsmasse, der den Anteil der ausstehenden Pfandbriefe übersteigt - § 4 PfandBG verlangt von Pfandbriefbanken eine Überdeckung von mindestens 2% barwertig unter Berücksichtigung von definierten Zins- und Währungsstressszenarien (sog. sichernde Überdeckung). Die barwertige Deckungsrechnung sowie die Zins- und Währungsstresse sind in der Barwertverordnung definiert. Die sichernde Überdeckung hat in liquiden Werten zu erfolgen, damit sie im Falle der Insolvenz der Pfandbriefbank vom dann zuständigen Sachwalter genutzt werden können, um schnell Liquidität zu generieren. Diesem Zweck dient auch die gesetzliche Vorschrift zur Absicherung des Liquiditätsbedarfs der Deckungsmasse für die nächsten 180 Tage. Auch dieser Liquiditätspuffer ist in liquiden Deckungswerten vorzuhalten. Als liquide gelten Assets, die von der EZB als notenbankfähig akzeptiert werden. Ferner ist die nominale Deckung vorgeschrieben.
A43: Versicherungen Bestandteil der Deckungsmasse? | C43: C5 | E43: § 12 Abs. 3 PfandBG regelt, dass sich die eingetragenen Deckungswerte auch auf alle Forderungen erstrecken, die auf die wirtschaftliche Substanz des Grundstücks gerichtet sind.
A44: Währungsrisiken | B44: StTk Spalte D Zeilen 17-27, 42-52, 67-77, 92-102 | C44: Spalten C und D Zeilen 22-33, 56-67, 85-96, 116-127 | D44: A. HTT General Spalte D Zeilen 115-157 | E44: Nach § 4 Abs. 1 PfandBG müssen Pfandbriefbanken eine barwertige Überdeckung von mindestens 2% unter Berücksichtigung von Zins- und Währungsstressen halten (sog. sichernde Überdeckung). Die durchzuführenden Währungsstressszenarien sind in § 6 Barwertverordnung geregelt (s. auch Link zur Barwertverordnung)
A45: WAL der ausstehenden Pfandbriefe | C45: Spalte H Zeile 3, 42, 72, 103 | D45: A. HTT General Spalten C Zeilen 91-94 | E45: WAL steht für Weighted Average Life und gibt die gewichtete durchschnittliche Restlaufzeit aller ausstehenden Pfandbriefe an. Die Ermittlung dieses WAL erfolgt analog der Ermittlung der Laufzeitstruktur zur Abbildung der Laufzeitbänder nach § 28 PfandBG. So soll grundsätzlich die Abbildung von Optionen gemäß der internen Steuerungslogik eines jeden Hauses erfolgen.Eine Berücksichtigung von Kündigungsrechten ist nicht erforderlich, da die Entscheidung über deren Ausübung bei der Pfandbriefbank bzw. dem Sachwalter liegt.
A46: WAL der Deckungsmasse | C46: Spalte C Zeile 3, 42, 72, 103 | D46: A. HTT General Spalten C Zeilen 66-69 | E46: WAL steht für Weighted Average Life und gibt die gewichtete durchschnittliche Restlaufzeit aller ausstehenden Deckungswerte an. Die Ermittlung dieses WAL erfolgt analog der Ermittlung der Laufzeitstruktur zur Abbildung der Laufzeitbänder nach § 28 PfandBG. So soll grundsätzlich die Abbildung von Optionen gemäß der internen Steuerungslogik eines jeden Hauses erfolgen.Es können Kündigungsrechte der Bank berücksichtigt werden.
A47: Weitere Deckungswerte | B47: StTwh, StTwo, StTws, StTwf | D47: A. HTT General Spalten C Zeilen 56, 177-190 | E47: Als weitere Deckungswerte kommen beim Hypothekenpfandbrief Forderungen gegen Kreditinstitute sowie Forderungen gegen die Öffentliche Hand in Frage. Erstere sind in § 19 Abs. 1 Nr. 2 PfandBG geregelt, letzere in § 19 Abs. 1 Nr. 3 PfandBG. Forderungen gegen Kreditinstitute dürfen zu maximal 10% zur Deckung der im Umlauf befindlichen Hypothekenpfandbriefe herangezogen werden, wobei maximal 2% gegen ein und dasselbe Kreditinstitut bestehen dürfen. Forderungen gegen die Öffentliche Hand dürfen zu maximal 20% zur Deckung der in Umlauf befindlichen Hypothekenpfandbriefe beitragen, wobei in Summe die Forderungen gegen Kreditinstitute und Forderungen gegen die Öffentliche Hand nur zu 20% zur Deckung der in Umlauf befindlichen Hypothekenpfandbriefe beitragen dürfen.
A48: Zinsrisikien | B48: StTk Spalte C Zeilen 10, 16, 35, 41, 60, 66, 85, 91 | D48: A. HTT General Spalten C Zeilen 168-170, B1. HTT Mortgage Assets C 131-133, B2. HTT Public Sector Assets C 130-132, B3. HTT Shipping Assets C 81-83 | E48: Nach § 4 Abs. 1 PfandBG müssen Pfandbriefbanken eine barwertige Überdeckung von mindestens 2% unter Berücksichtigung von Zins- und Währungsstressen halten. Die durchzuführenden Zinsstressszenarien sind in § 5 Barwertverordnung geregelt (s. auch Link zur Barwertverordnung)
A49: notenbankfähige Wertpapiere | C49: Spalte C Zeilen 14, 48, 77, 108 | D49: A. HTT General Spalten C Zeile 222 | E49: Wertpapiere, die bei Notenbank als Sicherheit für Refinanzierungsgeschäfte hinterlegt werden können. Hierdurch kann kurzfristig Liquidität über die Notenbank beschafft werden.
A50: Garantierte Kredite | C50: Spalte C Zeile 7 | D50: B1. HTT Mortgage Assets C Zeile 258 | E50: Nicht im Pfandbriefgesetz geregelt. Die Frage nach garantierten Wohnimmobilienkredite stellt sich nur für Mortgage Cover Pools anderer Covered Bond Jurisdiktionen (bspw. Frankreich).
A51: Nettobarwert der Derivate in Deckung | C51: Spalte C Zeilen 20, 54, 83, 114 | D51: A. HTT General Spalten C Zeile 238 | E51: Deckungsderivate werden nur mit ihrem über alle Rahmenverträge hinweg genetteten Barwert dargestellt. D.h. es ist pro Pfandbriefart nur ein einzelner Barwert, der entweder eine Verbindlichkeit oder eine Forderung darstellt, auszuweisen.
A52: Währungspositionen (nominal) | C52: Spalten C-D Zeilen 22-33, 56-67, 85-96, 116-127 | D52: A.HTT General Spalte D Zeilen 116-157 | E52: Es erfolgt je ein Ausweis nach der Währung, in der Werte in Deckung genommen bzw. Pfandbriefe begeben wurden. Je Währung wird eine Summe getrennt nach Deckungswerten und Pfandbriefen dargestellt.
A53: Beleihungsauslauf in Bandbreiten | C53: C-H37 | D53: B1. HTT Mortgage Assets C 200-208 | E53: Jeder in Deckung befindlichen Darlehnsanteil wird gemäß seines individuellen Beleihungsauslaufs einer Bandbreite zugeordnet. Die Summe aller Darlehen einer Bandbreite wird dargestellt. Für die Einordnung in die Bandbreite ist der Gesamtauslauf auf den in Deckung befindlichen Darlehnsteil maßgeblich. Bsp.: Darlehnsbetrag mit Beleihungsauslauf von 55 % wird in die Bandbreite <50 bis >= 60 eingeordnet.
A54: Alter der Kredite | B54: Tabellenblatt StTk C28 | C54: Spalten C- H, Zeile 39 | D54: B1. HTT Mortgage Assets F 151-155 | E54: Ausweis der seit der Kreditvergabe verstrichenen Zeit (siehe auch Seasoning). Unter Kreditvergabe wird der Zeitpunkt der erstmaligen Kreditvalutierung verstanden.
A55: Anzahl der Kredite | C55: G13 | D55: B1. HTT Mortgage Assets Spalte D Zeilen 28, 168, 268, B2. HTT Public Sector Assets D 10, 19, B3. HTT Shipping Loans C 10 | E55: Die Anzahl der einzelnen Kreditengagements - beim Hypothekenpfandbrief erfolgt eine Unterteilung in gewerbliche und wohnwirtschaftliche Kredite
A56: Anzahl der Kreditnehmer | C56: G12 | D56: B1. HTT Mortgage Assets Spalte D Zeilen 29, B2. HTT Public Sector Assets D 11, B3. HTT Shipping Loans C 11 | E56: Kreditnehmer in Summe- hierbei kann ein Kreditnehmer mehrere Kredite haben - aus Vereinfachnungsgründen kann bei gemischten Finanzierungen ab einem gewerblichen Anteil von 0,5 dieser Kreditnehmer gänzlich zu Fallzahl gewerblich gerechnet werden.
A57: Anzahl der Objekte | C57: G14 | E57: Summe aller in der Deckungsmasse befindlichen Objekte- (ein Kredit kann mit mehreren Objekten besichert sein)
A58: Selbstgenutzte Wohnungen | C58: G15 | D58: B1. HTT Mortgage Assets Spalte C Zeilen 141, | E58: Der Kreditnehmer bewohnt die Immobilie selbst (Eigennutzer).
A59: Mehrfamilienhäuser | B59: Tabellenblatt StTdh | C59: G16 | D59: B1. HTT Mortgage Assets Spalte C Zeilen 147, | E59: In einem Haus befinden sich mehrere vermietete Wohnungen (mehr als 2) - Eigentümer können u.a. Privatpersonen, Family Offices, Wohnungsunternehmen sein.
A60: Alter der Schiffe (Fluzgeuge) in Bandbreiten | C60: Spalte C-F Zeile 129 | E60: Gemäß der verstrichenen Zeit seit Inbetriebnahme der Schiffe (Flugzeuge) werden die dazugehörigen in Deckung befindlichen Darlehnsanteile den Bandbreiten betragsmäßig zugeordnet und aufsummiert ausgewiesen.
A61: Größengruppen | B61: Tabellenblatt StTag | D61: B1. HTT Mortgage Assets C 170-195, B2. HTT Public Sector Assets C 22-37, B3. HTT Shipping Assets C 120-144 | E61: Gemäß den Vorgaben des Pfandbriefgesetzes werden die einzelnen Forderungen je nach Betrag den entsprechenden vorgegebenen Kategorien zugeordnet und aufsummiert je Größengruppe ausgewiesen.
A62: Eigentumswohnungen | B62: Tabellenblatt StTdh | E62: Wohnungen, die sich in Mehrfamilienhäusern befinden und von privaten Eigentümern entweder selbst genutzt oder fremdvermietet werden.
A63: Ein- und Zweifamilienhäuser | B63: Tabellenblatt StTdh | E63: Freistehende Häuser mit einer oder maximal zwei integrierten Wohneinheiten, die von privaten Eigentümern entweder selbstgenutzt oder fremdvermietet oder zum Teil fremdvermietet sind.
A64: Unfertige noch nicht ertragfähige Neubauten | B64: Tabellenblatt StTdh | D64: B1. HTT Mortgage Assets C 350 und C 249 | E64: Gebäude, deren Bau noch nicht abgeschlossen ist (Rohbauten).
A65: Bürogebäude | B65: Tabellenblatt StTdh | D65: B1. HTT Mortgage Assets C 343 | E65: Nichtwohngebäude, die überwiegend Büro- und Verwaltungszwecken dienen. Dazu zählen u.a. die Büro- und Verwaltungsgebäude der gewerblichen Wirtschaft, darunter auch Bank- und Versicherungsgebäude, ferner Bürogebäude der öffentlichen Hand wie Ministerien, Stadtverwaltungen, Postämter, Bahnverwaltungen, ebenso Rundfunkhäuser, Verwaltungsgebäude der Kirchen, der Arbeiterwohlfahrt oder ähnlicher Organisationen.
A66: Handelsgebäude | B66: Tabellenblatt StTdh | D66: B1. HTT Mortgage Assets C 345 | E66: Gebäude des Groß- und insbesondere Einzelhandels.
A67: Industriegebäude | B67: Tabellenblatt StTdh | D67: B1. HTT Mortgage Assets C 346 | E67: Gebäude von Herstellungs- und Produktionsstätten, Fabrik- und Werkstattgebäude.
A68: Bauplätze | B68: Tabellenblatt StTdh | D68: B1. HTT Mortgage Assets C 349 und C 250 | E68: Baureife Grundstücke.
A69: sonstige gewerblich genutzte Gebäude | B69: Tabellenblatt StTdh | D69: B1. HTT Mortgage Assets C 348 | E69: Bspw. Gebäude der Land- und Forstwirtschaft, Hotelbauten.
A70: 90 Tage rückständige Leistungen | B70: Tabellenblatt StTdh | D70: B1. HTT Mortgage Assets F 161 | E70: Als rückständig gilt eine Leistung ab dem 90. Tag nach ihrer Fälligkeit. Es sind lediglich auf den n Deckung befindlichen Teil eines Darlehens entfallende rückständige Leistungen auszuweisen.
A71: Gesamtbetrag dieser Forderungen, soweit der jeweilige Rückstand (=die rückständigen Leistungen) mind. 5% der Forderung beträgt. | B71: Tabellenblatt StTdh | E71: Zur Bestimmung des Überschreitens der 5%-Hürde soll die - in Bezug auf den Deckungsbetrag - rückständige Leistung ins Verhältnis zum Gesamtbetrag des in Deckung befindlichen Teils des entsprechenden Darlehens gesetzt werden. Ausgewiesen wird dann der in Deckung befindliche Teil der Forderung.
A72: Gewährleistungen aus Gründen der Exportfinanzierung | B72: Tabellenblatt StTdo | E72: Exportkreditforderungen, welche gewährleistet werden: - entweder von einem gemäß § 20 PfandBG deckungsfähigen Staat selbst oder - von einem in einem derartigen Staat ansässigen Exportkreditversicherer (Export credit agency), welcher die Anforderungen einer öffentlichen Stelle erfüllt.
A73: Zentralstaat | B73: Tabellenblatt StTdo | D73: B2. HTT Public Sector Assets C 148 | E73: Hierbei ist die hierarchisch höchste Verwaltungshoheit eines Staates gemeint (unabhängig von der Organisationstruktur (Einheitsstaat oder Bundesstaat).
A74: Regionale Gebietskörperschaft | B74: Tabellenblatt StTdo | D74: B2. HTT Public Sector Assets C149 | E74: Unterhalb des Zentralstaats angeordnete Verwaltungseinheiten oder Bundesstaaten.
A75: Örtliche Gebietskörperschaft | B75: Tabellenblatt StTdo | D75: B2. HTT Public Sector Assets C150 | E75: Unterhalb der Verwaltungseinheiten und Bundesstaaten angeordnete Kommunen und deren Betriebe etc..
A76: Nettobarwert nach § 6 Pfandbrief-BarwertVO | B76: Tabellenblatt StTK Spalte D und E Zeilen 17-27, 42-52, 67-77,92-102 | E76: Betrifft den Nettobarwart für Fremdwährungspositionen gleicher Währung nach einer Berücksichtigung von Abschlägen gemäß einem vorgegebenen Stressszenario. Für den Ausweis nach § 28 Abs. 1 Nr. 10 PfandBG wird hierbei der Zinsstress nicht der Währungsstress erfasst. Der Ausweis erfolgt in Eurobeträgen auf Basis der offiziellen EZB-Referenzkurse. (s. auch http://www.pfandbrief.de/cms/_internet.nsf/0/06A21D027F07E932C12579E200384989/$FILE/DE_PfandBarWertV_01.2011.pdf?OpenElement)
A77: Anteil der festverzinslichen Pfandbriefe oder Deckungsmasse | B77: Tabellenblatt StTK | E77: Für den prozentualen Ausweis bilden Nominalwerte die Basis. Derivate in Deckung sind zu berücksichtigen.
A78: Property Type information (residential- commercial) | D78: B1. HTT Mortgage Assets C 12-13 | E78: Information über die Nutzungsart der für Sicherung der Forderung verwendeten Immobilie.
A79: Number of loans | B79: Tabellenblatt StTk C28 | C79: Spalten C- H, Zeile 39 | D79: B1. HTT Mortgage Assets F 151-155 | E79: s. Anzahl der Kredite
A80: Number of borrowers | C80: G13 | D80: B1. HTT Mortgage Assets Spalte D Zeilen 28, 168, 268, B2. HTT Public Sector Assets D 10, 19, B3. HTT Shipping Loans C 10 | E80: s. Anzahl der Kreditnehmer
A81: Breakdown by Geography | D81: B1. HTT Mortgage Assets C 43-87 B2. HTT Public Sector Assets C 48-92 B3. HTT Shipping Loans C 25-69 | E81: Länderspezifischer Ausweis der Forderungen. Die Forderungen werden verteilt auf die einzelnen Staaten, in denen die Schulder und im Falle der Gewährleistung die gewährleistende Stelle ihren Sitz hat.
A82: Breakdown by domestic regions | D82: B1. HTT Mortgage Assets C 98-128 B2. HTT Public Sector Assets C 103-129 | E82: Forderungsausweis nach Regionen innerhalb eines Staates (bspw. Bundesländer).
A83: Breakdown by repayment type - amortizing | D83: B1. HTT Mortgage Assets C 142 B2. HTT Public Sector Assets C 139 B3. HTT Shipping Loans C 92 | E83: Ausweis der Forderungen nach Rückzahlungsart- hier: amortisierend, d.h. es wir eine Rückzahlungsrate für die gesamte Laufzeit festgelegt, die sich aus einem anfänglichen Tilgungsanteil und einem Zinsanteil zusammensetzt. Da die Zinsen auf das jeweilige Restkapital berechnet werden, erhöht sich im Zeitablauf der Tilgungsanteil in dem Maße wie sich der Zinsanteil verringert.
A84: Breakdown by repayment type - bullet / interst only | D84: B1. HTT Mortgage Assets C 141 B2. HTT Public Sector Assets C 138 B3. HTT Shipping Loans C 91 | E84: Ausweis der Forderungen nach Rückzahlungsart- hier: Einmalrückzahlung. Die Rückzahlung des Darlehens erfolgt in einem Betrag. Während der Darlehenslaufzeit fallen nur Zinszahlungen an.
A85: Breakdown by interest type - fixed rate | D85: B1. HTT Mortgage Assets C 131 B2. HTT Public Sector Assets C 130, B3. HTT Shipping Loans C 81 | E85: Ausweis der Forderungen nach Art der Zinsfestschreibungsvereinbarung- hier: Festzinsvereinbarung.
A86: Breakdown by interest type - floating rate | D86: B1. HTT Mortgage Assets C 132 B2. HTT Public Sector Assets C 131, B3. HTT Shipping Loans C 82 | E86: Ausweis der Forderungen nach Art der Zinsfestschreibungsvereinbarung- hier: variable Zinsvereinbarung.
A87: Loan seasoning in buckets | D87: B1. HTT Mortgage Assets C 150-155 B3. HTT Shipping Loans C 100-105 | E87: Ausweis der seit der Kreditvergabe verstrichenen Zeit in Bandbreiten. Unter Kreditvergabe wird der Zeitpunkt der erstmaligen Kreditvalutierung verstanden.
A88: loan size in buckets | D88: B1. HTT Mortgage Assets C 170-195 B2. HTT Public Sector Assets C 21-37, B3. HTT Shipping Loans C 119-144 | E88: Gemäß den Vorgaben des Pfandbriefgesetzes werden die einzelnen Forderungen je nach Betrag den entsprechenden vorgegebenen Kategorien zugeordnet und aufsummiert je Größengruppe ausgewiesen.
A89: non performing loans | D89: B1. HTT Mortgage Assets C 161 B2. HTT Public Sector Assets C 167, B3. HTT Shipping Loans C 111 | E89: Ausweis der rückständigen Leistungen. Als rückständig gilt eine Leistung ab dem 90. Tag nach ihrer Fälligkeit. Es sind lediglich auf den in Deckung befindlichen Teil eines Darlehens entfallende rückständige Leistungen auszuweisen (siehe auch NPL).
A90: Weighted LTV | D90: B1. HTT Mortgage Assets C 197 | E90: Gewichteter Beleihungsauslauf (siehe auch LTV Beleihungsauslauf)
A91: LTV buckets | D91: B1. HTT Mortgage Assets C 199-208 | E91: Die Forderungen werden gemäß ihrem Beleihungsauslauf verschiedenen Bandbreiten zugeordnet. (siehe auch LTV Beleihungsauslauf)
A92: Breakdown by type (residential) - owner occupied | D92: B1. HTT Mortgage Assets C 241 | E92: s. Selbstgenutzte Wohnungen
A93: Breakdown by type (residential)- multi family homes | D93: B1. HTT Mortgage Assets C 248 | E93: s. Mehrfamilienhäuser
A94: Breakdown by type (residential) - Buildings under constructions | D94: B1. HTT Mortgage Assets C 249 | E94: s. Unfertige noch nicht ertragsfähige Neubauten
A95: Breakdown by type (residential) - Building land | D95: B1. HTT Mortgage Assets C 250 | E95: s. Bauplätze
A96: Loan by ranking - 1st lien | D96: B1. HTT Mortgage Assets C 258 | E96: s. Non first lien
A97: Loan by ranking - Guaranteed | D97: B1. HTT Mortgage Assets C 259 | E97: Ausweis nach Rangfolge der Forderungen (siehe auch non first lien)
A98: Breakdown by type (commercial) - shopping malls | D98: B1. HTT Mortgage Assets C 345 | E98: s. Handelsgebäude
A99: Breakdown by type (commercial) - office | D99: B1. HTT Mortgage Assets C 343 | E99: s. Bürogebäude
A100: Breakdown by type (commercial) - industry | D100: B1. HTT Mortgage Assets C 346 | E100: s. Industriegebäude
A101: Breakdown by type (commercial) - other commercial used | D101: B1. HTT Mortgage Assets C 348 | E101: s. Sonstige gewerblich genutzte Gebäude
A102: Breakdown by type (commercial) - land | D102: B1. HTT Mortgage Assets C 349 und C 250 | E102: s. Bauplätze
A103: Cover pool size (npv) | D103: A. HTT General M, P, S je Spalte C 40 | E103: Barwert des Gesamtbetrages der zur Deckung verwendeten Forderungen.
A104: Outstanding Covered Bonds (npv) | D104: A. HTT General M, P, S je Spalte C 39 | E104: Barwert des Gesamtbetrages der ausstehenden Pfandbriefe.
A105: Overcollateralisation | D105: A. HTT General M, P, S je Spalte C 45 | E105: Überdeckung - hiermit ist der Anteil der Deckungsmasse gemeint, der den Anteil der ausstehenden Pfandbriefe übersteigt. Siehe auch Überdeckung und gesetzliche Überdeckung.
A106: Cover Pool amortisation profile in buckets | D106: A. HTT General M, P, S je Spalte C 69-82 | E106: Laufzeitstruktur der in Deckung befindlichen Forderungen in Bandbreiten - siehe auch Laufzeitstruktur.
A107: Maturity of Covered Bonds in buckets | D107: A. HTT General M, P, S je Spalte C 92-105 | E107: Fälligkeitsstruktur der umlaufenden Pfandbriefe in Bandbreiten - siehe auch Laufzeitstruktur.
A108: Cover Assets - Currency | D108: A. HTT General M, P, S je Spalte C 111-127 | E108: Ausweis der in Deckung befindlichen Forderungen nach Art der Währung.
A109: Covered Bonds - Currency | D109: A. HTT General M, P, S je Spalte C 137-153 | E109: Ausweis der umlaufenden Pfandbriefe nach Art der Währung.
A110: Covered Bonds - Breakdown by interest rate - fixed rate | D110: A. HTT General M, P, S je Spalte C 164 | E110: Ausweis der umlaufenden Pfandbriefe nach Art der Zinsfestschreibungsvereinbarung- hier: Festzinsvereinbarung.
A111: Covered Bonds - Breakdown by interest rate - floating rate | D111: A. HTT General M, P, S je Spalte C 165 | E111: .
A112: Exposures to/guaranteed by governments or quasi governments | D112: A. HTT General M, P, S je Spalte C 175 | E112: Forderungen , die von Regierungsstellen oder regierungsnahen Stellen garantiert werden.
A113: Exposures to credit institutions (inkl Central Banks) | D113: A. HTT General M, P, S je Spalte C 177 | E113: Forderungen gegenüber Kreditinstituten und Zentralbanken.
A114: o/w CQS1 credit institutions | D114: A. HTT General M, P, S je Spalte C 186 | E114: Forderungen gegenüber Kreditinstituten und Zentralbanken - hier: mit der Bonitätsstufe 1.
A115: o/w CQS2 credit institutions | D115: A. HTT General M, P, S je Spalte C 187 | E115: Forderungen gegenüber Kreditinstituten und Zentralbanken - hier: mit der Bonitätsstufe 2.
A116: Substitute Assets - Country | D116: A. HTT General M, P, S je Spalte C 192-208 | E116: Ausweis der weiteren Deckungswerte (Ersatzdeckung) nach Staaten.
A117: Liquid Assets - Central bank eligible assets | D117: A. HTT General M, P, S je Spalte C 218 | E117: Liquide Vermögenswerte - hier: notenbankfähige Vermögenswerte.
A118: NPV of Derivatives in the cover pool (mn) | D118: A. HTT General M, P, S je Spalte C 234 | E118: Barwert der in Deckung befindlichen Derivate.
A119: Breakdown by Type of Debtors - Sovereigns | D119: B2. HTT Public Sector Assets C 148 | E119: Ausweis nach Art des Schuldners - hier: Zentralstaat (siehe auch Zentralstaat).
A120: Breakdown by Type of Debtors -Regional/federal authorities | D120: B2. HTT Public Sector Assets C 149 | E120: Ausweis nach Art des Schuldners - hier: Regionale Gebietskörperschaften (siehe auch regionale Gebietskörperschaft).
A121: Breakdown by Type of Debtors -Local/municipal authorities | D121: B2. HTT Public Sector Assets C 150 | E121: Ausweis nach Art des Schuldners - hier: Örtliche Gebietskörperschaften (siehe auch Örtliche Gebietskörperschaften).
A122: Breakdown by Type of Debtors -Others | D122: B2. HTT Public Sector Assets C 151 | E122: Ausweis nach Art des Schuldners - hier: Sonstige (siehe auch Sonstige).

Sheet vdp glossary (E)
A1: Term | B1: vdp-§ 28 Transparency-Initiative | C1: extended vdp-Template | D1: HTT | E1: Explanation
A2: Equalisation claims | B2: Worksheets StTwh, STwo, StTws, StTwf Colum F | E2: 1. Claims of the Deutsche Bundesbank (or of the Bank deutscher Länder [Deutsche Bundesbank’s predecessor] and the former Land Central Banks), credit institutions, post office savings banks, building societies and insurance companies against public authorities (German federal government, German federal states) resulting from the 1948 currency reform and entered in the debt register. In 1948, there was a gap in the assets on the opening balance sheets of these institutions because the majority of their claims (claims against the German Reich) could not be converted into German marks (DM), unlike their liabilities. The equalisation claims were settled over a 37-year period starting in 1956, also using funds from the profit generated by Deutsche Bundesbank. The equalisation claims, which bore fixed interest at a rate of between 3 and 4.5 percent per year depending on their maturity, could be traded between credit and insurance institutions at their nominal amount; they were converted in treasury bills and discounted treasury notes. 2. Equalisation claims were used again in connection with the introduction of the German mark in former East Germany (GDR) with effect from 1 July 1990. If companies that were eligible for restructuring (not credit institutions, insurance companies or foreign trade businesses) and that had been transferred, as former East German state-owned companies, to the Treuhandanstalt (trust agency for the privatisation of East German state-owned businesses) or its subsidiaries free of charge for the purposes of privatisation, had a deficit that was not covered by capital, then they received an equalisation claim - bearing interest (Treuhandanstalt 5 percent per year) as of 1 July 1990 - against their provisional owners (section 24 of the Deutsche Mark Balance Sheet Act [DMBilG]).
A3: Net present value | B3: Worksheet StTai Colums F - I | C3: Colum C rows 20, 54, 83, 114 | D3: A. HTT General Colum C Row 40-41 (NPV) | E3: The net present value is the value that future payments have at the current point in time. It is calculated by discounting the future payments and then adding them up. Current value of future payments (cash flows) assuming a certain interest rate (e.g. net present value of returns on investment, net present value of a pension or net present value of a bond). Calculating the net present value means that payments arising at different points in time can be compared. In order to calculate the net present value of a cash flow, the individual incoming and outgoing payments are discounted using a discount rate that is commensurate with the maturity and risk. Discounting takes account of the fact that the later the due date of a payment falls, the lower the current value of the payment is both for the debtor and for the payment recipient.
A4: Net Present Value Regulation | B4: Worksheet StTk | E4: http://www.pfandbrief.de/cms/_internet.nsf/0/85E4B81D6AE39FC2C1257A6B003F6CBE/$FILE/EN_PfandBarWertV_04_2012.pdf?OpenElement
A5: Mortgage lending value | E5: http://www.ipav.ie/sites/default/files/the_mortgage_lending_value_-_sustainability_since_1900_ten_questions_and_answers.pdf
A6: Regulation on the Determination of the Mortgage Lending Value | E6: https://www.pfandbrief.de/cms/_internet.nsf/0/C47BEF2F7CE7B537C1257A6B003EE036/$FILE/BelWertV_englisch.pdf?OpenElement
A7: Credit Quality Differentiation Model | B7: Worksheets StTai Colums D - G, Rows 28-29, 41-42, 54-55, 67-68 | E7: The financial crisis shook confidence in the creditworthiness of a number of European countries. As a result, criticism grew about the unrestricted eligibility as cover of claims against EU and EEA countries and their sub-sovereign entities. In light of this situation, the vdp member institutions unanimously approved the Credit Quality Differentiation Model for EU states at their Member's Meeting held in June 2012. The vdp initiative, which was launched in mid-2011, responds to the fact that the new banking regulation will not make any distinction between different sovereign risks. The voluntary vdp standard is designed to compensate for the lack of statutory provisions on credit differentiation among sovereigns, although in the medium term, a statutory solution that is not linked to external ratings would be desirable. The empirical values that are now being collected in connection with the application of the voluntary vdp standard may be incorporated into a statutory provision later on. In the vdp model, credit quality is differentiated by applying haircuts, which are not linked to a specific maturity, to the nominal value of the claim in question. The size of the haircut is based on external ratings issued by Moody’s, Standard & Poor’s, and Fitch for central governments, as well as the likelihood of default underlying these ratings. Under the vdp standard, haircuts are applied to claims against EU states with a non-investment grade rating separately to the cover calculation that is required by law. The haircuts are also to be applied to claims against sub-sovereign entities from these countries. http://www.pfandbrief.de/cms/_internet.nsf/tindex/en_32.htm
A8: Credit quality step 1 and 2 | C8: Colum C Rows 16-17, 50-51, 79-80, 110-111 | D8: A. HTT General Colum C Row 190-191 | E8: Under section 4 (1) no. 3 of the Pfandbrief Act (PfandBG), only credit institutions in the European Economic Area, Switzerland, the US, Canada and Japan that meet the requirements for credit quality step 1 are eligible for the cover pool. Table 3 in Article 120 CRR (EU Regulation No 575/2013) and Table 5 in Article 121 CRR are authoritative in this regard. Claims against credit quality step 2 institutions are also eligible for the cover pool where said claims have an initial maturity of up to 100 days. If limiting eligibility to credit quality step 1 institutions results in a risk of significant debtor concentration, BaFin (Bundesanstalt für Finanzdienstleistungsaufsicht - German banking supervisory authority) may extend eligibility to claims against credit quality step 2 institutions with initial maturities of more than 100 days following consultation with the European Banking Authority (EBA). Under a corresponding general regulation issued by BaFin, claims against credit institutions assigned to credit quality step 2 are currently eligible as cover. Credit institutions meet the requirements for credit quality step 1 if their rating by the three major rating agencies (Fitch/Moody's/S&P) is at least AA-/Aaa/AA-. Credit quality step 2 requires ratings of at least A-/Baa3/A-. In the event that there is more than one rating for a credit institution, Article 138 e) and j) CRR (EU Regulation No 575/2013) will apply with regard to eligibility for the cover pool.
A9: Maturity extension | C9: Colum H Row 5-6 | E9: It is only after an administrator has been appointed that the latter can opt to postpone the repayment of upcoming maturities for a certain period of time. This period and the terms and conditions of the extension are based on either statutory or contractual regulations.
A10: Foreign currencies, net present value | B10: Worksheet StTK Colums D and E Rows 17-27, 42-52, 67-77,92-102 | E10: Pursuant to section 28 (1) no. 10 of the Pfandbrief Act (PfandBG), Pfandbrief banks have to publish the net present value for each foreign currency. This is defined in section 6 of the Net Present Value Regulation (Barwertverordnung). The amount is reported in euro, having been converted on the basis of ECB reference exchange rates pursuant to section 1 of the Net Present Value Regulation.
A11: Statutory over-collateralisation | C11: Colum C Rows 8, 43, 73, 104 | D11: A. HTT General C47 | E11: At the net present value, taking into account interest rate and currency stress (see also “Over-collateralisation”).
A12: Weighted loan-to-value (LTV) ratio (average LTV ratio) | B12: Worksheet StTK Colums D and E Row 29 | C12: Colum C Rows 76, 107 | D12: B1. HTT Mortgage Assets C 197 | E12: Average loan-to-value (LTV) ratio weighted based on the amount of the claim used for cover.
A13: Threshold values under section 13 (1) PfandBG | B13: Tabellenblatt StTK Spalte D und E Zeile 13 | E13: The total volume of the loans in non-European Union states for which it is not ensured that the preferential right of Pfandbrief creditors in accordance with section 30 (1) of the Pfandbrief Act (PfandBG) extends to the Pfandbrief bank’s claims deriving from these loans may not exceed 10 percent of the total volume of the loans for which the preferential right is ensured.
A14: Threshold values under section 19 (1) no. 2 PfandBG | B14: Worksheet StTK Colums D and E Row 14 | E14: Cover for Mortgage Pfandbriefe may be provided, in an amount not exceeding 10 percent of the total amount of the Mortgage Pfandbriefe in circulation, by assets of the type specified in section 4 (1) sentence 2 nos. 1 and 2 of the Pfandbrief Act (PfandBG), by monetary claims against the European Central Bank, against central banks in the member states of the European Union or against credit institutions within the meaning of section 4 (1) sentence 2 no. 3 PfandBG, insofar as the amount of the Pfandbrief bank’s claims is already known at the time of acquisition, and by the credit balance of an account held with the institutions listed above; the share of monetary claims against one and the same credit institution must not exceed 2 percent of the total amount of the Mortgage Pfandbriefe referred to in half-sentence 1.
A15: Threshold values under section 19 (1) no. 3 PfandBG | B15: Worksheet StTK Colum D and E Row 15 | E15: Cover for Mortgage Pfandbriefe may be provided, in an amount not exceeding 20 percent of the total amount of the Mortgage Pfandbriefe in circulation, by assets of the type specified in section 20 (1) of the Pfandbrief Act (PfandBG), insofar as these relate to bonds; the cover assets specified in no. 2 count towards the limit.
A16: Threshold values under section 20 (2) PfandBG | B16: Worksheet StTK Colums D and E Row 39 | E16: Cover for Public Pfandbriefe may be provided, in an amount not exceeding 10 percent of the total amount of the Public Pfandbriefe in circulation, by monetary claims against the European Central Bank, against central banks in the member states of the European Union or against credit institutions within the meaning of section 4 (1) sentence 2 no. 3 of the Pfandbrief Act (PfandBG), insofar as the amount of the Pfandbrief bank’s claims is already known at the time of acquisition, and by the credit balance of an account held with the institutions listed above; the share of monetary claims against one and the same credit institution must not exceed 2 percent of the total amount of the Public Pfandbriefe in circulation; section 4 (1) sentences 4 to 8 PfandBG apply accordingly.
A17: Threshold values under section 26 (1) no. 3 PfandBG | B17: Worksheet StTK Colums D and E Row 64 | E17: Cover for Ship Pfandbriefe may be provided, in an amount not exceeding 10 percent of the total amount of the Ship Pfandbriefe in circulation, by assets of the type specified in section 4 (1) sentence 2 nos. 1 and 2 of the Pfandbrief Act (PfandBG), by monetary claims against the European Central Bank, against central banks in the member states of the European Union or against credit institutions within the meaning of section 4 (1) sentence 2 no. 3 PfandBG, insofar as the amount of the Pfandbrief bank’s claims is already known at the time of acquisition, and by the credit balance of an account held with the institutions listed above; the share of monetary claims against one and the same credit institution must not exceed 2 percent of the total amount of the Ship Pfandbriefe specified in half-sentence 1; section 4 (1) sentences 4 to 8 PfandBG apply accordingly.
A18: Threshold values under section 26 (1) no. 4 PfandBG | B18: Worksheet StTK Colums D and E Row 65 | E18: Cover for Ship Pfandbriefe may be provided, in an amount not exceeding 20 percent of the total amount of the Ship Pfandbriefe in circulation, by assets of the type specified in section 20 (1) of the Pfandbrief Act (PfandBG), insofar as these relate to bonds; the cover assets specified in no. 3 count towards the limit.
A19: Threshold values under section 26f (1) no. 3 PfandBG | B19: Worksheet StTK Colums D and E Row 89 | E19: Cover for Aircraft Pfandbriefe may be provided, in an amount not exceeding 10 percent of the total amount of the Aircraft Pfandbriefe in circulation, by assets of the type specified in section 4 (1) sentence 2 nos. 1 and 2 of the Pfandbrief Act (PfandBG), by monetary claims against the European Central Bank, against central banks in the member states of the European Union or against credit institutions within the meaning of section 4 (1) sentence 2 no. 3 PfandBG, insofar as the amount of the Pfandbrief bank’s claims is already known at the time of acquisition, and by the credit balance of an account held with the institutions listed above; the share of monetary claims against one and the same credit institution must not exceed 2 percent of the total amount of the Aircraft Pfandbriefe specified in half-sentence 1; section 4 (1) sentences 4 to 8 PfandBG apply accordingly.
A20: Threshold values under section 26f (1) no. 4 PfandBG | B20: Worksheet StTK Colums D and E Row 90 | E20: Cover for Aircraft Pfandbriefe may be provided, in an amount not exceeding 20 percent of the total amount of the Aircraft Pfandbriefe in circulation, by assets of the type specified in section 20 (1) of the Pfandbrief Act (PfandBG), insofar as these relate to bonds; the cover assets specified in no. 3 count towards the limit.
A21: Intra-group transactions | C21: Colum C Rows 19, 53, 82, 113 | D21: A. HTT General C241 | E21: This point refers to derivative transactions: Article 1 no. 19 of Regulation (EU) No 1333/2014 of the ECB defines intra-group transactions as transactions concluded by a reporting agent with another undertaking which is included in the same consolidated financial statement on a full basis. The term “consolidated financial statement”, within this context, is based on the IFRS definition/consolidation under bank supervisory law. Transactions executed between legally independent institutions internally within an association, e.g. within the savings bank or cooperative sector, are not classed as intra-group transactions within the meaning of Regulation (EU) No 1333/2014 of the ECB.
A22: Insured mortgages | C22: Colum C Row 4 | E22: Share of insured loans. Pursuant to section 15 of the Pfandbrief Act (PfandBG), insurance must be ensured throughout the entire lending term. This is why all properties that serve as collateral for property loans used as cover are insured against the relevant risks.
A23: Interest-only loans | C23: Colum C Row 13 | D23: B1. HTT Mortgage Assets F141 | E23: Proportion of property loans in the cover pool that are only repaid on maturity.
A24: Internal swap counterparty | C24: Colum C Rows 19, 53, 82, 113 | D24: A. HTT General C241 | E24: Internal swap counterparties arise, by way of example, in a parent-subsidiary relationship pursuant to Article 1 of Directive 83/349/EEC.
A25: Maturity structure | B25: Worksheet StTal | D25: A. HTT General C71-84 and C 97-109 | E25: Pursuant to section 28 (1) no. 2 of the Pfandbrief Act (PfandBG), Pfandbrief banks are under a statutory obligation to report the maturity structure of the Pfandbriefe and the cover assets on a quarterly basis. As far as the cover assets are concerned, the fixed-interest period is taken as a basis. In principle, options are to be presented in line with each institution’s internal management logic, particularly where option-pricing models are used for cash-flow valuation purposes as part of overall bank/group management. Consideration of cancellation rights on the liabilities side is not required as the decision on their execution lies with the Pfandbrief bank or its administrator. Cancellation rights of the bank can be taken into account on the assets side. Statutory cancellation rights pursuant to section 489 of the German Civil Code (BGB) do not need to be taken into account when presenting the information in the maturity bands. Variable-rate mortgage loans are to be allocated to the maturity bands in line with the deadline for the next margin adjustment. The allocation to the maturity bands is to be based on the scheduled repayment portions (cash-flow view)
A26: Limited certified loans | C26: Colum C Row 10 | E26: Property loans for which the debtor has only provided partial evidence of his income. These loans do not form part of the cover pool of German Pfandbriefe.
A27: LTV (loan-to-value) ratio | B27: Worksheet StTK | D27: B1. HTT Mortgage Assets C 197-202 | E27: The loan-to-value (LTV) ratio is based on the German mortgage lending value. Provisions concerning the German mortgage lending value are set out in section 16 of the Pfandbrief Act (PfandBG) and, in detail, in the Regulation on the Determination of the Mortgage Lending Value (BelWertV). Both residential and commercial property loans are eligible as cover in an amount corresponding to up to 60% of the mortgage lending value that has been calculated. The mortgage lending value calculation takes into account the long-term and sustainable features of the asset, as well as the current and possible other uses and users. Exaggerated market prices must be left out of the equation. In principle, the value calculation process requires an asset inspection to be carried out, unless the loan is a small-scale loan of up to EUR 400,000. The monitoring requirements are set out, first of all, in Article 208 (3) CRR. These provisions state that commercial property must be monitored at least once a year, with residential property being monitored at least every three years. Section 27 BelWertV also requires a review to be conducted if the price level on the property market has fallen substantially. Reviews must also be conducted in the event of a loan default.
A28: ND1 | E28: ND1 = No Data - This information is not suitable for/applicable to the German Pfandbrief
A29: ND2 | E29: ND2 = No Data - This information is not currently relevant for this issuer and/or Pfandbrief programme
A30: ND3 | E30: ND3 = No Data - This information is currently unavailable
A31: Nominal value/nominal/nom. | E31: The nominal values of securities often vary from their current market values. Example: Nominal value of bond X = €1,000 Market value of bond X = €990.00 (market price = 99%) The nominal value represents the investor’s claim against the issuer, which is due in full on maturity. Irrespective of the amount invested, the nominal value is taken as a basis at the time of repayment. If the security is sold during its term, i.e. before it reaches maturity, the payment is based on the current market value.
A32: Non first lien mortgages | C32: Colum C Row 11 | D32: B1. HTT Mortgage Assets C257 | E32: Proportion of property loans in the cover pool in relation to which preferential rights are entered in the Land Register. Whether they are classed as being first ranking or second ranking is irrelevant in Germany/for the purposes of the Pfandbrief. In accordance with German legislation, holders of security rights over real property have the same procedural rights as a general rule, irrespective of their ranking. All holders of a security right over real property are entitled to take realization measures. In fact, it is the loan-to-value ratio that is decisive when it comes to the security of a security right over real property. It is important that existing priority security rights over real property are calculated correctly and deducted from the 60% threshold. It is not uncommon for priorities to be entered in the Land Register with extremely small amounts because old rights are often difficult to cancel. The dilution of these priority security rights over real property can be avoided by performing an appropriate calculation. In theory, all property loans used as cover can be subordinated without this reducing the recoverability and quality of the cover assets and posing a risk.
A33: NPL (non-performing loans) | B33: StTdh Colums S-T, StTdoR, StTds Colums H-I, StTdf Colums F-G | D33: B1. HTT Mortgage Assets F161 | E33: Pursuant to section 28 (2) no. 2 of the Pfandbrief Act (PfandBG), Pfandbrief banks must publish the total amount of claims that are at least 90 days in arrears, in relation to the part of a loan that is used as cover, on a quarterly basis.
A34: Asset types | B34: Worksheet StTdo | D34: B1. HTT Mortgage Assets C241-249 and C341-350 | E34: The properties that are eligible for cover are set out in sections 12 to 18 of the Pfandbrief Act (PfandBG). Pursuant to these provisions, both residential and commercial properties are eligible for cover. Distinctions are made based on the type of use. Section 28 (2) no. 1 PfandBG requires Pfandbrief banks to publish quarterly information on their cover assets, broken down into condominiums, single-family and two-family houses, multi-family houses, office buildings, retail/wholesale buildings, industrial buildings, other buildings used for commercial purposes, unfinished new buildings not yet capable of yielding a return, and building sites. However, mortgages on building sites must not exceed 1% of the total amount of cover assets used to cover Mortgage Pfandbriefe (section 16 (3) PfandBG). Together with unfinished new buildings not yet capable of yielding a return, the proportion must not exceed 10 percent of the total amount of cover assets used to cover Mortgage Pfandbriefe. Mortgages on land that does not guarantee a permanent yield are not eligible for cover.
A35: Pass-through structures | C35: Colum H Rows 7,46,76,107 | E35: These refer to a scenario in which, in the event that the issuer becomes insolvent, all outstanding covered bonds are serviced, on a pro rata basis, using the cover assets based on the payments received. The payments are then “passed through” to the covered bond creditor.
A36: German Pfandbrief Act | E36: http://www.pfandbrief.de/cms/_internet.nsf/tindex/en_111.htm
A37: Risk-adjusted net present value | B37: StTai Colum H and I | E37: Pursuant to section 28 (1) of the Pfandbrief Act (PfandBG), Pfandbrief banks are under a statutory obligation to publish what is known as the risk-adjusted net present value of the outstanding Pfandbriefe and cover assets on a quarterly basis. This refers to the net present value based on the stipulated interest rate and currency stress scenarios. Since the interest rate stress scenario has to simulate both an increase and a drop in interest rates, while currency stress scenarios have to simulate both appreciation and depreciation, Pfandbrief banks are only to publish the risk-adjusted net present value that shows the lowest over-collateralisation amount.
A38: Non-performing claims | B38: StTdh Colums S-T, StTdoR, StTds Colums H-I, StTdf Colums F-G | D38: B1. HTT Mortgage Assets F160 B2. HTT Public Assets C167 | E38: A claim is deemed to be non-performing as of the 90th day after its due date (see also “NPL”). Only those non-performing claims that relate to the part of a loan that is used as cover are to be reported: Interest: Broken down by what is attributable to the cover portion and the non-cover portion/repayment: Only to count towards the non-cover portion initially.
A39: Seasoning | B39: StTk Colums D-E Row 28 | C39: Colums C-H Row 39 | D39: B1. HTT Mortgage Assets Colum C-F Rows 150-155 | E39: Time that has passed since the loan was granted. A loan is deemed to have been granted at the time that it is disbursed for the first time.
A40: Self-certified loans | C40: C9 | E40: Property loans for which the debtor has not provided evidence of his income. Under the German Pfandbrief Act, these loans are not eligible for use as cover assets, meaning that they do not form part of the cover pools of German Pfandbriefe.
A41: Soft bullet structures | C41: Colum H Rows 4,43,73,104 | E41: The repayment of the principal amount of the bond can be postponed by a fixed period (usually 6 to 12 months) subject to certain conditions (payment of agreed default interest). The periods, terms and conditions may vary depending on the jurisdiction/bank. By contrast, hard bullet structures involve repayment at a fixed point in time.
A42: Over-collateralisation | B42: Worksheet StTai | C42: Colum C Rows 8,43,73,104 | D42: A. HTT General Colums C-D Rows 45-47 | E42: In general, the proportion of the cover pool that exceeds the proportion of the outstanding Pfandbriefe - section 4 of the Pfandbrief Act (PfandBG) requires Pfandbrief banks to have over-collateralisation of at least 2%, based on the net present value, taking defined interest rate and currency stress scenarios into account (known as protective over-collateralisation). The net present value cover calculation and the interest rate and currency stress scenarios are defined in the Net Present Value Regulation (Barwertverordnung). The protective over-collateralisation must be available in the form of liquid assets so that, if the Pfandbrief bank becomes insolvent, it can be used by the administrator who is then responsible for the bank in order to quickly generate liquidity. This is also the purpose of the statutory provision regarding the need to secure the liquidity requirements of the cover pool for the next 180 days. This liquidity buffer must also be kept available in liquid cover assets. Assets are deemed to be “liquid” if they are accepted by the ECB as eligible assets. Nominal cover is also required.
A43: Does insurance form part of the cover pool? | C43: C5 | E43: Section 12 (3) of the Pfandbrief Act (PfandBG) states that the recorded cover assets also cover all claims that are based on the economic substance of the property.
A44: Foreign exchange risks | B44: StTk Colums D Row 17-27, 42-52, 67-77, 92-102 | C44: Colum C and D Rows 22-33, 56-67, 85-96, 116-127 | D44: A. HTT General Colum D Rows 115-157 | E44: Pursuant to section 4 (1) of the Pfandbrief Act (PfandBG), Pfandbrief banks must have over-collateralisation of at least 2%, based on the net present value, taking into account interest rate and currency stress scenarios (known as protective over-collateralisation). The currency stress scenarios to be applied are set out in section 6 of the Net Present Value Regulation (Barwertverordnung) (see also link to the Net Present Value Regulation)
A45: WAL of outstanding Pfandbriefe | C45: Colum H Rows 3, 42, 72, 103 | D45: A. HTT General Colum C Rows 91-94 | E45: WAL stands for “weighted average life” and indicates the weighted average remaining maturity of all outstanding Pfandbriefe. The WAL is calculated based on the maturity structure bands under section 28 of the Pfandbrief Act (PfandBG). In principle, options are to be presented in line with each institution’s internal management logic. Consideration of cancellation rights is not required as the decision on their execution lies with the Pfandbrief bank or its administrator.
A46: WAL of the cover pool | C46: Colum C Rows 3, 42, 72, 103 | D46: A. HTT General Colum C Rows 66-69 | E46: WAL stands for “weighted average life” and indicates the weighted average remaining maturity of all outstanding cover assets. The WAL is calculated based on the maturity structure bands under section 28 of the Pfandbrief Act (PfandBG). In principle, options are to be presented in line with each institution’s internal management logic. Cancellation rights of the bank can be taken into account.
A47: Other cover assets | B47: StTwh, StTwo, StTws, StTwf | D47: A. HTT General Colums C Rows 56, 177-190 | E47: For Mortgage Pfandbriefe, other cover assets can include claims against credit institutions and claims against public authorities. Provisions on the former are set out in section 19 (1) no. 2 of the Pfandbrief Act (PfandBG), while provisions on the latter are set out in section 19 (1) no. 3 PfandBG. Claims against credit institutions may only be used in a maximum amount corresponding to 10% in order to cover the Mortgage Pfandbriefe in circulation. Claims against one and the same credit institution may only account for a maximum of 2%. Claims against public authorities may only be used in a maximum amount corresponding to 20% in order to cover the Mortgage Pfandbriefe in circulation. In total, the claims against credit institutions and the claims against public authorities may only be used in a maximum amount corresponding to 20% in order to cover the Mortgage Pfandbriefe in circulation.
A48: Interest rate risks | B48: StTk Colum C Rows 10, 16, 35, 41, 60, 66, 85, 91 | D48: A. HTT General Colums C Rows 168-170, B1. HTT Mortgage Assets C 131-133, B2. HTT Public Sector Assets C 130-132, B3. HTT Shipping Assets C 81-83 | E48: Pursuant to section 4 (1) of the Pfandbrief Act (PfandBG), Pfandbrief banks must have over-collateralisation of at least 2%, based on the net present value, taking into account interest rate and currency stress scenarios. The interest rate stress scenarios to be applied are set out in section 5 of the Net Present Value Regulation (Barwertverordnung) (see also link to the Net Present Value Regulation)
A49: Securities eligible for central bank credit | C49: Colum C Rows 14, 48, 77, 108 | D49: A. HTT General Colum C Row 222 | E49: Securities that may be deposited at central banks as collateral for refinancing transactions. This allows liquidity to be obtained via the central bank at short notice.
A50: Guaranteed loans | C50: Colum C Row 7 | D50: B1. HTT Mortgage Assets Colum C Row 258 | E50: No corresponding provisions set out in the Pfandbrief Act. The issue of guaranteed residential property loans only arises for mortgage cover pools of other covered bond jurisdictions (e.g. France).
A51: Net present value of derivatives used as cover | C51: Colum C Rows 20, 54, 83, 114 | D51: A. HTT General Colum C Row 238 | E51: Cover derivatives are only shown at their net present value netted across all framework agreements. This means that only one net present value, which represents either a liability or a claim, is to be reported for each type of Pfandbrief.
A52: Currency positions (nominal) | C52: Colums C-D Rows 22-33, 56-67, 85-96, 116-127 | D52: A.HTT General Colum D Rows 116-157 | E52: Reported for each currency in which assets have been included in the cover pool or Pfandbriefe issued. A total is shown for each currency, divided into cover assets and Pfandbriefe.
A53: Loan-to-value ratio in bands | C53: C-H37 | D53: B1. HTT Mortgage Assets C 200-208 | E53: Each portion of the loan used as cover is allocated to a band according to its individual loan-to-value ratio. The total of all loans in a band is shown. The total loan-to-value ratio of the portion of the loan used as cover is decisive when it comes to allocation to a band. E.g.: Loan amount with a loan-to-value ratio of 55% is allocated to band <50 to >= 60.
A54: Loan age | B54: Worksheet StTk C28 | C54: Colums C- H, Row 39 | D54: B1. HTT Mortgage Assets F 151-155 | E54: Time that has passed since the loan was granted (see also “Seasoning”). A loan is deemed to have been granted at the time that it is disbursed for the first time.
A55: Number of loans | C55: G13 | D55: B1. HTT Mortgage Assets Colum D Rows 28, 168, 268, B2. HTT Public Sector Assets D 10, 19, B3. HTT Shipping Loans C 10 | E55: The number of individual loan exposures - for Mortgage Pfandbriefe, a breakdown showing commercial and residential loans is provided.
A56: Number of borrowers | C56: G12 | D56: B1. HTT Mortgage Assets Colum D Row 29, B2. HTT Public Sector Assets D 11, B3. HTT Shipping Loans C 11 | E56: Total number of borrowers - a borrower may have multiple loans - in the case of mixed financings with a commercial share of 0.5 or more, this borrower may be fully counted towards the number of commercial borrowers for reasons of simplification.
A57: Number of assets | C57: G14 | E57: Total of all assets in the cover pool (a loan can be secured by several assets).
A58: Owner-occupied flats | C58: G15 | D58: B1. HTT Mortgage Assets Colum C Row 141, | E58: The borrower is using the property him/herself (owner-occupied).
A59: Multi-family houses | B59: Worksheet StTdh | C59: G16 | D59: B1. HTT Mortgage Assets Colum C Row 147, | E59: A building contains several rented flats (more than 2) - the owners can be private individuals, family offices, housing companies, etc.
A60: Age of ships (aircraft) in bands | C60: Colums C-F Row 129 | E60: Based on the time that has passed since the ships (aircraft) were commissioned, the corresponding portions of the loan used as cover are allocated to the bands based on their amount and then shown as a total.
A61: Size groups | B61: Worksheet StTag | D61: B1. HTT Mortgage Assets C 170-195, B2. HTT Public Sector Assets C 22-37, B3. HTT Shipping Assets C 120-144 | E61: Based on the requirements of the Pfandbrief Act, the individual claims are allocated to the corresponding defined categories based on their amount and are then added up and reported by size group.
A62: Condominiums | B62: Worksheet StTdh | E62: Flats located in multi-family houses that are either used by private owners themselves or are rented out to third parties.
A63: Single-family and two-family houses | B63: Worksheet StTdh | E63: Detached houses including one or a maximum of two integrated residential units that are either used by private owners themselves or are (partly) rented out to third parties.
A64: Unfinished new buildings not yet capable of yielding a return | B64: Worksheet StTdh | D64: B1. HTT Mortgage Assets C 350 and C 249 | E64: Buildings that are still under construction (building shells).
A65: Office buildings | B65: Worksheet StTdh | D65: B1. HTT Mortgage Assets C 343 | E65: Non-residential buildings used predominantly for office and administrative purposes. These include office and administrative buildings of commercial enterprises, also bank and insurance company buildings, as well as public-sector office buildings such as ministries, city authorities, post offices, rail administrative offices, broadcasting centres, administration buildings belonging to the church, the employee welfare association or similar organisations.
A66: Retail/wholesale buildings | B66: Worksheet StTdh | D66: B1. HTT Mortgage Assets C 345 | E66: Buildings used for wholesale and, in particular, retail purposes.
A67: Industrial buildings | B67: Worksheet StTdh | D67: B1. HTT Mortgage Assets C 346 | E67: Buildings housing manufacturing and production facilities, factory and workshop buildings.
A68: Building sites | B68: Worksheet StTdh | D68: B1. HTT Mortgage Assets C 349 and C 250 | E68: Land in a state ready for development.
A69: Other buildings used for commercial purposes | B69: Worksheet StTdh | D69: B1. HTT Mortgage Assets C 348 | E69: E.g.: Buildings used for agriculture and forestry, hotel buildings.
A70: Claims that are 90 days in arrears | B70: Worksheet StTdh | D70: B1. HTT Mortgage Assets F 161 | E70: A claim is deemed to be non-performing as of the 90th day after its due date. Only those non-performing claims that relate to the part of a loan that is used as cover are to be reported.
A71: Total amount of these claims, insofar as the arrears (= the non-performing claims) account for at least 5% of the claim | B71: Worksheet StTdh | E71: When determining whether the 5% threshold is exceeded, the non-performing claim - in relation to the cover amount - is to be expressed in relation to the total amount of the part of the corresponding loan that is used for cover. The part of the claim used as cover is then reported.
A72: Guarantees for export financing reasons | B72: Worksheet StTdo | E72: Export credit claims that are guaranteed: - either by a country that is eligible for cover itself pursuant to section 20 of the Pfandbrief Act (PfandBG) or - by an export credit agency based in such a country that meets the requirements for classification as a public-sector entity.
A73: Central government | B73: Worksheet StTdo | D73: B2. HTT Public Sector Assets C 148 | E73: This refers to a country’s highest hierarchical administrative authority (irrespective of the organisational structure [unitary state or federation]).
A74: Regional authority | B74: Worksheet StTdo | D74: B2. HTT Public Sector Assets C149 | E74: Administrative entities or federal states organised below central government level.
A75: Local authority | B75: Worksheet StTdo | D75: B2. HTT Public Sector Assets C150 | E75: Municipalities and their enterprises, etc. organised below the level of administrative entities or federal states.
A76: Net present value pursuant to section 6 of the Pfandbrief Net Present Value Regulation (Pfandbrief-BarwertVO) | B76: Worksheet StTK Colums D and E Rows 17-27, 42-52, 67-77,92-102 | E76: Describes the net present value for foreign currency positions in the same currency, after applying discounts in line with a defined stress scenario. For the purposes of the disclosure pursuant to section 28 (1) no. 10 of the Pfandbrief Act (PfandBG), this includes the interest rate stress, not the currency stress. The amount is reported in euro based on the official ECB reference rates. (See also http://www.pfandbrief.de/cms/_internet.nsf/0/85E4B81D6AE39FC2C1257A6B003F6CBE/$FILE/EN_PfandBarWertV_04_2012.pdf?OpenElement)
A77: Proportion of fixed-interest Pfandbriefe or cover assets | B77: Worksheet StTK | E77: Nominal values form the basis for the percentage reported. Derivatives used as cover are to be taken into account.
A78: Property Type information (residential- commercial) | D78: B1. HTT Mortgage Assets C 12-13 | E78: Information on the type of use of the property used to secure the claim.
A79: Number of loans | B79: Worksheet StTk C28 | C79: Colums C- H,Row 39 | D79: B1. HTT Mortgage Assets F 151-155 | E79: See “Number of loans”.
A80: Number of borrowers | C80: G13 | D80: B1. HTT Mortgage Assets Colum D Rows 28, 168, 268, B2. HTT Public Sector Assets D 10, 19, B3. HTT Shipping Loans C 10 | E80: See “Number of borrowers”.
A81: Breakdown by geography | D81: B1. HTT Mortgage Assets C 43-87 B2. HTT Public Sector Assets C 48-92 B3. HTT Shipping Loans C 25-69 | E81: Country-specific claims reporting. The claims are allocated to the individual countries in which the debtors and, in cases involving guarantees, the guaranteeing agency are based.
A82: Breakdown by domestic regions | D82: B1. HTT Mortgage Assets C 98-128 B2. HTT Public Sector Assets C 103-129 | E82: Reporting of claims by region within a country (e.g. federal states).
A83: Breakdown by repayment type - amortizing | D83: B1. HTT Mortgage Assets C 142 B2. HTT Public Sector Assets C 139 B3. HTT Shipping Loans C 92 | E83: Reporting of claims by repayment type - in this case: amortising, i.e. a repayment rate comprising an initial repayment portion and an interest portion is set for the entire term. Since the interest is calculated based on the remaining capital, the repayment portion increases over time to the extent that the interest portion decreases.
A84: Breakdown by repayment type - bullet / interst only | D84: B1. HTT Mortgage Assets C 141 B2. HTT Public Sector Assets C 138 B3. HTT Shipping Loans C 91 | E84: Reporting of claims by repayment type- in this case: bullet repayment. The loan is repaid in a single amount. Only interest payments are due during the term of the loan.
A85: Breakdown by interest type - fixed rate | D85: B1. HTT Mortgage Assets C 131 B2. HTT Public Sector Assets C 130, B3. HTT Shipping Loans C 81 | E85: Reporting of claims by type of interest rate agreement - in this case: fixed-rate agreement.
A86: Breakdown by interest type - floating rate | D86: B1. HTT Mortgage Assets C 132 B2. HTT Public Sector Assets C 131, B3. HTT Shipping Loans C 82 | E86: Reporting of claims by type of interest rate agreement - in this case: floating rate agreement.
A87: Loan seasoning in buckets | D87: B1. HTT Mortgage Assets C 150-155 B3. HTT Shipping Loans C 100-105 | E87: Reporting of time that has passed since the loan was granted in bands. A loan is deemed to have been granted at the time that it is disbursed for the first time.
A88: loan size in buckets | D88: B1. HTT Mortgage Assets C 170-195 B2. HTT Public Sector Assets C 21-37, B3. HTT Shipping Loans C 119-144 | E88: Based on the requirements of the Pfandbrief Act, the individual claims are allocated to the corresponding defined categories based on their amount and are then added up and reported by size group.
A89: non performing loans | D89: B1. HTT Mortgage Assets C 161 B2. HTT Public Sector Assets C 167, B3. HTT Shipping Loans C 111 | E89: Reporting of non-performing claims. A claim is deemed to be non-performing as of the 90th day after its due date. Only those non-performing claims that relate to the part of a loan that is used as cover are to be reported (see also “NPL”).
A90: Weighted LTV | D90: B1. HTT Mortgage Assets C 197 | E90: Weighted loan-to-value (LTV) ratio (see also “LTV (loan-to-value) ratio”).
A91: LTV buckets | D91: B1. HTT Mortgage Assets C 199-208 | E91: The claims are assigned to different bands depending on their loan-to-value ratio (see also “LTV (loan-to-value) ratio”).
A92: Breakdown by type (residential) - owner occupied | D92: B1. HTT Mortgage Assets C 241 | E92: See “Owner-occupied flats”.
A93: Breakdown by type (residential)- multi family homes | D93: B1. HTT Mortgage Assets C 248 | E93: See “Multi-family houses”.
A94: Breakdown by type (residential) - Buildings under constructions | D94: B1. HTT Mortgage Assets C 249 | E94: See “Unfinished new buildings not yet capable of yielding a return”.
A95: Breakdown by type (residential) - Building land | D95: B1. HTT Mortgage Assets C 250 | E95: See “Building sites”.
A96: Loan by ranking - 1st lien | D96: B1. HTT Mortgage Assets C 258 | E96: See “Non first lien mortgages”.
A97: Loan by ranking - Guaranteed | D97: B1. HTT Mortgage Assets C 259 | E97: Reporting based on claims ranking (see also “Non first lien mortgages”).
A98: Breakdown by type (commercial) - shopping malls | D98: B1. HTT Mortgage Assets C 345 | E98: See “Retail/wholesale buildings”.
A99: Breakdown by type (commercial) - office | D99: B1. HTT Mortgage Assets C 343 | E99: See “Office buildings”.
A100: Breakdown by type (commercial) - industry | D100: B1. HTT Mortgage Assets C 346 | E100: See “Industrial buildings”.
A101: Breakdown by type (commercial) - other commercial used | D101: B1. HTT Mortgage Assets C 348 | E101: See “Other buildings used for commercial purposes”.
A102: Breakdown by type (commercial) - land | D102: B1. HTT Mortgage Assets C 349 and C 250 | E102: See “Building sites”.
A103: Cover pool size (npv) | D103: A. HTT General M, P, S each Colum C 40 | E103: Net present value of the total amount of claims used for cover.
A104: Outstanding Covered Bonds (npv) | D104: A. HTT General M, P, S each Colum C 39 | E104: Net present value of the total amount of outstanding Pfandbriefe.
A105: Overcollateralisation | D105: A. HTT General M, P, S each Colum C 45 | E105: Over-collateralisation - this refers to the proportion of the cover pool that exceeds the proportion of outstanding Pfandbriefe. See also “Over-collateralisation” and “Statutory over-collateralisation”.
A106: Cover Pool amortisation profile in buckets | D106: A. HTT General M, P, S each Colum C 69-82 | E106: Maturity structure of the claims used for cover in bands - see also “Maturity structure”.
A107: Maturity of Covered Bonds in buckets | D107: A. HTT General M, P, S each Colum C 92-105 | E107: Maturity structure of the Pfandbriefe in circulation in bands - see also “Maturity structure”.
A108: Cover Assets - Currency | D108: A. HTT General M, P, S each Colum C 111-127 | E108: Reporting of claims used for cover based on currency type.
A109: Covered Bonds - Currency | D109: A. HTT General M, P, S each Colum C 137-153 | E109: Reporting of Pfandbriefe in circulation based on currency type.
A110: Covered Bonds - Breakdown by interest rate - fixed rate | D110: A. HTT General M, P, S each Colum C 164 | E110: Reporting of Pfandbriefe in circulation by type of interest rate agreement - in this case: fixed-rate agreement.
A111: Covered Bonds - Breakdown by interest rate - floating rate | D111: A. HTT General M, P, S each Colum C 165 | E111: .
A112: Exposures to/guaranteed by governments or quasi governments | D112: A. HTT General M, P, S each Colum C 175 | E112: Claims that are guaranteed by government and government-related agencies.
A113: Exposures to credit institutions (inkl Central Banks) | D113: A. HTT General M, P, S each Colum C 177 | E113: Claims against credit institutions and central banks.
A114: o/w CQS1 credit institutions | D114: A. HTT General M, P, S each Colum C 186 | E114: Claims against credit institutions and central banks - in this case: with credit quality step 1.
A115: o/w CQS2 credit institutions | D115: A. HTT General M, P, S each Colum C 187 | E115: Claims against credit institutions and central banks - in this case: with credit quality step 2.
A116: Substitute Assets - Country | D116: A. HTT General M, P, S each Colum C 192-208 | E116: Reporting of other cover assets (substitute) by country.
A117: Liquid Assets - Central bank eligible assets | D117: A. HTT General M, P, S each Colum C 218 | E117: Liquid assets - in this case: assets eligible for central bank credit.
A118: NPV of Derivatives in the cover pool (mn) | D118: A. HTT General M, P, S each Colum C 234 | E118: Net present value of the derivatives used as cover.
A119: Breakdown by Type of Debtors - Sovereigns | D119: B2. HTT Public Sector Assets C 148 | E119: Reporting by debtor type - in this case: central government (see also “Central government”).
A120: Breakdown by Type of Debtors - Regional/federal authorities | D120: B2. HTT Public Sector Assets C 149 | E120: Reporting by debtor type - in this case: regional authorities (see also “Regional authority”).
A121: Breakdown by Type of Debtors - Local/municipal authorities | D121: B2. HTT Public Sector Assets C 150 | E121: Reporting by debtor type - in this case: local authorities (see also “Local authority”).
A122: Breakdown by Type of Debtors - Others | D122: B2. HTT Public Sector Assets C 151 | E122: Reporting by debtor type - in this case: Other (see also “Other”).

Sheet Disclaimer
B2: Disclaimer vdp-Transparenzinitiative
B4: Der vdp und die an der Erstellung der Pfandbrief-Statistik nach § 28 PfandBG sowie der erweiterten Transparenzangaben (inkl. HTT) im Rahmen der "vdp-Transparenzinitiative" beteiligten Banken übernehmen keine Garantie, Gewähr oder Haftung, gleich aus welchem Grunde, im Hinblick auf Richtigkeit, Genauigkeit, Aktualität, Vollständigkeit, Angemessenheit oder Eignung für irgendeinen Zweck gegenüber Dritten für auf den vdp-Internetseiten veröffentlichten Daten nach §28 PfandBG sowie der erweiterten Transparenzangaben (inkl. HTT). Der vdp und die an der vdp-Transparenzinitiative teilnehmenden Banken sind für jegliche Handlungen sowie unterlassene Handlungen, die aus einer direkten oder indirekten Nutzung oder einem Verweis auf die Daten der vdp-Transparenzinitiative resultieren, nicht verantwortlich. Die Haftung für jeglichen Schaden, der sich aus der Nutzung oder dem Verweis auf die Daten der vdp-Transparenzinitiative ergibt, schließen der vdp und die an der vdp-Transparenzinitiative teilnehmenden Banken aus. Die vdp-Transparenzinitiative ist ausschließlich zur Information bestimmt. Sie stellt weder Kauf- bzw. Verkaufsempfehlungen für irgendwelche Wertpapiere oder Investments dar, noch sind sie als Zusicherung oder Indikation etwaiger Entwicklungen bzw. Prognosen zu verstehen. Insbesondere sind die Daten der vdp-Transparenzinitiative nicht dafür gedacht, als Referenz für Finanzprodukte, oder zur Bepreisung von Anlageprodukten herangezogen zu werden. Die Daten, die im Rahmen der vdp-Transparenzinitiative veröffentlicht werden, stellen keine Benchmark im Sinne der Europäischen Verordnung (EU) 2016/1011 (EU-Benchmark-Verordnung) dar. Die Verwendung für Zwecke, welche zu einer Qualifizierung dieser als Benchmark führen könnten, ist ausdrücklich nicht zugelassen. Der vdp behält sich das Recht vor, die vdp-Transparenzinitiative jederzeit zu modifizieren, einzuschränken, einzustellen oder –in Übereinstimmung mit Gesetzen oder Regulierungsvorschriften - in ein kostenpflichtiges Angebot umzuwandeln.
